Workbook

Sheet Instructions (hidden)
A1: Barter | B1: See owned equipment
A2: Business overhead costs | B2: Use these fields to estimate total overhead costs for the farm and then allocate the portion of the total to the enterprise as a percent. Overhead costs for the enterprise are then divided by planted acres for the budget report. The FBG estimates total operating and ownership costs of the pickup based on the mileage input for all uses. It is important to specify the allocation for the enterprise as a percentage of total pickup use, not just farm use. | C2: overhead
A3: Button controls | B3: See help for specific button topics, such as, 'Clear Input'.
A4: Clear input | B4: This button erases all previously entered data in the input worksheet in preparation for entering a new set of data. A warning is issued prior to clearing the input. Input data can be retrieved with the 'Recall Data' button only if it has been saved and attached to output (a budget report) with the 'Budget Report' command. If the objective is to make minor changes in an existing budget of the same crop, do not use 'Clear Input'. Rather, recall the previous budget with 'Recall Data', make the minor data changes in the input worksheet and give the budget a new description in the 'Crop description' field. Press 'Budget Report' to make new calculations and store a new budget based on the revised data.
A5: Combines | B5: See owned equipment
A6: Copy budget | B6: The Forage Budget Generator works like any Excel spreadsheet. To copy a budget report to a new file, select the area to be copied and use the Edit\Copy\Paste or Paste Special commands to place the report in a new worksheet or a new file.
A7: Crop description | B7: The crop description field is critical for identifying budgets to be saved in the generator and distinguishing between budgets of the same forage crop. The FBG will not allow a budget with the same crop description to be overwritten without warning. Use the crop description field as a note pad to identify specific characteristics of the crop. For example, 'High Yield' vs 'Low Yield', or 'Custom Rates' vs 'Operator Owned'. | C7: description
A8: Custom hire | B8: As noted, entries in this section will account for labor value and equipment costs for all custom hired activities. | C8: customhire1 | D8: customhire2
A9: Delete budget | B9: Deleting a budget permamently erases all input and output with the same crop description (except for 'Typical budgets'). To delete a budget it must have been run and appear as a worksheet tab. Use normal Excel commands to delete a worksheet: Select the worksheet, right-click, click delete.
A10: Export data | B10: The Export data option can be used to transfer budgets between different FBG files. Simply place a checkmark next to the budgets you wish to export and browse for a directory to place the files. When finished, click 'Ok'. The budgets will be stored as text files in a folder called 'FBG Files' in the location you specified. To retrieve the files, use the Import data command (see Import data).
A11: Fertilizer costs | B11: These fields are used to estimate the costs of fertilizer material only. Application costs (custom or operator applied) are entered separately. These conversions may be helpful: -Anhydrous ammonia (NH3) is typically 82 percent nitrogen. -Ammonium nitrate is 33.5 percent nitrogen. -Ammonium sulfate is 20.5 percent nitrogen. -Urea is 45 percent nitrogen. -Nitrogen solutions are typically 20-40 percent nitrogen. -Monoammonium phospate (MAP) is typically 11-48-0 -Diammonium phoshpate (DAP) is typically 18-46-0 -Potassium sulfate is 47 to 52 percent potash (K20) -Potassium chloride is 47 to 61 percent potash (K20) | C11: fertilizer1 | D11: fertilizer2
A12: Herbicide costs | B12: These fields are used to estimate the costs of herbicide material only. Application costs (custom or operator applied) are entered separately. Note that costs can be entered per trip or per unit per acre. The notes field is to record specifics about the weed control program that will appear on the budget report. | C12: herbicide1 | D12: herbicide2
A13: Import data | B13: This option allows the user to bring previous budgets into the current Forage Budget Generator. If you wish to retrieve a budget from a previous version of the FBG and that version supports this method, simply enter the location of the FBG into the location box or use the 'Find Budgets' button to located the file. If the user has exported budgets to text files (see Export data), use the 'Find Budgets' button to locate the 'FBG Files' folder. After the directory of the budgets has been specified, place a checkmark next to the budgets that you wish to import. If no budgets are listed to select, then you have not specified a valid path from which to retrieve budgets. Once the budgets are selected, click 'Ok'.
A14: Input sheet | B14: All of the data required to run the generator is entered on the Input worksheet. Enter data in the white boxes. Move the cursor between data entry fields by using the "Tab" key. Move back a space by pressing "Shift+Tab". Comment boxes (denoted by red markers) provide detailed explanations for certain items. View the contents of the comment box by pointing the cursor at the red triangular marker. The user will have access to only one input sheet. It may be blank or populated with data. See 'Clear Input' and 'Recall Data'.
A15: Insecticide/fungicide costs | B15: These fields are used to estimate all non-herbicide chemical costs for material only. The notes field is to record specifics about the insecticides or fungicide program and will appear on the budget report. | C15: insecticide1 | D15: insecticide2
A16: Labor costs | B16: The first field in the labor section (labor hours per acre) is used to account for all the hours NOT used in field operations or irrigation. Actual field operation labor is calculated automatically. Examples of non-field labor required include time used for hauling grain, moving equipment, procuring inputs, personnel and business management activities, etc. The skilled labor rate is used to estimate costs for most machinery operations. Operator labor for the enterprise for machinery and non-machinery activities is lumped on one line in the budget report. This line may include hired or unpaid family labor, but does not include custom hire. | C16: labor
A17: Land costs | B17: Land costs are always difficult to estimate, but should follow trends in current market values for bare land and attached buildings (grain bin) to operate the enterprise. Land charges implicitly include associated real estate taxes. The rule of thumb is to not deviate greatly from cash rental rates. However, land values and rental rates do not necessarily track each other. For share rent situations, the land costs entered are the costs incurred by the landlord. | C17: land
A18: Lease arrangement | B18: The generator allows one of three types of land arrangements: owned land, cash rent, or share leasaed. Choose one from the drop box to open pertinent fields for data entry. If the share lease option is selected, output will be reported for the contributions of the landlord, tenant, and the combined business unit in three columns. Choosing the cash rent option charges the economic costs of land at the rental rate and produces a single column budget report for the business unit. Choosing the owned land option allows the user to estimate the economic costs of land ownership based on land value and a capitalization rate. This option produces a single column budget report for the business unit. | C18: landlord_share
A19: Other input costs | B19: Operating interest is the projected costs of capital for the short-term (one year or less). The entry is used to calculate interest on variable costs. Fuel price for farm diesel (net of taxes) is used to calculate fuel costs for tractors and combines. Other direct crop expense is a catch-all category. The other expense line in the budget report is linked only to this field. | C19: otheritems1
A20: Owned equipment | B20: This section is used to estimate all costs, on a per acre basis, for owning or renting equipment. Begin by checking the types of tractors that will be used for all field activities in this enterprise. These are the items that become available as a drop down list to match tractors to implements. If a tractor selection is overlooked, simply return to tractors and select an additional tractor. A list of all available combines will appear under harvest activities. With a few exceptions, four fields are available for each machine operation. The first field allows selection of the implement size from the pick list. To see the pick list, place the cursor in the cell and point to the drop down arrow to the right of the field. The implement selection determines the hours of use per acre (and therefore fuel and labor costs). The second field is used to select the appropriate tractor to match with the implement. Use good judgement. There is nothing in the generator to prevent a mismatch of implement and power unit. The third field is to select the number of passes per acre with the implement. For example, a common usage is to allow two passes with a boom sprayer. The fourth field is used to enter a rental fee per acre to accomplish the operation, e.g., rental of a no-till drill. An entry in this field causes the generator to tally only operating costs of the implement, but to capture all costs of the power unit associated with the activity. Another usage of this field might be to estimate the cost of bartering, or sharing equipment and/or labor with a neighbor. In this case enter the value of your contribution on a per acre basis. NOTE: Machinery cost calculations (per acre) assume certain annual hours of use and an economic life of the implement and power unit to estimate age and use depreciation and overhead. Internal adjustments have been made to base machinery on "typical" farming operations in Missouri. In some cases, used, "depreciated" machinery is built into the database which shifts costs into the operating category, but generally has only minor impact on the total costs of production. For example, the seed combine is based on used values, increasing repair and maintenance costs, but lowering depreciation costs, relative to new. | C20: power | D20: Passes | E20: rental
A21: Preview | B21: Selecting the 'Preview' buttom pops up a window that summarizes the costs and returns data in real-time. Use the window to see how a change in an input field will impact the overall budget report. This window can remain open while entering data.
A22: Recall Data | B22: The 'Recall Data' button opens a window with two lists of previously run budget reports as shown on the tabs: 'Custom Budgets' and 'Typical Budgets'. 'Custom budgets' are those previously run by the user. 'Typical budgets' are pre-loaded in the software. Often, the easiest way to begin a new budget is to recall a typical budget and customize it to your situation. To recall, highlight a specific budget from the list and click OK. To delete a customized budget see Delete budget in the help section. Typical budgets can not be deleted.
A23: Rented equipment | B23: See owned equipment
A24: Run Budget | B24: Selecting the 'Run Budget' button launches the calculations to build a budget report and the report appears on screen. It is stored as a new worksheet in the current session and can be recalled later (input and report) with the 'Recall Data' button. Budget reports can be hidden with Excel commands (Format\Sheet\Hide). Hiding does not remove the report from the 'Custom Budgets' list. Budget report worksheets can also be deleted. To delete, point to the worksheet tab, right-click and select delete.
A25: Save budget | B25: The Forage Budget Generator works like any Excel spreadsheet. You must save your work before closing the file.
A26: Seed costs | B26: Enter seeding rates and prices per unit. The seed notes field is an optional method of further distinguishing this budget from others. One usage is to use this field to identify seed technology or species. | C26: seed1 | D26: seed2
A27: Start | B27: The Forage Budget Generator works like any other Excel spreadsheet except that many steps have been automated. Begin by entering data into a black 'Input' worksheet, or by retrieving one of the pre-stored input worksheets. Run the generator by selecting the 'Budget Report' button. See help on 'Input Sheet'
A28: Summary | B28: The summary option allows budget summaries to be combined in one workseet. When 'Show Summary' is clicked on the FBG menu, a list of the user's budgets will show up. Typicals can also be included by clicking 'Yes" under 'Include Typicals?.' You may select between one and twelve budgets to combine. Once they have been combined, click 'Next' and give the summary a description. The order that the budgets will appear can be changed by clicking on the budget then on the up and down arrows on the side. The budgets in the Summary are tied back to the original budget. Updating the original budget will cause the Summary budget to also be updated.
A29: Tractors | B29: See owned equipment
A30: Troubleshooting | B30: The Forage Budget Generator has been designed and tested for Excel versions 2000 and later. It may not function properly with earlier versions. Macros must be enabled for the spreadsheet to calculate correctly. If your computer is not set to allow macros, got to Tools\Options\Security\Macro Security, and set to the medium level. The generator is best viewed with a screen resolution of 1024 x 768 or higher. If you experience problems with expanding checkboxes or drop down lilst boxes, to to Control Panel\Display and set display to a higher resolution. Worksheets have been protected to avoid inadvertent corruption of formulas.
A31: Typical budgets | B31: The FBG comes with a set of pre-entered budgets, based on typical forage establishment and production practices. To retrieve the typical budgets go to Recall Data and click the Typical tab. Highlight and click OK to retrieve the input for one of these budgets and then click 'Budget Report' to view the output. Once run, the typical budget worksheets can be deleted with the usual Excel commands to delete a worksheet. Doing this will not delete the input from the Typical Budgets list. Editing the input associated with a 'Typical Budget' will not overwrite the stored version.
A32: Value of production | B32: The planted acres field is used in some of the calculations to estimate fixed costs of machinery. The FBG allows for multiple methods of harvest on the same acre of land. Enter appropriate price and yield information for each method of harvest, but be careful with dry matter conversions. Price input data for hay, haylage, pasture, and seed is for moisture content as harvested, regardless of yield units. (wet-basis for haylage). Yieldinput data for hay, pasture, and seed is for moisture content as harvested. Enter haylage yield as number of bales or tons on a wet-basis and specify converted to an air-dry tonnage, i.e. approximately 10 percent moisture, roughly equivalent to the moisture content of field cured hay. For haylage, enter yield (as bales or tons) on a wet basis and specify percentage dry matter percentage. | C32: receipts1 | D32: receipts2

Sheet Input
AE1: Establishment=1
A2: FORAGE BUDGET INPUT | AB2: A number signals hiding | AE2: Production=2
A3: Enter data in white boxes. Use "Tab" key to navigate between boxes | H3: Version 11.7.16 | AE3: Hide always=3
A4: Crop identification | AA4: Hay | AB4: Haylage | AC4: Pasture | AD4: Seed | AE4: Establishment | AF4: Irr
A5: Crop description | B5: 2021 Fescue+Seed+Stubble Prod
A6: Is this an establishment year?
A7: Harvest as: | B7: Yield unit
B11: Pounds
A12: Irrigation
A13: Lease arrangement
A14: Value of production
A15: Planted acres | B15: 300 | D15: number of acres
A16: Hay, 90% dry matter | B16: 4 | D16: =VLOOKUP(MDB!C175,MDB!$L$172:$N$173,3)&"s per acre" -> bales per acre | F16: 56 | H16: ="$ per "&VLOOKUP(MDB!C175,MDB!L172:N173,3) -> $ per bale
B17: 1400 | D17: lbs per bale
A18: Baleage, wet basis | D18: =VLOOKUP(MDB!D175,MDB!$L$172:$N$173,3)&"s per acre" -> bales per acre | H18: ="$ per "&VLOOKUP(MDB!D175,MDB!L172:N173,3) -> $ per bale
D19: =IF(HaylageYieldType=2,"lbs per bale (90% dry matter)","% dry matter") -> lbs per bale (90% dry matter)
A20: Pasture, 90% dry matter | B20: 1 | D20: =VLOOKUP(MDB!E175,MDB!$L$175:$N$176,3)&"s per acre" -> AUMs per acre | F20: 15 | H20: ="$ per "&VLOOKUP(MDB!E175,MDB!L175:N176,3) -> $ per AUM
B21: 825 | D21: lbs per AUM
A22: Seed, 90% dry matter | B22: 300 | D22: lbs per acre | F22: 0.28 | H22: $ per lb
A23: Other income | D23: $ per acre
A24: Sub-total per acre | B24: =income -> 323
A25: Input costs
A26: Seed | B26: Rate | D26: Rate units | F26: Price | G26: Price units
A27: Seed A | D27: lbs per acre | G27: $ per lb
A28: Seed B | D28: lbs per acre | G28: $ per lb
A29: Seed C | D29: lbs per acre | G29: $ per lb | AE29: 2
A30: Seed D | D30: lbs per acre | G30: $ per lb | AE30: 2
A31: Additional seed treatment costs | D31: units per acre | G31: $ per unit
A32: Seed notes | G32: $ per acre
A33: Sub-total per acre | B33: =Output!F17 -> 0
A35: Fertilizer (not application) | B35: Rate | D35: Rate units | F35: Price | G35: Price units
A36: Nitrogen (anhydrous) | D36: lbs per acre | G36: $ per lb
A37: Nitrogen (dry) | B37: 70 | D37: lbs per acre | F37: 0.4 | G37: $ per lb
A38: Nitrogen (liquid) | D38: lbs per acre | G38: $ per lb
A39: Phosphorus, P2O5 | B39: 30 | D39: lbs per acre | F39: 0.38 | G39: $ per lb
A40: Potassium, K20 | B40: 80 | D40: lbs per acre | F40: 0.28 | G40: $ per lb
A41: Lime | B41: 0.5 | D41: tons per acre | F41: 21 | G41: $ per ton
A42: Other amendment | D42: lbs per acre | G42: $ per lb
A43: Other amendment | D43: lbs per acre | G43: $ per lb
A44: Sub-total per acre | B44: =Output!F18 -> 72.3
A46: Herbicide (not application) | B46: Rate | D46: Rate units | F46: Price | G46: Price units
A47: One-pass program | D47: trips per acre | G47: $ per trip
A48: Burn-down mix | D48: trips per acre | G48: $ per trip
A49: Pre-emergence mix | D49: trips per acre | G49: $ per trip
A50: Post-emergence mix | D50: trips per acre | G50: $ per trip
A51: Other herbicide A, by trip | D51: trips per acre | G51: $ per trip
A52: Other herbicide B, by trip | D52: trips per acre | G52: $ per trip
A53: Other herbicide C, by unit | D53: units per acre | G53: $ per unit | AE53: 3
A54: Other herbicide D, by unit | D54: units per acre | G54: $ per unit | AE54: 3
A55: Herbicide notes
A56: Sub-total per acre | B56: =Output!E24 -> 0
A58: Insecticide/fungicide (not application) | B58: Rate | D58: Rate units | F58: Price | G58: Price units
A59: Treatment A, by trip | D59: trips per acre | G59: $ per trip
A60: Treatment B, by trip | D60: trips per acre | G60: $ per trip
A61: Treatment C, by trip | D61: trips per acre | G61: $ per trip | AE61: 3
A62: Treatment D, by unit | D62: units per acre | G62: $ per unit | AE62: 3
A63: Treatment E, by unit | D63: units per acre | G63: $ per unit | AE63: 3
A64: Treatment F, by unit | D64: units per acre | G64: $ per unit | AE64: 3
A65: Insecticide, fungicide notes
A66: Sub-total per acre | B66: =Output!E25 -> 0
A68: Labor input | B68: Value | D68: Rate units
A69: Non-machinery labor, hours | B69: 0.3 | D69: hours per acre
A70: Non-machinery labor, rate | B70: 15.5 | D70: $ per hour
A71: Skilled machinery labor, rate | B71: 21 | D71: $ per hour
A72: Sub-total per acre | B72: =Output!F31 -> 15.42364813
A74: Irrigation | D74: Units | AF74: 1
A75: Irrigation labor, hours | D75: hours per acre | AF75: 1
A76: Irrigation water applied | D76: acre-inch | AF76: 1
A77: Irrigation energy cost | D77: $ per acre inch | AF77: 1
A78: Sub-total per acre | B78: =B75*B70+B76*B77 -> 0 | AF78: 1
AF79: 1
A80: Land costs | B80: Value | D80: Units
A81: Cash rent | D81: $ per acre
A82: Market value | B82: 3000 | D82: $ per acre
A83: Capitalization rate | B83: 1.9 | D83: percent
A84: Landowner real estate/drainage taxes | D84: $ per acre
A85: Landowner liability insurance | D85: $ per acre
A86: Sub-total per acre | B86: =Output!F40 -> 57
A88: Other input items | B88: Value | D88: Units
A89: Operating interest rate | B89: 4.5 | D89: percent
A90: Fuel price (farm diesel) | B90: 2.38 | D90: $ per gallon
A91: Fuel price (pickup, retail) | B91: 2.55 | D91: $ per gallon
A92: Crop supplies, soil test, etc. | B92: 7 | D92: $ per acre
A93: Seed drying energy cost | D93: $ per lb | AE93: 3
A94: Crop storage rent | D94: months | G94: $ per mon
A95: Clean harvested seed | D95: $ per lb | AA95: 1 | AB95: 1 | AC95: 1
A96: Crop scouting and consulting | D96: $ per acre
A97: Other direct crop expense | D97: $ per acre
A99: Farm business overhead | B99: Value
A100: Liability/peril insurance, not equipment | D100: $ for farm
A101: Farm utilities, not drying | D101: $ for farm
A102: Other (accounting, dues, office, etc.) | B102: 9000 | D102: $ for farm
A103: Allocate above overhead costs to crop | B103: 10 | D103: percent
A104: Sub-total per acre | B104: =(SUM(B100:B102)*B103*0.01)/acres -> 3
A106: Light vehicle costs | B106: Value
A107: Farm pickup mileage, all uses | B107: 15000 | D107: miles per year
A108: Farm pickup cost allocation for this crop | B108: 10 | D108: percent
B109: ='Machinery Cost'!I55 -> 2.945133167
A111: Custom hire: includes labor and equipment
A112: Hire custom work | B112: Value | D112: Units | F112: Passes
A113: Hire dry fertilizer application | B113: 6.2 | C113: 1 | D113: $ per acre | F113: 2 | H113: trips per acre
A114: Hire herbicide application | D114: $ per acre | H114: trips per acre
A115: Hire insecticide/fungicide application | D115: $ per acre | H115: trips per acre
A116: Hire aerial spraying | D116: $ per acre | H116: trips per acre | AA116: 1 | AB116: 1 | AC116: 1 | AD116: 1 | AE116: 3
A117: Hire silo filling (chopping & hauling) | D117: ="$ per " & VLOOKUP(HaylageYieldType,MDB!$L$172:$N$173,3) -> $ per bale | F117: 1 | AA117: 1 | AC117: 1 | AD117: 1
A118: Hire silage hauling | D118: ="$ per " & VLOOKUP(HaylageYieldType,MDB!$L$172:$N$173,3) -> $ per bale | F118: 1 | AA118: 1 | AC118: 1 | AD118: 1
A119: Hire mowing hay | C119: 0 | D119: $ per acre | H119: trips per acre | AC119: 1 | AD119: 1
A120: Hire mow and condition hay | C120: 0 | D120: $ per acre | H120: trips per acre | AC120: 1 | AD120: 1
A121: Hire raking hay | C121: 0 | D121: $ per acre | H121: trips per acre | AC121: 1 | AD121: 1
A122: Hire tedding hay | C122: 0 | D122: $ per acre | H122: trips per acre | AC122: 1 | AD122: 1
A123: Hire baling hay | C123: 0 | D123: $ per acre | H123: trips per acre | AC123: 1 | AD123: 1
A124: Hire complete hay harvest | C124: 0 | D124: $ per acre | H124: trips per acre | AC124: 1 | AD124: 1
A125: Hire custom combining, acre | C125: 0 | D125: $ per acre | H125: trips per acre | AA125: 1 | AB125: 1 | AC125: 1
A126: ="Hire custom combining, lb" -> Hire custom combining, lb | D126: ="$ per lb" -> $ per lb | F126: =seed -> 300 | AA126: 1 | AB126: 1 | AC126: 1
A127: Seed hauling | B127: 0.03 | D127: $ per lb | F127: =seed -> 300 | AA127: 1 | AB127: 1 | AC127: 1
A128: Hay and haylage hauling | B128: 4 | D128: ="$ per " & VLOOKUP(MDB!C175,MDB!L172:N173,3) -> $ per bale | F128: =hay+haylage -> 4 | AC128: 1 | AD128: 1
A129: Other machine hire | D129: $ per acre | H129: trips per acre
A130: Other machine hire | D130: $ per acre | H130: trips per acre
A131: Sub-total per acre | B131: =SUMPRODUCT(Input!B113:B130,Input!F113:F130)-(Input!B117+Input!B118) -> 37.4
A132: Crop shares
A133: Crop share arrangements | B133: Lndlrd share | F133: $ per acre
A134: Production | D134: percent | F134: =SUM(Output!F9:F12) -> 323
A135: Farm program payments | D135: percent
A136: Other income | D136: percent | F136: =Output!F13 -> 0
A137: Seed costs | D137: percent | F137: =Output!F17 -> 0
A138: Fertilizer costs | D138: percent | F138: =Output!F18 -> 72.3
A139: Herbicide costs | D139: percent | F139: =Output!E24 -> 0
A140: Insecticide/fungicide costs | D140: percent | F140: =Output!E25 -> 0
A141: Custom application costs | D141: percent | F141: =SUMPRODUCT(B113:B115,F113:F115) -> 12.4
A142: Power unit fuel costs | D142: percent | F142: =SUMPRODUCT('Machinery Cost'!H7:H55,'Machinery Cost'!O7:O55) -> 6.20105359
A143: Crop consulting and insurance costs | D143: percent
A144: Irrigation energy costs | D144: percent | F144: =B76*B77 -> 0 | AF144: 1
A145: Drying/hauling costs | D145: percent
A146: Other costs | D146: percent | F146: =Output!F32 -> 0
A148: Owned and/or rented equipment, operator labor
A149: Tractors:
A153: Tillage equipment | B153: Size | D153: Power | F153: Passes | H153: Rental fee
A154: Chisel plow | B154: 15 ft | E154: 0 | AE154: 2
A155: Chisel plow, front disk | B155: 16.3 ft | E155: 0 | AE155: 2
A156: Moldboard plow | B156: 6 ft | E156: 0 | AE156: 2
A157: Field cultivator | B157: 18 ft | E157: 0 | AE157: 2
A158: Tandem disk | B158: 25 ft | E158: 0 | AE158: 2
A159: V-Ripper | B159: 30" O.C., 17 ft | E159: 0 | AE159: 2
A160: Combo. field cultivator incorporated | B160: 16 ft | E160: 0 | AE160: 3
A161: Combo. disk and v-ripper | B161: 17.5 ft | E161: 0 | AE161: 2
A162: Disk, field cultivator finish | B162: 22 ft | AE162: 2
A163: Roller harrow | B163: 12 ft | E163: 0
A164: Planting equipment | B164: Size | D164: Power | F164: Passes | H164: Rental fee | AE164: 2
A165: Row crop planter | B165: 6 row | E165: 0 | AA165: 1 | AC165: 1 | AD165: 1 | AE165: 2
A166: Split row no-till planter | B166: (6 row 30/15) | E166: 0 | AE166: 3
A167: No-till planter | B167: 6 row | E167: 0 | AE167: 2
A168: Presswheel drill | B168: 16 ft | E168: 0 | AE168: 2
A169: No-till drill | B169: 15 ft | E169: 0 | AE169: 2
A170: Sprigger | B170: 6 ft
A171: Crop maintenance equipment | B171: Size | D171: Power | F171: Passes | H171: Rental fee
A172: Row cultivator | B172: 6 row | E172: 0 | AE172: 3
A173: Row cultivator- high residue | B173: 6 row | E173: 0 | AE173: 3
A174: Rotary hoe | B174: 21 ft | E174: 0 | AE174: 3
A175: Rotary mower | B175: 15 ft | E175: 0
A176: Boom sprayer, pull type | B176: 30 ft | E176: 0
A177: Boom sprayer, self propelled | B177: 60 ft | D177: --- | E177: 0
A178: Anhydrous applicator | B178: 21 ft | E178: 0 | AE178: 2
A179: Fertilizer spreader | B179: 4 T (40 ft) | E179: 0
A180: Field roller | B180: 8 ft
A181: ATV with broadcaster | B181: 6 ft | D181: ---
A182: Harvesting | B182: Size | D182: Power | F182: Passes | H182: Rental fee | AC182: 1
A183: Disc mower | B183: 7 ft | E183: 0 | AC183: 1 | AD183: 1
A184: Disk mower-conditioner | B184: 9 ft | E184: 0 | AC184: 1 | AD184: 1
A185: Swather (haybine) mower-conditioner | B185: 9 ft | D185: 105 MFWD | E185: 0 | F185: 1 | AC185: 1 | AD185: 1
A186: Hay tedder | B186: 2 rotor, 8.5 ft | E186: 0 | AC186: 1 | AD186: 1
A187: Wheel rake, V hitch | B187: 2-16' wheel, 30 ft | D187: 60 HP | E187: 0 | F187: 1 | AC187: 1 | AD187: 1
A188: Roller bar rake (basket) | B188: 8.5 ft | E188: 0 | AC188: 1 | AD188: 1
A189: Hay merger (double rake) | B189: 20 ft | E189: 0 | AC189: 1 | AD189: 1 | AE189: 3
A190: Small square baler | B190: 6 ft pickup | E190: 0 | AB190: 1 | AC190: 1 | AD190: 1
A191: Round baler, tie | B191: 1000 Lb | E191: 0 | AC191: 1 | AD191: 1
A192: Round baler, net wrap | B192: 1500 lb | D192: 105 MFWD | E192: 0 | F192: 1 | AC192: 1 | AD192: 1
A193: Round baler, silage kit | B193: 1000 lb | AA193: 1 | AC193: 1 | AD193: 1
A194: Large square baler, 3x4x8 bales | B194: 1200 lb | E194: 0 | AC194: 1 | AD194: 1
A195: Silage chopper | B195: 3 row corn head | E195: 0 | AA195: 1 | AC195: 1 | AD195: 1
A196: Bale wagon/stacker, pull type | B196: 3 ton | E196: 0 | AB196: 1 | AC196: 1 | AD196: 1
A197: Stalk shredder | B197: 20 ft | E197: 0 | AE197: 3
A198: Combine, fixed grain head | B198: 15 ft | D198: 100 HP Comb. | E198: 0 | F198: 1 | AA198: 1 | AB198: 1 | AC198: 1
A199: Combine, flexible grain head | B199: 15 ft | D199: 220 HP Comb. | E199: 0 | AE199: 3
A200: Combine, corn head | B200: 6 row | D200: 220 HP Comb. | E200: 0 | AE200: 3
A201: Hourly Equipment | B201: Size | D201: Power | F201: Hours/Year | H201: Rent/Hour | AA201: 1 | AC201: 1 | AD201: 1
A202: Round bale wrapper, haylage | B202: --- | E202: 0 | AA202: 1 | AC202: 1 | AD202: 1
A203: Grain cart for seed | B203: 500 bushel | E203: 0 | AE203: 3
A204: Grain auger 10 inch, 5000 bu/hr | B204: 70 ft | E204: 0 | AE204: 3
A207: End of Screen

Sheet Prod(2021 Fescue+Seed+Stubb...) (hidden)
A1: Typical | E1: 2020-10-26
A3: 2021 Fescue+Seed+Stubble Prod | D3: Yield, tons air-dry: | E3: 3.2125
A4: Production | D4: Weighted value per ton, air-dry: | E4: 74.39688716
A5: Owned land
A6: Dryland
E7: Business unit
A8: Income per acre | C8: Yield | D8: Price | E8: total
A9: Hay | B9: 1400 lb bales | C9: 4 | D9: 56 | E9: 224
A10: Baleage or silage | B10: bales | C10: 0 | D10: 0 | E10: 0
A11: Grazing | B11: AUMs | C11: 1 | D11: 15 | E11: 15
A12: Seed | B12: lbs | C12: 300 | D12: 0.28 | E12: 84
A13: Other income | E13: 0
A14: Total income per acre | E14: 323
A16: Operating costs per acre
A17: Seed | E17: 0
A18: Fertilizer | E18: 72.3
A19: Nitrogen | D19: 28
A20: Phosphorus | D20: 11.4
A21: Potassium | D21: 22.4
A22: Other amendments | D22: 10.5
A23: Crop protection | E23: 0
A24: Herbicide | D24: 0
A25: Insecticide-fungicide | D25: 0
A26: Crop supplies, storage | E26: 7
A27: Crop consulting | E27: 0
A28: Custom hire and rental | E28: 37.4
A29: Machinery fuel and irrigation energy | E29: 6.20105359
A30: Machinery repairs and maintenance | E30: 13.63132351
A31: Operator and hired labor | E31: 15.42364813
A32: Other expense | E32: 0
A33: Operating interest | E33: 3.419010568
A34: Operating costs per acre | E34: 155.3750358
A36: Ownership costs per acre1
A37: Farm business overhead | E37: 3
A38: Machinery overhead | E38: 9.741231288
A39: Machinery depreciation | E39: 15.50186885
A40: Real estate charge | E40: 57
A41: Ownership costs per acre | E41: 85.24310013
A43: Total costs per acre | E43: 240.6181359
A45: Income over operating costs per acre | E45: 167.6249642
A46: Income over total costs per acre | E46: 82.38186407
A53: Detailed Report | B53: Production 2021 Fescue+Seed+Stubble Prod | G53: 2020-10-26
A55: Selected input quantities | B55: per acre | E55: Selected input prices | G55: $ per unit
A56: Forage yield, tons | B56: 3.2125 | E56: Farm diesel, per gallon | G56: 2.38
A57: Seeding rate, lbs | B57: 0 | E57: Operating interest, % | G57: 4.5
A58: Nitrogen rate, lbs | B58: 70 | E58: Nitrogen, per lb | G58: 0.4
A59: Phosphorus rate, lbs | B59: 30 | E59: Phosphorus, per lb | G59: 0.38
A60: Potassium rate, lbs | B60: 80 | E60: Potassium, per lb | G60: 0.28
A61: Lime rate, tons | B61: 0.5 | E61: Lime, per ton | G61: 21
A62: Sum of allocated labor, hours | B62: 0.823034865 | E62: Skilled labor, per hour | G62: 21
A63: Irrigation, inches | B63: 0 | E63: Land value, per acre | G63: 3000
B66: Labor | C66: Fuel | D66: Operating | E66: Ownership | F66: Total
B67: Hours | C67: Gallons | D67: Costs2 | E67: Costs3 | F67: Costs | G67: Trips
A68: Machine activity (not custom) | B68: per acre | C68: per acre | D68: $ per acre | E68: $ per acre | F68: $ per acre | G68: per acre
A69: Swather (haybine) mower-conditioner (9 ft); 105 MFWD | B69: 0.2293577982 | C69: 1.059633028 | D69: 9.65562844 | E69: 12.26788991 | F69: 21.92351835 | G69: 1
A70: Wheel rake (2-16'); 60 HP | B70: 0.03819709702 | C70: 0.1008403361 | D70: 1.240453782 | E70: 2.374637128 | F70: 3.615090909 | G70: 1
A71: Round baler, net wrap (1500 lb); 105 MFWD | B71: 0.1058201058 | C71: 0.4888888889 | D71: 12.00888254 | E71: 6.058783069 | F71: 18.06766561 | G71: 1
A72: Combine, fixed grain head (15 ft); 100 HP Comb. | B72: 0.1496598639 | C72: 0.6585034014 | D72: 6.520802132 | E72: 2.776915196 | F72: 9.297717328 | G72: 1
A73: Pickup truck | C73: 0.2777777778 | D73: 1.180258333 | E73: 1.764874833 | F73: 2.945133167
A74: Total | B74: 0.523034865 | C74: 2.585643432 | D74: 30.60602523 | E74: 25.24310013 | F74: 55.84912536 | G74: 4
A102: 1 Farm business overhead includes liability insurance, utilities, accounting, etc. Machinery overhead is the sum of opportunity interest,
A103: property taxes, insurance, and housing. Machinery depreciation is a market value decline due to aging and usage. Thus, a portion of
A104: depreciation should be considered an operating costs for some decisions. Real estate charge includes land, improvements, taxes.
A105: Economic costs may differ from rental rates.
A106: 2 Machinery operating cost is the sum of fuel, repairs, maintenance, and the value of labor.
A107: 3 Machinery ownership cost is the sum of machinery overhead and depreciation (see page 1).
A1000: Start
A1001: establishment-82506 | B1001: 2
A1002: harvestashay-82506 | B1002: TRUE
A1003: harvestashaylage-82506 | B1003: FALSE
A1004: harvestaspasture-82506 | B1004: TRUE
A1005: harvestasseed-82506 | B1005: TRUE
A1006: yield-1-83106 | B1006: 2
A1007: yield-2-83106 | B1007: 2
A1008: yield-3-83106 | B1008: 2
A1009: irrigation2-22706 | B1009: 2
A1010: leasenum-22706 | B1010: 1
A1011: 40hp-22706 | B1011: FALSE
A1012: 60hp-22706 | B1012: TRUE
A1013: 75hp-22706 | B1013: FALSE
A1014: 105twd-22706 | B1014: FALSE
A1015: 140twd-22706 | B1015: FALSE
A1016: 105mfwd-22706 | B1016: TRUE
A1017: 130mfwd-22706 | B1017: FALSE
A1018: 160mfwd-22706 | B1018: FALSE
A1019: 200mfwd-22706 | B1019: FALSE
A1020: 225mfwd-22706 | B1020: FALSE
A1021: 2604wd-22706 | B1021: FALSE
A1022: 3104wd-22706 | B1022: FALSE
A1023: description-1-22706 | B1023: 2021 Fescue+Seed+Stubble Prod
A1024: acres-1-22706 | B1024: 300
A1025: receipts-1-22706 | B1025: 4
A1026: receipts-2-22706 | B1026: 1400
A1027: receipts-3-22706 | B1027: 0
A1028: receipts-4-22706 | B1028: 0
A1029: receipts-5-22706 | B1029: 1
A1030: receipts-6-22706 | B1030: 825
A1031: receipts-7-82506 | B1031: 300
A1032: receipts-8-82506 | B1032: 0
A1033: receipts-9-82506 | B1033: 56
A1034: receipts-10-82506 | B1034: 0
A1035: receipts-11-82506 | B1035: 15
A1036: receipts-12-82506 | B1036: 0.28
A1037: seed1-1-22706 | B1037: 0
A1038: seed1-2-22706 | B1038: 0
A1039: seed1-3-22706 | B1039: 0
A1040: seed1-4-22706 | B1040: 0
A1041: seed1-5-22706 | B1041: 0
A1042: seed1-6-22706 | B1042: 0
A1043: seed2-1-22706 | B1043: 0
A1044: seed2-2-22706 | B1044: 0
A1045: seed2-3-22706 | B1045: 0
A1046: seed2-4-22706 | B1046: 0
A1047: seed2-5-22706 | B1047: 0
A1048: fertilizer1-1-22706 | B1048: 0
A1049: fertilizer1-2-22706 | B1049: 70
A1050: fertilizer1-3-22706 | B1050: 0
A1051: fertilizer1-4-22706 | B1051: 30
A1052: fertilizer1-5-22706 | B1052: 80
A1053: fertilizer1-6-22706 | B1053: 0.5
A1054: fertilizer1-7-22706 | B1054: 0
A1055: fertilizer1-8-22706 | B1055: 0
A1056: fertilizer2-1-22706 | B1056: 0
A1057: fertilizer2-2-22706 | B1057: 0.4
A1058: fertilizer2-3-22706 | B1058: 0
A1059: fertilizer2-4-22706 | B1059: 0.38
A1060: fertilizer2-5-22706 | B1060: 0.28
A1061: fertilizer2-6-22706 | B1061: 21
A1062: fertilizer2-7-22706 | B1062: 0
A1063: fertilizer2-8-22706 | B1063: 0
A1064: herbicide1-1-22706 | B1064: 0
A1065: herbicide1-2-22706 | B1065: 0
A1066: herbicide1-3-22706 | B1066: 0
A1067: herbicide1-4-22706 | B1067: 0
A1068: herbicide1-5-22706 | B1068: 0
A1069: herbicide1-6-22706 | B1069: 0
A1070: herbicide1-7-22706 | B1070: 0
A1071: herbicide1-8-22706 | B1071: 0
A1072: herbicide2-1-22706 | B1072: 0
A1073: herbicide2-2-22706 | B1073: 0
A1074: herbicide2-3-22706 | B1074: 0
A1075: herbicide2-4-22706 | B1075: 0
A1076: herbicide2-5-22706 | B1076: 0
A1077: herbicide2-6-22706 | B1077: 0
A1078: herbicide2-7-22706 | B1078: 0
A1079: herbicide2-8-22706 | B1079: 0
A1080: herbicide2-9-22706 | B1080: 0
A1081: insecticide1-1-22706 | B1081: 0
A1082: insecticide1-2-22706 | B1082: 0
A1083: insecticide1-3-22706 | B1083: 0
A1084: insecticide1-4-22706 | B1084: 0
A1085: insecticide1-5-11206 | B1085: 0
A1086: insecticide1-6-11206 | B1086: 0
A1087: insecticide1-7-11206 | B1087: 0
A1088: insecticide2-1-22706 | B1088: 0
A1089: insecticide2-2-22706 | B1089: 0
A1090: insecticide2-3-22706 | B1090: 0
A1091: insecticide2-4-22706 | B1091: 0
A1092: insecticide2-5-22706 | B1092: 0
A1093: insecticide2-6-11206 | B1093: 0
A1094: labor-1-22706 | B1094: 0.3
A1095: labor-2-22706 | B1095: 15.5
A1096: labor-3-22706 | B1096: 21
A1097: irrigation1-1-22706 | B1097: 0
A1098: irrigation1-2-22706 | B1098: 0
A1099: irrigation1-3-22706 | B1099: 0
A1100: land-1-22706 | B1100: 0
A1101: land-2-22706 | B1101: 3000
A1102: land-3-22706 | B1102: 1.9
A1103: land-4-22706 | B1103: 0
A1104: land-5-22706 | B1104: 0
A1105: otheritems1-1-22706 | B1105: 4.5
A1106: otheritems1-2-22706 | B1106: 2.38
A1107: otheritems1-3-22706 | B1107: 2.55
A1108: otheritems1-4-22706 | B1108: 7
A1109: otheritems1-5-22706 | B1109: 0
A1110: otheritems1-6-22706 | B1110: 0
A1111: otheritems1-7-22706 | B1111: 0
A1112: otheritems1-8-22706 | B1112: 0
A1113: otheritems1-9-22706 | B1113: 0
A1114: otheritems1-10-22706 | B1114: 0
A1115: overhead-1-22706 | B1115: 0
A1116: overhead-2-22706 | B1116: 0
A1117: overhead-3-22706 | B1117: 9000
A1118: overhead-4-22706 | B1118: 10
A1119: overhead-5-22706 | B1119: 15000
A1120: overhead-6-22706 | B1120: 10
A1121: landlord_share-1-22706 | B1121: 0
A1122: landlord_share-2-22706 | B1122: 0
A1123: landlord_share-3-22706 | B1123: 0
A1124: landlord_share-4-22706 | B1124: 0
A1125: landlord_share-5-22706 | B1125: 0
A1126: landlord_share-6-22706 | B1126: 0
A1127: landlord_share-7-22706 | B1127: 0
A1128: landlord_share-8-22706 | B1128: 0
A1129: landlord_share-9-22706 | B1129: 0
A1130: landlord_share-10-22706 | B1130: 0
A1131: landlord_share-11-22706 | B1131: 0
A1132: landlord_share-12-22706 | B1132: 0
A1133: landlord_share-13-22706 | B1133: 0
... 204 more rows

Sheet Prod(2021 Fesc-Clover Hay) (hidden)
A1: Typical | E1: 2020-10-26
A3: 2021 Fesc-Clover Hay | D3: Yield, tons air-dry: | E3: 3.14
A4: Production | D4: Weighted value per ton, air-dry: | E4: 90.76433121
A5: Owned land
A6: Dryland
E7: Business unit
A8: Income per acre | C8: Yield | D8: Price | E8: total
A9: Hay | B9: tons | C9: 3 | D9: 90 | E9: 270
A10: Baleage or silage | B10: bales | C10: 0 | D10: 0 | E10: 0
A11: Grazing | B11: AUMs | C11: 1 | D11: 15 | E11: 15
A12: Seed | B12: lbs | C12: 0 | D12: 0 | E12: 0
A13: Other income | E13: 0
A14: Total income per acre | E14: 285
A16: Operating costs per acre
A17: Seed | E17: 0
A18: Fertilizer | E18: 60.78
A19: Nitrogen | D19: 16
A20: Phosphorus | D20: 17.48
A21: Potassium | D21: 16.8
A22: Other amendments | D22: 10.5
A23: Crop protection | E23: 0
A24: Herbicide | D24: 0
A25: Insecticide-fungicide | D25: 0
A26: Crop supplies, storage | E26: 11.5
A27: Crop consulting | E27: 0
A28: Custom hire and rental | E28: 24.2
A29: Machinery fuel and irrigation energy | E29: 5.468550926
A30: Machinery repairs and maintenance | E30: 11.89607307
A31: Operator and hired labor | E31: 10.3912003
A32: Other expense | E32: 0
A33: Operating interest | E33: 2.795306047
A34: Operating costs per acre | E34: 127.0311303
A36: Ownership costs per acre1
A37: Farm business overhead | E37: 5.625
A38: Machinery overhead | E38: 8.735650663
A39: Machinery depreciation | E39: 12.75613785
A40: Real estate charge | E40: 57
A41: Ownership costs per acre | E41: 84.11678851
A43: Total costs per acre | E43: 211.1479189
A45: Income over operating costs per acre | E45: 157.9688697
A46: Income over total costs per acre | E46: 73.85208114
C48: Operating costs per ton, air-dry basis | E48: 40.455774
C49: Ownership costs per ton, air-dry basis | E49: 26.78878615
C50: Total costs per ton, air-dry basis | E50: 67.24456015
A53: Detailed Report | B53: Production 2021 Fesc-Clover Hay | G53: 2020-10-26
A55: Selected input quantities | B55: per acre | E55: Selected input prices | G55: $ per unit
A56: Forage yield, tons | B56: 3.14 | E56: Farm diesel, per gallon | G56: 2.38
A57: Seeding rate, lbs | B57: 0 | E57: Operating interest, % | G57: 4.5
A58: Nitrogen rate, lbs | B58: 40 | E58: Nitrogen, per lb | G58: 0.4
A59: Phosphorus rate, lbs | B59: 46 | E59: Phosphorus, per lb | G59: 0.38
A60: Potassium rate, lbs | B60: 60 | E60: Potassium, per lb | G60: 0.28
A61: Lime rate, tons | B61: 0.5 | E61: Lime, per ton | G61: 21
A62: Sum of allocated labor, hours | B62: 0.5702992541 | E62: Skilled labor, per hour | G62: 21
A63: Irrigation, inches | B63: 0 | E63: Land value, per acre | G63: 3000
B66: Labor | C66: Fuel | D66: Operating | E66: Ownership | F66: Total
B67: Hours | C67: Gallons | D67: Costs2 | E67: Costs3 | F67: Costs | G67: Trips
A68: Machine activity (not custom) | B68: per acre | C68: per acre | D68: $ per acre | E68: $ per acre | F68: $ per acre | G68: per acre
A69: Disk mower-conditioner (9 ft); 130 MFWD | B69: 0.1762820513 | C69: 1.008333333 | D69: 7.897119313 | E69: 8.897087551 | F69: 16.79420686 | G69: 1
A70: Wheel rake (2-16'); 75 HP | B70: 0.03819709702 | C70: 0.1260504202 | D70: 1.338483575 | E70: 2.530481283 | F70: 3.868964859 | G70: 1
A71: Round baler, net wrap (1500 lb); 130 MFWD | B71: 0.1058201058 | C71: 0.6052910053 | D71: 12.43223704 | E71: 6.755079365 | F71: 19.1873164 | G71: 1
A72: Pickup truck | C72: 0.5208333333 | D72: 2.212984375 | E72: 3.309140313 | F72: 5.522124687
A73: Total | B73: 0.3202992541 | C73: 2.260508092 | D73: 23.8808243 | E73: 21.49178851 | F73: 45.37261281 | G73: 3
A102: 1 Farm business overhead includes liability insurance, utilities, accounting, etc. Machinery overhead is the sum of opportunity interest,
A103: property taxes, insurance, and housing. Machinery depreciation is a market value decline due to aging and usage. Thus, a portion of
A104: depreciation should be considered an operating costs for some decisions. Real estate charge includes land, improvements, taxes.
A105: Economic costs may differ from rental rates.
A106: 2 Machinery operating cost is the sum of fuel, repairs, maintenance, and the value of labor.
A107: 3 Machinery ownership cost is the sum of machinery overhead and depreciation (see page 1).
A1000: Start
A1001: establishment-82506 | B1001: 2
A1002: harvestashay-82506 | B1002: TRUE
A1003: harvestashaylage-82506 | B1003: FALSE
A1004: harvestaspasture-82506 | B1004: TRUE
A1005: harvestasseed-82506 | B1005: FALSE
A1006: yield-1-83106 | B1006: 1
A1007: yield-2-83106 | B1007: 2
A1008: yield-3-83106 | B1008: 2
A1009: irrigation2-22706 | B1009: 2
A1010: leasenum-22706 | B1010: 1
A1011: 40hp-22706 | B1011: FALSE
A1012: 60hp-22706 | B1012: FALSE
A1013: 75hp-22706 | B1013: TRUE
A1014: 105twd-22706 | B1014: FALSE
A1015: 140twd-22706 | B1015: FALSE
A1016: 105mfwd-22706 | B1016: FALSE
A1017: 130mfwd-22706 | B1017: TRUE
A1018: 160mfwd-22706 | B1018: FALSE
A1019: 200mfwd-22706 | B1019: FALSE
A1020: 225mfwd-22706 | B1020: FALSE
A1021: 2604wd-22706 | B1021: FALSE
A1022: 3104wd-22706 | B1022: FALSE
A1023: description-1-22706 | B1023: 2021 Fesc-Clover Hay
A1024: acres-1-22706 | B1024: 160
A1025: receipts-1-22706 | B1025: 3
A1026: receipts-2-22706 | B1026: 0
A1027: receipts-3-22706 | B1027: 0
A1028: receipts-4-22706 | B1028: 0
A1029: receipts-5-22706 | B1029: 1
A1030: receipts-6-22706 | B1030: 280
A1031: receipts-7-82506 | B1031: 0
A1032: receipts-8-82506 | B1032: 0
A1033: receipts-9-82506 | B1033: 90
A1034: receipts-10-82506 | B1034: 0
A1035: receipts-11-82506 | B1035: 15
A1036: receipts-12-82506 | B1036: 0
A1037: seed1-1-22706 | B1037: 0
A1038: seed1-2-22706 | B1038: 0
A1039: seed1-3-22706 | B1039: 0
A1040: seed1-4-22706 | B1040: 0
A1041: seed1-5-22706 | B1041: 0
A1042: seed1-6-22706 | B1042: 0
A1043: seed2-1-22706 | B1043: 0
A1044: seed2-2-22706 | B1044: 0
A1045: seed2-3-22706 | B1045: 0
A1046: seed2-4-22706 | B1046: 0
A1047: seed2-5-22706 | B1047: 0
A1048: fertilizer1-1-22706 | B1048: 0
A1049: fertilizer1-2-22706 | B1049: 40
A1050: fertilizer1-3-22706 | B1050: 0
A1051: fertilizer1-4-22706 | B1051: 46
A1052: fertilizer1-5-22706 | B1052: 60
A1053: fertilizer1-6-22706 | B1053: 0.5
A1054: fertilizer1-7-22706 | B1054: 0
A1055: fertilizer1-8-22706 | B1055: 0
A1056: fertilizer2-1-22706 | B1056: 0
A1057: fertilizer2-2-22706 | B1057: 0.4
A1058: fertilizer2-3-22706 | B1058: 0
A1059: fertilizer2-4-22706 | B1059: 0.38
A1060: fertilizer2-5-22706 | B1060: 0.28
A1061: fertilizer2-6-22706 | B1061: 21
A1062: fertilizer2-7-22706 | B1062: 0
A1063: fertilizer2-8-22706 | B1063: 0
A1064: herbicide1-1-22706 | B1064: 0
A1065: herbicide1-2-22706 | B1065: 0
A1066: herbicide1-3-22706 | B1066: 0
A1067: herbicide1-4-22706 | B1067: 0
A1068: herbicide1-5-22706 | B1068: 0
A1069: herbicide1-6-22706 | B1069: 0
A1070: herbicide1-7-22706 | B1070: 0
A1071: herbicide1-8-22706 | B1071: 0
A1072: herbicide2-1-22706 | B1072: 0
A1073: herbicide2-2-22706 | B1073: 0
A1074: herbicide2-3-22706 | B1074: 0
A1075: herbicide2-4-22706 | B1075: 0
A1076: herbicide2-5-22706 | B1076: 0
A1077: herbicide2-6-22706 | B1077: 0
A1078: herbicide2-7-22706 | B1078: 0
A1079: herbicide2-8-22706 | B1079: 0
A1080: herbicide2-9-22706 | B1080: 0
A1081: insecticide1-1-22706 | B1081: 0
A1082: insecticide1-2-22706 | B1082: 0
A1083: insecticide1-3-22706 | B1083: 0
A1084: insecticide1-4-22706 | B1084: 0
A1085: insecticide1-5-11206 | B1085: 0
A1086: insecticide1-6-11206 | B1086: 0
A1087: insecticide1-7-11206 | B1087: 0
A1088: insecticide2-1-22706 | B1088: 0
A1089: insecticide2-2-22706 | B1089: 0
A1090: insecticide2-3-22706 | B1090: 0
A1091: insecticide2-4-22706 | B1091: 0
A1092: insecticide2-5-22706 | B1092: 0
A1093: insecticide2-6-11206 | B1093: 0
A1094: labor-1-22706 | B1094: 0.25
A1095: labor-2-22706 | B1095: 15.5
A1096: labor-3-22706 | B1096: 21
A1097: irrigation1-1-22706 | B1097: 0
A1098: irrigation1-2-22706 | B1098: 0
A1099: irrigation1-3-22706 | B1099: 0
A1100: land-1-22706 | B1100: 0
A1101: land-2-22706 | B1101: 3000
A1102: land-3-22706 | B1102: 1.9
A1103: land-4-22706 | B1103: 0
A1104: land-5-22706 | B1104: 0
A1105: otheritems1-1-22706 | B1105: 4.5
A1106: otheritems1-2-22706 | B1106: 2.38
A1107: otheritems1-3-22706 | B1107: 2.55
A1108: otheritems1-4-22706 | B1108: 11.5
A1109: otheritems1-5-22706 | B1109: 0
A1110: otheritems1-6-22706 | B1110: 0
A1111: otheritems1-7-22706 | B1111: 0
A1112: otheritems1-8-22706 | B1112: 0
A1113: otheritems1-9-22706 | B1113: 0
A1114: otheritems1-10-22706 | B1114: 0
A1115: overhead-1-22706 | B1115: 0
A1116: overhead-2-22706 | B1116: 0
A1117: overhead-3-22706 | B1117: 9000
A1118: overhead-4-22706 | B1118: 10
A1119: overhead-5-22706 | B1119: 15000
A1120: overhead-6-22706 | B1120: 10
A1121: landlord_share-1-22706 | B1121: 0
A1122: landlord_share-2-22706 | B1122: 0
A1123: landlord_share-3-22706 | B1123: 0
A1124: landlord_share-4-22706 | B1124: 0
A1125: landlord_share-5-22706 | B1125: 0
A1126: landlord_share-6-22706 | B1126: 0
A1127: landlord_share-7-22706 | B1127: 0
A1128: landlord_share-8-22706 | B1128: 0
A1129: landlord_share-9-22706 | B1129: 0
A1130: landlord_share-10-22706 | B1130: 0
A1131: landlord_share-11-22706 | B1131: 0
... 206 more rows

Sheet Est(2021 CS Pasture Estab) (hidden)
A1: Typical | E1: 2020-10-13
A3: 2021 CS Pasture Estab | D3: Yield, tons air-dry: | E3: 0.825
A4: Establishment year | D4: Weighted value per ton, air-dry: | E4: 36.36363636
A5: Owned land
A6: Dryland
E7: Business unit
A8: Income per acre | C8: Yield | D8: Price | E8: total
A9: Hay | B9: lb bales | C9: 0 | D9: 0 | E9: 0
A10: Baleage or silage | B10: tons | C10: 0 | D10: 0 | E10: 0
A11: Grazing | B11: AUMs | C11: 2 | D11: 15 | E11: 30
A12: Seed | B12: lbs | C12: 0 | D12: 0 | E12: 0
A13: Other income | E13: 0
A14: Total income per acre | E14: 30
A16: Operating costs per acre
A17: Seed, orchard+red clover | E17: 33
A18: Fertilizer | E18: 100.9
A19: Nitrogen | D19: 12
A20: Phosphorus | D20: 13.3
A21: Potassium | D21: 12.6
A22: Other amendments | D22: 63
A23: Crop protection | E23: 9.75
A24: Herbicide | D24: 9.75
A25: Insecticide-fungicide | D25: 0
A26: Crop supplies, storage | E26: 4
A27: Crop consulting | E27: 0
A28: Custom hire and rental | E28: 25.2
A29: Machinery fuel and irrigation energy | E29: 5.026809353
A30: Machinery repairs and maintenance | E30: 3.548981616
A31: Operator and hired labor | E31: 12.82548683
A32: Other expense | E32: 0
A33: Operating interest | E33: 4.37065375
A34: Operating costs per acre | E34: 198.6219315
A36: Ownership costs per acre1
A37: Farm business overhead | E37: 5.625
A38: Machinery overhead | E38: 7.004468281
A39: Machinery depreciation | E39: 10.40535126
A40: Real estate charge | E40: 43.7
A41: Ownership costs per acre | E41: 66.73481954
A43: Total costs per acre | E43: 265.3567511
A45: Income over operating costs per acre | E45: -168.6219315
A46: Income over total costs per acre | E46: -235.3567511
C48: Operating costs per ton, air-dry basis | E48: 240.7538564
C49: Ownership costs per ton, air-dry basis | E49: 80.89069035
C50: Total costs per ton, air-dry basis | E50: 321.6445468
A53: Detailed Report | B53: Establishment year 2021 CS Pasture Estab | G53: 2020-10-13
A55: Selected input quantities | B55: per acre | E55: Selected input prices | G55: $ per unit
A56: Forage yield, tons | B56: 0.825 | E56: Farm diesel, per gallon | G56: 2.38
A57: Seeding rate, lbs | B57: 14 | E57: Operating interest, % | G57: 4.5
A58: Nitrogen rate, lbs | B58: 30 | E58: Nitrogen, per lb | G58: 0.4
A59: Phosphorus rate, lbs | B59: 35 | E59: Phosphorus, per lb | G59: 0.38
A60: Potassium rate, lbs | B60: 45 | E60: Potassium, per lb | G60: 0.28
A61: Lime rate, tons | B61: 3 | E61: Lime, per ton | G61: 21
A62: Sum of allocated labor, hours | B62: 0.7716903944 | E62: Skilled labor, per hour | G62: 21
A63: Irrigation, inches | B63: 0 | E63: Land value, per acre | G63: 2300
B66: Labor | C66: Fuel | D66: Operating | E66: Ownership | F66: Total
B67: Hours | C67: Gallons | D67: Costs2 | E67: Costs3 | F67: Costs | G67: Trips
A68: Machine activity (not custom) | B68: per acre | C68: per acre | D68: $ per acre | E68: $ per acre | F68: $ per acre | G68: per acre
A69: Rent, No-till drill (15 ft); 130 MFWD | B69: 0.1571428571 | C69: 0.8988571429 | D69: 18.552172 | E69: 5.294142857 | F69: 23.84631486 | G69: 1
A70: Rotary mower (12 ft); 130 MFWD | B70: 0.1145475372 | C70: 0.6552119129 | D70: 4.88612142 | E70: 8.809106529 | F70: 13.69522795 | G70: 1
A71: Pickup truck | C71: 0.5208333333 | D71: 2.212984375 | E71: 3.306570156 | F71: 5.519554531
A72: Total | B72: 0.2716903944 | C72: 2.074902389 | D72: 25.6512778 | E72: 17.40981954 | F72: 43.06109734 | G72: 2
A102: 1 Farm business overhead includes liability insurance, utilities, accounting, etc. Machinery overhead is the sum of opportunity interest,
A103: property taxes, insurance, and housing. Machinery depreciation is a market value decline due to aging and usage. Thus, a portion of
A104: depreciation should be considered an operating costs for some decisions. Real estate charge includes land, improvements, taxes.
A105: Economic costs may differ from rental rates.
A106: 2 Machinery operating cost is the sum of fuel, repairs, maintenance, and the value of labor.
A107: 3 Machinery ownership cost is the sum of machinery overhead and depreciation (see page 1).
A1000: Start
A1001: establishment-82506 | B1001: 1
A1002: harvestashay-82506 | B1002: FALSE
A1003: harvestashaylage-82506 | B1003: FALSE
A1004: harvestaspasture-82506 | B1004: TRUE
A1005: harvestasseed-82506 | B1005: FALSE
A1006: yield-1-83106 | B1006: 2
A1007: yield-2-83106 | B1007: 1
A1008: yield-3-83106 | B1008: 2
A1009: irrigation2-22706 | B1009: 2
A1010: leasenum-22706 | B1010: 1
A1011: 40hp-22706 | B1011: FALSE
A1012: 60hp-22706 | B1012: FALSE
A1013: 75hp-22706 | B1013: FALSE
A1014: 105twd-22706 | B1014: FALSE
A1015: 140twd-22706 | B1015: FALSE
A1016: 105mfwd-22706 | B1016: FALSE
A1017: 130mfwd-22706 | B1017: TRUE
A1018: 160mfwd-22706 | B1018: FALSE
A1019: 200mfwd-22706 | B1019: FALSE
A1020: 225mfwd-22706 | B1020: FALSE
A1021: 2604wd-22706 | B1021: FALSE
A1022: 3104wd-22706 | B1022: FALSE
A1023: description-1-22706 | B1023: 2021 CS Pasture Estab
A1024: acres-1-22706 | B1024: 80
A1025: receipts-1-22706 | B1025: 0
A1026: receipts-2-22706 | B1026: 0
A1027: receipts-3-22706 | B1027: 0
A1028: receipts-4-22706 | B1028: 0
A1029: receipts-5-22706 | B1029: 2
A1030: receipts-6-22706 | B1030: 825
A1031: receipts-7-82506 | B1031: 0
A1032: receipts-8-82506 | B1032: 0
A1033: receipts-9-82506 | B1033: 0
A1034: receipts-10-82506 | B1034: 0
A1035: receipts-11-82506 | B1035: 15
A1036: receipts-12-82506 | B1036: 0
A1037: seed1-1-22706 | B1037: 6
A1038: seed1-2-22706 | B1038: 8
A1039: seed1-3-22706 | B1039: 0
A1040: seed1-4-22706 | B1040: 0
A1041: seed1-5-22706 | B1041: 0
A1042: seed1-6-22706 | B1042: orchard+red clover
A1043: seed2-1-22706 | B1043: 2.3
A1044: seed2-2-22706 | B1044: 2.4
A1045: seed2-3-22706 | B1045: 0
A1046: seed2-4-22706 | B1046: 0
A1047: seed2-5-22706 | B1047: 0
A1048: fertilizer1-1-22706 | B1048: 0
A1049: fertilizer1-2-22706 | B1049: 30
A1050: fertilizer1-3-22706 | B1050: 0
A1051: fertilizer1-4-22706 | B1051: 35
A1052: fertilizer1-5-22706 | B1052: 45
A1053: fertilizer1-6-22706 | B1053: 3
A1054: fertilizer1-7-22706 | B1054: 0
A1055: fertilizer1-8-22706 | B1055: 0
A1056: fertilizer2-1-22706 | B1056: 0
A1057: fertilizer2-2-22706 | B1057: 0.4
A1058: fertilizer2-3-22706 | B1058: 0
A1059: fertilizer2-4-22706 | B1059: 0.38
A1060: fertilizer2-5-22706 | B1060: 0.28
A1061: fertilizer2-6-22706 | B1061: 21
A1062: fertilizer2-7-22706 | B1062: 0
A1063: fertilizer2-8-22706 | B1063: 0
A1064: herbicide1-1-22706 | B1064: 0
A1065: herbicide1-2-22706 | B1065: 1
A1066: herbicide1-3-22706 | B1066: 0
A1067: herbicide1-4-22706 | B1067: 0
A1068: herbicide1-5-22706 | B1068: 0
A1069: herbicide1-6-22706 | B1069: 0
A1070: herbicide1-7-22706 | B1070: 0
A1071: herbicide1-8-22706 | B1071: 0
A1072: herbicide2-1-22706 | B1072: 0
A1073: herbicide2-2-22706 | B1073: 9.75
A1074: herbicide2-3-22706 | B1074: 0
A1075: herbicide2-4-22706 | B1075: 0
A1076: herbicide2-5-22706 | B1076: 0
A1077: herbicide2-6-22706 | B1077: 0
A1078: herbicide2-7-22706 | B1078: 0
A1079: herbicide2-8-22706 | B1079: 0
A1080: herbicide2-9-22706 | B1080: 0
A1081: insecticide1-1-22706 | B1081: 0
A1082: insecticide1-2-22706 | B1082: 0
A1083: insecticide1-3-22706 | B1083: 0
A1084: insecticide1-4-22706 | B1084: 0
A1085: insecticide1-5-11206 | B1085: 0
A1086: insecticide1-6-11206 | B1086: 0
A1087: insecticide1-7-11206 | B1087: 0
A1088: insecticide2-1-22706 | B1088: 0
A1089: insecticide2-2-22706 | B1089: 0
A1090: insecticide2-3-22706 | B1090: 0
A1091: insecticide2-4-22706 | B1091: 0
A1092: insecticide2-5-22706 | B1092: 0
A1093: insecticide2-6-11206 | B1093: 0
A1094: labor-1-22706 | B1094: 0.5
A1095: labor-2-22706 | B1095: 15.5
A1096: labor-3-22706 | B1096: 21
A1097: irrigation1-1-22706 | B1097: 0
A1098: irrigation1-2-22706 | B1098: 0
A1099: irrigation1-3-22706 | B1099: 0
A1100: land-1-22706 | B1100: 0
A1101: land-2-22706 | B1101: 2300
A1102: land-3-22706 | B1102: 1.9
A1103: land-4-22706 | B1103: 0
A1104: land-5-22706 | B1104: 0
A1105: otheritems1-1-22706 | B1105: 4.5
A1106: otheritems1-2-22706 | B1106: 2.38
A1107: otheritems1-3-22706 | B1107: 2.55
A1108: otheritems1-4-22706 | B1108: 4
A1109: otheritems1-5-22706 | B1109: 0
A1110: otheritems1-6-22706 | B1110: 0
A1111: otheritems1-7-22706 | B1111: 0
A1112: otheritems1-8-22706 | B1112: 0
A1113: otheritems1-9-22706 | B1113: 0
A1114: otheritems1-10-22706 | B1114: 0
A1115: overhead-1-22706 | B1115: 0
A1116: overhead-2-22706 | B1116: 0
A1117: overhead-3-22706 | B1117: 9000
A1118: overhead-4-22706 | B1118: 5
A1119: overhead-5-22706 | B1119: 15000
A1120: overhead-6-22706 | B1120: 5
A1121: landlord_share-1-22706 | B1121: 0
A1122: landlord_share-2-22706 | B1122: 0
A1123: landlord_share-3-22706 | B1123: 0
A1124: landlord_share-4-22706 | B1124: 0
A1125: landlord_share-5-22706 | B1125: 0
A1126: landlord_share-6-22706 | B1126: 0
A1127: landlord_share-7-22706 | B1127: 0
A1128: landlord_share-8-22706 | B1128: 0
A1129: landlord_share-9-22706 | B1129: 0
A1130: landlord_share-10-22706 | B1130: 0
A1131: landlord_share-11-22706 | B1131: 0
A1132: landlord_share-12-22706 | B1132: 0
... 205 more rows

Sheet Prod(2021 Alfalfa Baleage) (hidden)
A1: Typical | E1: 2020-10-26
A3: 2021 Alfalfa Baleage | D3: Yield, tons air-dry: | E3: 5
A4: Production | D4: Weighted value per ton, air-dry: | E4: 162
A5: Owned land
A6: Dryland
E7: Business unit
A8: Income per acre | C8: Yield | D8: Price | E8: total
A9: Hay | B9: lb bales | C9: 0 | D9: 0 | E9: 0
A10: Baleage or silage | B10: tons | C10: 9 | D10: 90 | E10: 810
A11: Grazing | B11: AUMs | C11: 0 | D11: 0 | E11: 0
A12: Seed | B12: lbs | C12: 0 | D12: 0 | E12: 0
A13: Other income | E13: 0
A14: Total income per acre | E14: 810
A16: Operating costs per acre
A17: Seed | E17: 0
A18: Fertilizer | E18: 82.6
A19: Nitrogen | D19: 0
A20: Phosphorus | D20: 26.6
A21: Potassium | D21: 56
A22: Other amendments | D22: 0
A23: Crop protection | E23: 16
A24: Herbicide | D24: 0
A25: Insecticide-fungicide | D25: 16
A26: Crop supplies, storage | E26: 100
A27: Crop consulting | E27: 0
A28: Custom hire and rental | E28: 48.4
A29: Machinery fuel and irrigation energy | E29: 32.38213244
A30: Machinery repairs and maintenance | E30: 48.96439189
A31: Operator and hired labor | E31: 65.44486521
A32: Other expense | E32: 0
A33: Operating interest | E33: 8.860306265
A34: Operating costs per acre | E34: 402.6516958
A36: Ownership costs per acre1
A37: Farm business overhead | E37: 11.25
A38: Machinery overhead | E38: 30.9345818
A39: Machinery depreciation | E39: 63.05583703
A40: Real estate charge | E40: 105
A41: Ownership costs per acre | E41: 210.2404188
A43: Total costs per acre | E43: 612.8921146
A45: Income over operating costs per acre | E45: 407.3483042
A46: Income over total costs per acre | E46: 197.1078854
C48: Operating costs per ton, air-dry basis | E48: 80.53033916
C49: Ownership costs per ton, air-dry basis | E49: 42.04808377
C50: Total costs per ton, air-dry basis | E50: 122.5784229
A53: Detailed Report | B53: Production 2021 Alfalfa Baleage | G53: 2020-10-26
A55: Selected input quantities | B55: per acre | E55: Selected input prices | G55: $ per unit
A56: Forage yield, tons | B56: 5 | E56: Farm diesel, per gallon | G56: 2.38
A57: Seeding rate, lbs | B57: 0 | E57: Operating interest, % | G57: 4.5
A58: Nitrogen rate, lbs | B58: 0 | E58: Nitrogen, per lb | G58: 0
A59: Phosphorus rate, lbs | B59: 70 | E59: Phosphorus, per lb | G59: 0.38
A60: Potassium rate, lbs | B60: 200 | E60: Potassium, per lb | G60: 0.28
A61: Lime rate, tons | B61: 0 | E61: Lime, per ton | G61: 0
A62: Sum of allocated labor, hours | B62: 3.706438159 | E62: Skilled labor, per hour | G62: 21
A63: Irrigation, inches | B63: 0 | E63: Land value, per acre | G63: 3000
B66: Labor | C66: Fuel | D66: Operating | E66: Ownership | F66: Total
B67: Hours | C67: Gallons | D67: Costs2 | E67: Costs3 | F67: Costs | G67: Trips
A68: Machine activity (not custom) | B68: per acre | C68: per acre | D68: $ per acre | E68: $ per acre | F68: $ per acre | G68: per acre
A69: Boom sprayer (90 ft); 105 TWD | B69: 0.04339336082 | C69: 0.2100238663 | D69: 2.580398351 | E69: 4.284760252 | F69: 6.865158603 | G69: 2
A70: Disk mower-conditioner (9 ft); 105 TWD | B70: 0.7051282051 | C70: 3.412820513 | D70: 28.84365289 | E70: 18.18066372 | F70: 47.02431662 | G70: 4
A71: Wheel rake (2-16'); 75 HP | B71: 0.1527883881 | C71: 0.5042016807 | D71: 5.353934301 | E71: 7.122406417 | F71: 12.47634072 | G71: 4
A72: Round baler, silage kit (1500 lb); 105 TWD | B72: 0.7051282051 | C72: 3.412820513 | D72: 34.00428525 | E72: 28.03930782 | F72: 62.04359306 | G72: 4
A73: Rd bale wrapper haylage; 75 HP | B73: 1.5 | C73: 4.95 | D73: 62.28315 | E73: 29.745 | F73: 92.02815 | G73: 1
A74: Pickup truck | C74: 1.041666667 | D74: 4.42596875 | E74: 6.618280625 | F74: 11.04424937
A75: Total | B75: 3.106438159 | C75: 13.53153324 | D75: 137.4913895 | E75: 93.99041883 | F75: 231.4818084 | G75: 15
A102: 1 Farm business overhead includes liability insurance, utilities, accounting, etc. Machinery overhead is the sum of opportunity interest,
A103: property taxes, insurance, and housing. Machinery depreciation is a market value decline due to aging and usage. Thus, a portion of
A104: depreciation should be considered an operating costs for some decisions. Real estate charge includes land, improvements, taxes.
A105: Economic costs may differ from rental rates.
A106: 2 Machinery operating cost is the sum of fuel, repairs, maintenance, and the value of labor.
A107: 3 Machinery ownership cost is the sum of machinery overhead and depreciation (see page 1).
A1000: Start
A1001: establishment-82506 | B1001: 2
A1002: harvestashay-82506 | B1002: FALSE
A1003: harvestashaylage-82506 | B1003: TRUE
A1004: harvestaspasture-82506 | B1004: FALSE
A1005: harvestasseed-82506 | B1005: FALSE
A1006: yield-1-83106 | B1006: 2
A1007: yield-2-83106 | B1007: 1
A1008: yield-3-83106 | B1008: 2
A1009: irrigation2-22706 | B1009: 2
A1010: leasenum-22706 | B1010: 1
A1011: 40hp-22706 | B1011: FALSE
A1012: 60hp-22706 | B1012: FALSE
A1013: 75hp-22706 | B1013: TRUE
A1014: 105twd-22706 | B1014: TRUE
A1015: 140twd-22706 | B1015: FALSE
A1016: 105mfwd-22706 | B1016: FALSE
A1017: 130mfwd-22706 | B1017: FALSE
A1018: 160mfwd-22706 | B1018: FALSE
A1019: 200mfwd-22706 | B1019: FALSE
A1020: 225mfwd-22706 | B1020: FALSE
A1021: 2604wd-22706 | B1021: FALSE
A1022: 3104wd-22706 | B1022: FALSE
A1023: description-1-22706 | B1023: 2021 Alfalfa Baleage
A1024: acres-1-22706 | B1024: 80
A1025: receipts-1-22706 | B1025: 0
A1026: receipts-2-22706 | B1026: 0
A1027: receipts-3-22706 | B1027: 9
A1028: receipts-4-22706 | B1028: 0.5
A1029: receipts-5-22706 | B1029: 0
A1030: receipts-6-22706 | B1030: 0
A1031: receipts-7-82506 | B1031: 0
A1032: receipts-8-82506 | B1032: 0
A1033: receipts-9-82506 | B1033: 0
A1034: receipts-10-82506 | B1034: 90
A1035: receipts-11-82506 | B1035: 0
A1036: receipts-12-82506 | B1036: 0
A1037: seed1-1-22706 | B1037: 0
A1038: seed1-2-22706 | B1038: 0
A1039: seed1-3-22706 | B1039: 0
A1040: seed1-4-22706 | B1040: 0
A1041: seed1-5-22706 | B1041: 0
A1042: seed1-6-22706 | B1042: 0
A1043: seed2-1-22706 | B1043: 0
A1044: seed2-2-22706 | B1044: 0
A1045: seed2-3-22706 | B1045: 0
A1046: seed2-4-22706 | B1046: 0
A1047: seed2-5-22706 | B1047: 0
A1048: fertilizer1-1-22706 | B1048: 0
A1049: fertilizer1-2-22706 | B1049: 0
A1050: fertilizer1-3-22706 | B1050: 0
A1051: fertilizer1-4-22706 | B1051: 70
A1052: fertilizer1-5-22706 | B1052: 200
A1053: fertilizer1-6-22706 | B1053: 0
A1054: fertilizer1-7-22706 | B1054: 0
A1055: fertilizer1-8-22706 | B1055: 0
A1056: fertilizer2-1-22706 | B1056: 0
A1057: fertilizer2-2-22706 | B1057: 0
A1058: fertilizer2-3-22706 | B1058: 0
A1059: fertilizer2-4-22706 | B1059: 0.38
A1060: fertilizer2-5-22706 | B1060: 0.28
A1061: fertilizer2-6-22706 | B1061: 0
A1062: fertilizer2-7-22706 | B1062: 0
A1063: fertilizer2-8-22706 | B1063: 0
A1064: herbicide1-1-22706 | B1064: 0
A1065: herbicide1-2-22706 | B1065: 0
A1066: herbicide1-3-22706 | B1066: 0
A1067: herbicide1-4-22706 | B1067: 0
A1068: herbicide1-5-22706 | B1068: 0
A1069: herbicide1-6-22706 | B1069: 0
A1070: herbicide1-7-22706 | B1070: 0
A1071: herbicide1-8-22706 | B1071: 0
A1072: herbicide2-1-22706 | B1072: 0
A1073: herbicide2-2-22706 | B1073: 0
A1074: herbicide2-3-22706 | B1074: 0
A1075: herbicide2-4-22706 | B1075: 0
A1076: herbicide2-5-22706 | B1076: 0
A1077: herbicide2-6-22706 | B1077: 0
A1078: herbicide2-7-22706 | B1078: 0
A1079: herbicide2-8-22706 | B1079: 0
A1080: herbicide2-9-22706 | B1080: 0
A1081: insecticide1-1-22706 | B1081: 2
A1082: insecticide1-2-22706 | B1082: 0
A1083: insecticide1-3-22706 | B1083: 0
A1084: insecticide1-4-22706 | B1084: 0
A1085: insecticide1-5-11206 | B1085: 0
A1086: insecticide1-6-11206 | B1086: 0
A1087: insecticide1-7-11206 | B1087: 0
A1088: insecticide2-1-22706 | B1088: 8
A1089: insecticide2-2-22706 | B1089: 0
A1090: insecticide2-3-22706 | B1090: 0
A1091: insecticide2-4-22706 | B1091: 0
A1092: insecticide2-5-22706 | B1092: 0
A1093: insecticide2-6-11206 | B1093: 0
A1094: labor-1-22706 | B1094: 0.6
A1095: labor-2-22706 | B1095: 15.5
A1096: labor-3-22706 | B1096: 21
A1097: irrigation1-1-22706 | B1097: 0
A1098: irrigation1-2-22706 | B1098: 0
A1099: irrigation1-3-22706 | B1099: 0
A1100: land-1-22706 | B1100: 0
A1101: land-2-22706 | B1101: 3000
A1102: land-3-22706 | B1102: 3.5
A1103: land-4-22706 | B1103: 0
A1104: land-5-22706 | B1104: 0
A1105: otheritems1-1-22706 | B1105: 4.5
A1106: otheritems1-2-22706 | B1106: 2.38
A1107: otheritems1-3-22706 | B1107: 2.55
A1108: otheritems1-4-22706 | B1108: 100
A1109: otheritems1-5-22706 | B1109: 0
A1110: otheritems1-6-22706 | B1110: 0
A1111: otheritems1-7-22706 | B1111: 0
A1112: otheritems1-8-22706 | B1112: 0
A1113: otheritems1-9-22706 | B1113: 0
A1114: otheritems1-10-22706 | B1114: 0
A1115: overhead-1-22706 | B1115: 0
A1116: overhead-2-22706 | B1116: 0
A1117: overhead-3-22706 | B1117: 9000
A1118: overhead-4-22706 | B1118: 10
A1119: overhead-5-22706 | B1119: 15000
A1120: overhead-6-22706 | B1120: 10
A1121: landlord_share-1-22706 | B1121: 0
A1122: landlord_share-2-22706 | B1122: 0
A1123: landlord_share-3-22706 | B1123: 0
A1124: landlord_share-4-22706 | B1124: 0
A1125: landlord_share-5-22706 | B1125: 0
A1126: landlord_share-6-22706 | B1126: 0
A1127: landlord_share-7-22706 | B1127: 0
A1128: landlord_share-8-22706 | B1128: 0
A1129: landlord_share-9-22706 | B1129: 0
... 208 more rows

Sheet Prod(2021 Alfalfa Small Bal...) (hidden)
A1: Typical | E1: 2020-10-26
A3: 2021 Alfalfa Small Bales | D3: Yield, tons air-dry: | E3: 5.0001
A4: Production | D4: Weighted value per ton, air-dry: | E4: 200
A5: Owned land
A6: Dryland
E7: Business unit
A8: Income per acre | C8: Yield | D8: Price | E8: total
A9: Hay | B9: 60 lb bales | C9: 166.67 | D9: 6 | E9: 1000.02
A10: Baleage or silage | B10: bales | C10: 0 | D10: 0 | E10: 0
A11: Grazing | B11: AUMs | C11: 0 | D11: 0 | E11: 0
A12: Seed | B12: lbs | C12: 0 | D12: 0 | E12: 0
A13: Other income | E13: 0
A14: Total income per acre | E14: 1000.02
A16: Operating costs per acre
A17: Seed | E17: 0
A18: Fertilizer | E18: 82.6
A19: Nitrogen | D19: 0
A20: Phosphorus | D20: 26.6
A21: Potassium | D21: 56
A22: Other amendments | D22: 0
A23: Crop protection | E23: 16
A24: Herbicide | D24: 0
A25: Insecticide-fungicide | D25: 16
A26: Crop supplies, storage | E26: 12
A27: Crop consulting | E27: 0
A28: Custom hire and rental | E28: 161.0695
A29: Machinery fuel and irrigation energy | E29: 22.55474305
A30: Machinery repairs and maintenance | E30: 29.7682697
A31: Operator and hired labor | E31: 52.77958376
A32: Other expense | E32: 0
A33: Operating interest | E33: 8.477372172
A34: Operating costs per acre | E34: 385.2494687
A36: Ownership costs per acre1
A37: Farm business overhead | E37: 11.25
A38: Machinery overhead | E38: 13.02006975
A39: Machinery depreciation | E39: 57.27834889
A40: Real estate charge | E40: 105
A41: Ownership costs per acre | E41: 186.5484186
A43: Total costs per acre | E43: 571.7978873
A45: Income over operating costs per acre | E45: 614.7705313
A46: Income over total costs per acre | E46: 428.2221127
C48: Operating costs per ton, air-dry basis | E48: 77.04835277
C49: Ownership costs per ton, air-dry basis | E49: 37.30893755
C50: Total costs per ton, air-dry basis | E50: 114.3572903
A53: Detailed Report | B53: Production 2021 Alfalfa Small Bales | G53: 2020-10-26
A55: Selected input quantities | B55: per acre | E55: Selected input prices | G55: $ per unit
A56: Forage yield, tons | B56: 5.0001 | E56: Farm diesel, per gallon | G56: 2.38
A57: Seeding rate, lbs | B57: 0 | E57: Operating interest, % | G57: 4.5
A58: Nitrogen rate, lbs | B58: 0 | E58: Nitrogen, per lb | G58: 0
A59: Phosphorus rate, lbs | B59: 70 | E59: Phosphorus, per lb | G59: 0.38
A60: Potassium rate, lbs | B60: 200 | E60: Potassium, per lb | G60: 0.28
A61: Lime rate, tons | B61: 0 | E61: Lime, per ton | G61: 0
A62: Sum of allocated labor, hours | B62: 2.738656591 | E62: Skilled labor, per hour | G62: 21
A63: Irrigation, inches | B63: 0 | E63: Land value, per acre | G63: 3000
B66: Labor | C66: Fuel | D66: Operating | E66: Ownership | F66: Total
B67: Hours | C67: Gallons | D67: Costs2 | E67: Costs3 | F67: Costs | G67: Trips
A68: Machine activity (not custom) | B68: per acre | C68: per acre | D68: $ per acre | E68: $ per acre | F68: $ per acre | G68: per acre
A69: Boom sprayer (90 ft); 75 HP | B69: 0.04339336082 | C69: 0.1431980907 | D69: 2.324339336 | E69: 3.891210675 | F69: 6.215550011 | G69: 2
A70: Swather (haybine) mower-conditioner (9 ft); 105 MFWD | B70: 0.9174311927 | C70: 4.23853211 | D70: 38.62251376 | E70: 35.00816514 | F70: 73.6306789 | G70: 4
A71: Hay tedder (8.5 ft); 60 HP | B71: 0.2076124567 | C71: 0.5480968858 | D71: 5.029977894 | E71: 2.650013748 | F71: 7.679991642 | G71: 2
A72: Wheel rake (2-16'); 60 HP | B72: 0.1527883881 | C72: 0.4033613445 | D72: 4.961815126 | E72: 6.711023682 | F72: 11.67283881 | G72: 4
A73: Small square baler; 75 HP | B73: 0.9174311927 | C73: 3.027522936 | D73: 41.98798165 | E73: 15.41972477 | F73: 57.40770642 | G73: 4
A74: Pickup truck | C74: 1.041666667 | D74: 4.42596875 | E74: 6.618280625 | F74: 11.04424937
A75: Total | B75: 2.238656591 | C75: 9.402378034 | D75: 97.35259652 | E75: 70.29841864 | F75: 167.6510152 | G75: 16
A102: 1 Farm business overhead includes liability insurance, utilities, accounting, etc. Machinery overhead is the sum of opportunity interest,
A103: property taxes, insurance, and housing. Machinery depreciation is a market value decline due to aging and usage. Thus, a portion of
A104: depreciation should be considered an operating costs for some decisions. Real estate charge includes land, improvements, taxes.
A105: Economic costs may differ from rental rates.
A106: 2 Machinery operating cost is the sum of fuel, repairs, maintenance, and the value of labor.
A107: 3 Machinery ownership cost is the sum of machinery overhead and depreciation (see page 1).
A1000: Start
A1001: establishment-82506 | B1001: 2
A1002: harvestashay-82506 | B1002: TRUE
A1003: harvestashaylage-82506 | B1003: FALSE
A1004: harvestaspasture-82506 | B1004: FALSE
A1005: harvestasseed-82506 | B1005: FALSE
A1006: yield-1-83106 | B1006: 2
A1007: yield-2-83106 | B1007: 2
A1008: yield-3-83106 | B1008: 2
A1009: irrigation2-22706 | B1009: 2
A1010: leasenum-22706 | B1010: 1
A1011: 40hp-22706 | B1011: FALSE
A1012: 60hp-22706 | B1012: TRUE
A1013: 75hp-22706 | B1013: TRUE
A1014: 105twd-22706 | B1014: FALSE
A1015: 140twd-22706 | B1015: FALSE
A1016: 105mfwd-22706 | B1016: TRUE
A1017: 130mfwd-22706 | B1017: FALSE
A1018: 160mfwd-22706 | B1018: FALSE
A1019: 200mfwd-22706 | B1019: FALSE
A1020: 225mfwd-22706 | B1020: FALSE
A1021: 2604wd-22706 | B1021: FALSE
A1022: 3104wd-22706 | B1022: FALSE
A1023: description-1-22706 | B1023: 2021 Alfalfa Small Bales
A1024: acres-1-22706 | B1024: 80
A1025: receipts-1-22706 | B1025: 166.67
A1026: receipts-2-22706 | B1026: 60
A1027: receipts-3-22706 | B1027: 0
A1028: receipts-4-22706 | B1028: 0
A1029: receipts-5-22706 | B1029: 0
A1030: receipts-6-22706 | B1030: 0
A1031: receipts-7-82506 | B1031: 0
A1032: receipts-8-82506 | B1032: 0
A1033: receipts-9-82506 | B1033: 6
A1034: receipts-10-82506 | B1034: 0
A1035: receipts-11-82506 | B1035: 0
A1036: receipts-12-82506 | B1036: 0
A1037: seed1-1-22706 | B1037: 0
A1038: seed1-2-22706 | B1038: 0
A1039: seed1-3-22706 | B1039: 0
A1040: seed1-4-22706 | B1040: 0
A1041: seed1-5-22706 | B1041: 0
A1042: seed1-6-22706 | B1042: 0
A1043: seed2-1-22706 | B1043: 0
A1044: seed2-2-22706 | B1044: 0
A1045: seed2-3-22706 | B1045: 0
A1046: seed2-4-22706 | B1046: 0
A1047: seed2-5-22706 | B1047: 0
A1048: fertilizer1-1-22706 | B1048: 0
A1049: fertilizer1-2-22706 | B1049: 0
A1050: fertilizer1-3-22706 | B1050: 0
A1051: fertilizer1-4-22706 | B1051: 70
A1052: fertilizer1-5-22706 | B1052: 200
A1053: fertilizer1-6-22706 | B1053: 0
A1054: fertilizer1-7-22706 | B1054: 0
A1055: fertilizer1-8-22706 | B1055: 0
A1056: fertilizer2-1-22706 | B1056: 0
A1057: fertilizer2-2-22706 | B1057: 0
A1058: fertilizer2-3-22706 | B1058: 0
A1059: fertilizer2-4-22706 | B1059: 0.38
A1060: fertilizer2-5-22706 | B1060: 0.28
A1061: fertilizer2-6-22706 | B1061: 0
A1062: fertilizer2-7-22706 | B1062: 0
A1063: fertilizer2-8-22706 | B1063: 0
A1064: herbicide1-1-22706 | B1064: 0
A1065: herbicide1-2-22706 | B1065: 0
A1066: herbicide1-3-22706 | B1066: 0
A1067: herbicide1-4-22706 | B1067: 0
A1068: herbicide1-5-22706 | B1068: 0
A1069: herbicide1-6-22706 | B1069: 0
A1070: herbicide1-7-22706 | B1070: 0
A1071: herbicide1-8-22706 | B1071: 0
A1072: herbicide2-1-22706 | B1072: 0
A1073: herbicide2-2-22706 | B1073: 0
A1074: herbicide2-3-22706 | B1074: 0
A1075: herbicide2-4-22706 | B1075: 0
A1076: herbicide2-5-22706 | B1076: 0
A1077: herbicide2-6-22706 | B1077: 0
A1078: herbicide2-7-22706 | B1078: 0
A1079: herbicide2-8-22706 | B1079: 0
A1080: herbicide2-9-22706 | B1080: 0
A1081: insecticide1-1-22706 | B1081: 1
A1082: insecticide1-2-22706 | B1082: 1
A1083: insecticide1-3-22706 | B1083: 0
A1084: insecticide1-4-22706 | B1084: 0
A1085: insecticide1-5-11206 | B1085: 0
A1086: insecticide1-6-11206 | B1086: 0
A1087: insecticide1-7-11206 | B1087: 0
A1088: insecticide2-1-22706 | B1088: 8
A1089: insecticide2-2-22706 | B1089: 8
A1090: insecticide2-3-22706 | B1090: 0
A1091: insecticide2-4-22706 | B1091: 0
A1092: insecticide2-5-22706 | B1092: 0
A1093: insecticide2-6-11206 | B1093: 0
A1094: labor-1-22706 | B1094: 0.5
A1095: labor-2-22706 | B1095: 15.5
A1096: labor-3-22706 | B1096: 21
A1097: irrigation1-1-22706 | B1097: 0
A1098: irrigation1-2-22706 | B1098: 0
A1099: irrigation1-3-22706 | B1099: 0
A1100: land-1-22706 | B1100: 0
A1101: land-2-22706 | B1101: 3000
A1102: land-3-22706 | B1102: 3.5
A1103: land-4-22706 | B1103: 0
A1104: land-5-22706 | B1104: 0
A1105: otheritems1-1-22706 | B1105: 4.5
A1106: otheritems1-2-22706 | B1106: 2.38
A1107: otheritems1-3-22706 | B1107: 2.55
A1108: otheritems1-4-22706 | B1108: 12
A1109: otheritems1-5-22706 | B1109: 0
A1110: otheritems1-6-22706 | B1110: 0
A1111: otheritems1-7-22706 | B1111: 0
A1112: otheritems1-8-22706 | B1112: 0
A1113: otheritems1-9-22706 | B1113: 0
A1114: otheritems1-10-22706 | B1114: 0
A1115: overhead-1-22706 | B1115: 0
A1116: overhead-2-22706 | B1116: 0
A1117: overhead-3-22706 | B1117: 9000
A1118: overhead-4-22706 | B1118: 10
A1119: overhead-5-22706 | B1119: 15000
A1120: overhead-6-22706 | B1120: 10
A1121: landlord_share-1-22706 | B1121: 0
A1122: landlord_share-2-22706 | B1122: 0
A1123: landlord_share-3-22706 | B1123: 0
A1124: landlord_share-4-22706 | B1124: 0
A1125: landlord_share-5-22706 | B1125: 0
A1126: landlord_share-6-22706 | B1126: 0
A1127: landlord_share-7-22706 | B1127: 0
A1128: landlord_share-8-22706 | B1128: 0
A1129: landlord_share-9-22706 | B1129: 0
... 208 more rows

Sheet Est(2021 Alfalfa Estab) (hidden)
A1: Typical | E1: 2020-10-26
A3: 2021 Alfalfa Estab | D3: Yield, tons air-dry: | E3: 2.1
A4: Establishment year | D4: Weighted value per ton, air-dry: | E4: 200
A5: Owned land
A6: Dryland
E7: Business unit
A8: Income per acre | C8: Yield | D8: Price | E8: total
A9: Hay | B9: 60 lb bales | C9: 70 | D9: 6 | E9: 420
A10: Baleage or silage | B10: tons | C10: 0 | D10: 0 | E10: 0
A11: Grazing | B11: tons | C11: 0 | D11: 0 | E11: 0
A12: Seed | B12: lbs | C12: 0 | D12: 0 | E12: 0
A13: Other income | E13: 0
A14: Total income per acre | E14: 420
A16: Operating costs per acre
A17: Seed | E17: 43.5
A18: Fertilizer | E18: 114.8
A19: Nitrogen | D19: 0
A20: Phosphorus | D20: 26.6
A21: Potassium | D21: 25.2
A22: Other amendments | D22: 63
A23: Crop protection | E23: 37
A24: Herbicide | D24: 21
A25: Insecticide-fungicide | D25: 16
A26: Crop supplies, storage | E26: 7.5
A27: Crop consulting | E27: 0
A28: Custom hire and rental | E28: 72.7
A29: Machinery fuel and irrigation energy | E29: 18.48192713
A30: Machinery repairs and maintenance | E30: 23.34793942
A31: Operator and hired labor | E31: 43.65282149
A32: Other expense | E32: 0
A33: Operating interest | E33: 8.122110481
A34: Operating costs per acre | E34: 369.1047985
A36: Ownership costs per acre1
A37: Farm business overhead | E37: 11.25
A38: Machinery overhead | E38: 24.29347651
A39: Machinery depreciation | E39: 44.44455267
A40: Real estate charge | E40: 105
A41: Ownership costs per acre | E41: 184.9880292
A43: Total costs per acre | E43: 554.0928277
A45: Income over operating costs per acre | E45: 50.89520148
A46: Income over total costs per acre | E46: -134.0928277
C48: Operating costs per ton, air-dry basis | E48: 175.7641898
C49: Ownership costs per ton, air-dry basis | E49: 88.08953771
C50: Total costs per ton, air-dry basis | E50: 263.8537275
A53: Detailed Report | B53: Establishment year 2021 Alfalfa Estab | G53: 2020-10-26
A55: Selected input quantities | B55: per acre | E55: Selected input prices | G55: $ per unit
A56: Forage yield, tons | B56: 2.1 | E56: Farm diesel, per gallon | G56: 2.38
A57: Seeding rate, lbs | B57: 15 | E57: Operating interest, % | G57: 4.5
A58: Nitrogen rate, lbs | B58: 0 | E58: Nitrogen, per lb | G58: 0
A59: Phosphorus rate, lbs | B59: 70 | E59: Phosphorus, per lb | G59: 0.38
A60: Potassium rate, lbs | B60: 90 | E60: Potassium, per lb | G60: 0.28
A61: Lime rate, tons | B61: 3 | E61: Lime, per ton | G61: 21
A62: Sum of allocated labor, hours | B62: 2.472677254 | E62: Skilled labor, per hour | G62: 21
A63: Irrigation, inches | B63: 0 | E63: Land value, per acre | G63: 3000
B66: Labor | C66: Fuel | D66: Operating | E66: Ownership | F66: Total
B67: Hours | C67: Gallons | D67: Costs2 | E67: Costs3 | F67: Costs | G67: Trips
A68: Machine activity (not custom) | B68: per acre | C68: per acre | D68: $ per acre | E68: $ per acre | F68: $ per acre | G68: per acre
A69: Chisel plow (15 ft); 130 MFWD | B69: 0.1293661061 | C69: 0.7399741268 | D69: 5.462489004 | E69: 9.038344114 | F69: 14.50083312 | G69: 1
A70: Tandem disk (21 ft); 130 MFWD | B70: 0.1636904762 | C70: 0.9363095238 | D70: 7.924881548 | E70: 8.99202381 | F70: 16.91690536 | G70: 2
A71: Roller harrow (12 ft); 105 TWD | B71: 0.1348039216 | C71: 0.6524509804 | D71: 4.760451898 | E71: 5.490355379 | F71: 10.25080728 | G71: 1
A72: No-till drill (15 ft); 130 MFWD | B72: 0.1571428571 | C72: 0.8988571429 | D72: 9.512172 | E72: 15.08414286 | F72: 24.59631486 | G72: 1
A73: Disk mower-conditioner (9 ft); 105 TWD | B73: 0.3525641026 | C73: 1.706410256 | D73: 14.42182645 | E73: 10.82496657 | F73: 25.24679302 | G73: 2
A74: Wheel rake (2-16'); 60 HP | B74: 0.07639419404 | C74: 0.2016806723 | D74: 2.480907563 | E74: 3.820099312 | F74: 6.301006875 | G74: 2
A75: Small square baler; 75 HP | B75: 0.4587155963 | C75: 1.513761468 | D75: 20.99399083 | E75: 8.869816514 | F75: 29.86380734 | G75: 2
A76: Pickup truck | C76: 1.041666667 | D76: 4.42596875 | E76: 6.618280625 | F76: 11.04424937
A77: Total | B77: 1.472677254 | C77: 7.691110837 | D77: 69.98268803 | E77: 68.73802918 | F77: 138.7207172 | G77: 11
A102: 1 Farm business overhead includes liability insurance, utilities, accounting, etc. Machinery overhead is the sum of opportunity interest,
A103: property taxes, insurance, and housing. Machinery depreciation is a market value decline due to aging and usage. Thus, a portion of
A104: depreciation should be considered an operating costs for some decisions. Real estate charge includes land, improvements, taxes.
A105: Economic costs may differ from rental rates.
A106: 2 Machinery operating cost is the sum of fuel, repairs, maintenance, and the value of labor.
A107: 3 Machinery ownership cost is the sum of machinery overhead and depreciation (see page 1).
A1000: Start
A1001: establishment-82506 | B1001: 1
A1002: harvestashay-82506 | B1002: TRUE
A1003: harvestashaylage-82506 | B1003: FALSE
A1004: harvestaspasture-82506 | B1004: FALSE
A1005: harvestasseed-82506 | B1005: FALSE
A1006: yield-1-83106 | B1006: 2
A1007: yield-2-83106 | B1007: 1
A1008: yield-3-83106 | B1008: 1
A1009: irrigation2-22706 | B1009: 2
A1010: leasenum-22706 | B1010: 1
A1011: 40hp-22706 | B1011: FALSE
A1012: 60hp-22706 | B1012: TRUE
A1013: 75hp-22706 | B1013: TRUE
A1014: 105twd-22706 | B1014: TRUE
A1015: 140twd-22706 | B1015: FALSE
A1016: 105mfwd-22706 | B1016: FALSE
A1017: 130mfwd-22706 | B1017: TRUE
A1018: 160mfwd-22706 | B1018: FALSE
A1019: 200mfwd-22706 | B1019: FALSE
A1020: 225mfwd-22706 | B1020: FALSE
A1021: 2604wd-22706 | B1021: FALSE
A1022: 3104wd-22706 | B1022: FALSE
A1023: description-1-22706 | B1023: 2021 Alfalfa Estab
A1024: acres-1-22706 | B1024: 80
A1025: receipts-1-22706 | B1025: 70
A1026: receipts-2-22706 | B1026: 60
A1027: receipts-3-22706 | B1027: 0
A1028: receipts-4-22706 | B1028: 0
A1029: receipts-5-22706 | B1029: 0
A1030: receipts-6-22706 | B1030: 0
A1031: receipts-7-82506 | B1031: 0
A1032: receipts-8-82506 | B1032: 0
A1033: receipts-9-82506 | B1033: 6
A1034: receipts-10-82506 | B1034: 0
A1035: receipts-11-82506 | B1035: 0
A1036: receipts-12-82506 | B1036: 0
A1037: seed1-1-22706 | B1037: 15
A1038: seed1-2-22706 | B1038: 0
A1039: seed1-3-22706 | B1039: 0
A1040: seed1-4-22706 | B1040: 0
A1041: seed1-5-22706 | B1041: 0
A1042: seed1-6-22706 | B1042: 0
A1043: seed2-1-22706 | B1043: 2.9
A1044: seed2-2-22706 | B1044: 0
A1045: seed2-3-22706 | B1045: 0
A1046: seed2-4-22706 | B1046: 0
A1047: seed2-5-22706 | B1047: 0
A1048: fertilizer1-1-22706 | B1048: 0
A1049: fertilizer1-2-22706 | B1049: 0
A1050: fertilizer1-3-22706 | B1050: 0
A1051: fertilizer1-4-22706 | B1051: 70
A1052: fertilizer1-5-22706 | B1052: 90
A1053: fertilizer1-6-22706 | B1053: 3
A1054: fertilizer1-7-22706 | B1054: 0
A1055: fertilizer1-8-22706 | B1055: 0
A1056: fertilizer2-1-22706 | B1056: 0
A1057: fertilizer2-2-22706 | B1057: 0
A1058: fertilizer2-3-22706 | B1058: 0
A1059: fertilizer2-4-22706 | B1059: 0.38
A1060: fertilizer2-5-22706 | B1060: 0.28
A1061: fertilizer2-6-22706 | B1061: 21
A1062: fertilizer2-7-22706 | B1062: 0
A1063: fertilizer2-8-22706 | B1063: 0
A1064: herbicide1-1-22706 | B1064: 0
A1065: herbicide1-2-22706 | B1065: 0
A1066: herbicide1-3-22706 | B1066: 0
A1067: herbicide1-4-22706 | B1067: 1
A1068: herbicide1-5-22706 | B1068: 0
A1069: herbicide1-6-22706 | B1069: 0
A1070: herbicide1-7-22706 | B1070: 0
A1071: herbicide1-8-22706 | B1071: 0
A1072: herbicide2-1-22706 | B1072: 0
A1073: herbicide2-2-22706 | B1073: 0
A1074: herbicide2-3-22706 | B1074: 0
A1075: herbicide2-4-22706 | B1075: 21
A1076: herbicide2-5-22706 | B1076: 0
A1077: herbicide2-6-22706 | B1077: 0
A1078: herbicide2-7-22706 | B1078: 0
A1079: herbicide2-8-22706 | B1079: 0
A1080: herbicide2-9-22706 | B1080: 0
A1081: insecticide1-1-22706 | B1081: 2
A1082: insecticide1-2-22706 | B1082: 0
A1083: insecticide1-3-22706 | B1083: 0
A1084: insecticide1-4-22706 | B1084: 0
A1085: insecticide1-5-11206 | B1085: 0
A1086: insecticide1-6-11206 | B1086: 0
A1087: insecticide1-7-11206 | B1087: 0
A1088: insecticide2-1-22706 | B1088: 8
A1089: insecticide2-2-22706 | B1089: 0
A1090: insecticide2-3-22706 | B1090: 0
A1091: insecticide2-4-22706 | B1091: 0
A1092: insecticide2-5-22706 | B1092: 0
A1093: insecticide2-6-11206 | B1093: 0
A1094: labor-1-22706 | B1094: 1
A1095: labor-2-22706 | B1095: 15.5
A1096: labor-3-22706 | B1096: 21
A1097: irrigation1-1-22706 | B1097: 0
A1098: irrigation1-2-22706 | B1098: 0
A1099: irrigation1-3-22706 | B1099: 0
A1100: land-1-22706 | B1100: 0
A1101: land-2-22706 | B1101: 3000
A1102: land-3-22706 | B1102: 3.5
A1103: land-4-22706 | B1103: 0
A1104: land-5-22706 | B1104: 0
A1105: otheritems1-1-22706 | B1105: 4.5
A1106: otheritems1-2-22706 | B1106: 2.38
A1107: otheritems1-3-22706 | B1107: 2.55
A1108: otheritems1-4-22706 | B1108: 7.5
A1109: otheritems1-5-22706 | B1109: 0
A1110: otheritems1-6-22706 | B1110: 0
A1111: otheritems1-7-22706 | B1111: 0
A1112: otheritems1-8-22706 | B1112: 0
A1113: otheritems1-9-22706 | B1113: 0
A1114: otheritems1-10-22706 | B1114: 0
A1115: overhead-1-22706 | B1115: 0
A1116: overhead-2-22706 | B1116: 0
A1117: overhead-3-22706 | B1117: 9000
A1118: overhead-4-22706 | B1118: 10
A1119: overhead-5-22706 | B1119: 15000
A1120: overhead-6-22706 | B1120: 10
A1121: landlord_share-1-22706 | B1121: 0
A1122: landlord_share-2-22706 | B1122: 0
A1123: landlord_share-3-22706 | B1123: 0
A1124: landlord_share-4-22706 | B1124: 0
A1125: landlord_share-5-22706 | B1125: 0
A1126: landlord_share-6-22706 | B1126: 0
A1127: landlord_share-7-22706 | B1127: 0
... 210 more rows

Sheet Est(2021 Corn Silage) (hidden)
A1: Typical | E1: 2020-10-26
A3: 2021 Corn Silage | D3: Yield, tons air-dry: | E3: 8
A4: Establishment year | D4: Weighted value per ton, air-dry: | E4: 101.25
A5: Owned land
A6: Dryland
E7: Business unit
A8: Income per acre | C8: Yield | D8: Price | E8: total
A9: Hay | B9: tons | C9: 0 | D9: 0 | E9: 0
A10: Baleage or silage | B10: tons | C10: 18 | D10: 45 | E10: 810
A11: Grazing | B11: AUMs | C11: 0 | D11: 0 | E11: 0
A12: Seed | B12: lbs | C12: 0 | D12: 0 | E12: 0
A13: Other income | E13: 0
A14: Total income per acre | E14: 810
A16: Operating costs per acre
A17: Seed, silage variety, units are 50# bags | E17: 68.25
A18: Fertilizer | E18: 145.44
A19: Nitrogen | D19: 73.6
A20: Phosphorus | D20: 22.42
A21: Potassium | D21: 38.92
A22: Other amendments | D22: 10.5
A23: Crop protection | E23: 41
A24: Herbicide | D24: 41
A25: Insecticide-fungicide | D25: 0
A26: Crop supplies, storage | E26: 5.5
A27: Crop consulting | E27: 0
A28: Custom hire and rental | E28: 78.2
A29: Machinery fuel and irrigation energy | E29: 14.47822299
A30: Machinery repairs and maintenance | E30: 22.25014713
A31: Operator and hired labor | E31: 23.3751657
A32: Other expense | E32: 0
A33: Operating interest | E33: 8.966104556
A34: Operating costs per acre | E34: 407.4596404
A36: Ownership costs per acre1
A37: Farm business overhead | E37: 8
A38: Machinery overhead | E38: 26.37462256
A39: Machinery depreciation | E39: 38.15770954
A40: Real estate charge | E40: 154
A41: Ownership costs per acre | E41: 226.5323321
A43: Total costs per acre | E43: 633.9919725
A45: Income over operating costs per acre | E45: 402.5403596
A46: Income over total costs per acre | E46: 176.0080275
C48: Operating costs per ton, air-dry basis | E48: 50.93245505
C49: Ownership costs per ton, air-dry basis | E49: 28.31654151
C50: Total costs per ton, air-dry basis | E50: 79.24899656
A53: Detailed Report | B53: Establishment year 2021 Corn Silage | G53: 2020-10-26
A55: Selected input quantities | B55: per acre | E55: Selected input prices | G55: $ per unit
A56: Forage yield, tons | B56: 8 | E56: Farm diesel, per gallon | G56: 2.38
A57: Seeding rate, lbs | B57: 0 | E57: Operating interest, % | G57: 4.5
A58: Nitrogen rate, lbs | B58: 184 | E58: Nitrogen, per lb | G58: 0.4
A59: Phosphorus rate, lbs | B59: 59 | E59: Phosphorus, per lb | G59: 0.38
A60: Potassium rate, lbs | B60: 139 | E60: Potassium, per lb | G60: 0.28
A61: Lime rate, tons | B61: 0.5 | E61: Lime, per ton | G61: 21
A62: Sum of allocated labor, hours | B62: 1.264230246 | E62: Skilled labor, per hour | G62: 21
A63: Irrigation, inches | B63: 0 | E63: Land value, per acre | G63: 4400
B66: Labor | C66: Fuel | D66: Operating | E66: Ownership | F66: Total
B67: Hours | C67: Gallons | D67: Costs2 | E67: Costs3 | F67: Costs | G67: Trips
A68: Machine activity (not custom) | B68: per acre | C68: per acre | D68: $ per acre | E68: $ per acre | F68: $ per acre | G68: per acre
A69: Field cultivator (18 ft); 160 MFWD | B69: 0.07703081232 | C69: 0.5422969188 | D69: 3.802852101 | E69: 4.699099245 | F69: 8.501951346 | G69: 1
A70: Row crop planter (12 row); 130 MFWD | B70: 0.07142857143 | C70: 0.4085714286 | D70: 5.26826 | E70: 11.79642857 | F70: 17.06468857 | G70: 1
A71: Boom sprayer (90 ft); 105 TWD | B71: 0.04339336082 | C71: 0.2100238663 | D71: 2.580398351 | E71: 4.284760252 | F71: 6.865158603 | G71: 2
A72: Anhydrous applicator (21 ft); 160 MFWD | B72: 0.08928571429 | C72: 0.6285714286 | D72: 4.482419447 | E72: 5.172202138 | F72: 9.654621585 | G72: 1
A73: Silage Chopper, 3 row (5 ft); 160 MFWD | B73: 0.4830917874 | C73: 3.400966184 | D73: 32.67883092 | E73: 33.28521739 | F73: 65.96404831 | G73: 1
A74: Pickup truck | C74: 0.8333333333 | D74: 3.540775 | E74: 5.2946245 | F74: 8.8353995
A75: Total | B75: 0.7642302463 | C75: 6.023763159 | D75: 52.35353582 | E75: 64.5323321 | F75: 116.8858679 | G75: 6
A102: 1 Farm business overhead includes liability insurance, utilities, accounting, etc. Machinery overhead is the sum of opportunity interest,
A103: property taxes, insurance, and housing. Machinery depreciation is a market value decline due to aging and usage. Thus, a portion of
A104: depreciation should be considered an operating costs for some decisions. Real estate charge includes land, improvements, taxes.
A105: Economic costs may differ from rental rates.
A106: 2 Machinery operating cost is the sum of fuel, repairs, maintenance, and the value of labor.
A107: 3 Machinery ownership cost is the sum of machinery overhead and depreciation (see page 1).
A1000: Start
A1001: establishment-82506 | B1001: 1
A1002: harvestashay-82506 | B1002: FALSE
A1003: harvestashaylage-82506 | B1003: TRUE
A1004: harvestaspasture-82506 | B1004: FALSE
A1005: harvestasseed-82506 | B1005: FALSE
A1006: yield-1-83106 | B1006: 1
A1007: yield-2-83106 | B1007: 1
A1008: yield-3-83106 | B1008: 2
A1009: irrigation2-22706 | B1009: 2
A1010: leasenum-22706 | B1010: 1
A1011: 40hp-22706 | B1011: FALSE
A1012: 60hp-22706 | B1012: FALSE
A1013: 75hp-22706 | B1013: FALSE
A1014: 105twd-22706 | B1014: TRUE
A1015: 140twd-22706 | B1015: FALSE
A1016: 105mfwd-22706 | B1016: FALSE
A1017: 130mfwd-22706 | B1017: TRUE
A1018: 160mfwd-22706 | B1018: TRUE
A1019: 200mfwd-22706 | B1019: FALSE
A1020: 225mfwd-22706 | B1020: FALSE
A1021: 2604wd-22706 | B1021: FALSE
A1022: 3104wd-22706 | B1022: FALSE
A1023: description-1-22706 | B1023: 2021 Corn Silage
A1024: acres-1-22706 | B1024: 100
A1025: receipts-1-22706 | B1025: 0
A1026: receipts-2-22706 | B1026: 0
A1027: receipts-3-22706 | B1027: 18
A1028: receipts-4-22706 | B1028: 0.4
A1029: receipts-5-22706 | B1029: 0
A1030: receipts-6-22706 | B1030: 0
A1031: receipts-7-82506 | B1031: 0
A1032: receipts-8-82506 | B1032: 0
A1033: receipts-9-82506 | B1033: 0
A1034: receipts-10-82506 | B1034: 45
A1035: receipts-11-82506 | B1035: 0
A1036: receipts-12-82506 | B1036: 0
A1037: seed1-1-22706 | B1037: 0
A1038: seed1-2-22706 | B1038: 0
A1039: seed1-3-22706 | B1039: 0
A1040: seed1-4-22706 | B1040: 0
A1041: seed1-5-22706 | B1041: 0.325
A1042: seed1-6-22706 | B1042: silage variety, units are 50# bags
A1043: seed2-1-22706 | B1043: 0
A1044: seed2-2-22706 | B1044: 0
A1045: seed2-3-22706 | B1045: 0
A1046: seed2-4-22706 | B1046: 0
A1047: seed2-5-22706 | B1047: 210
A1048: fertilizer1-1-22706 | B1048: 0
A1049: fertilizer1-2-22706 | B1049: 184
A1050: fertilizer1-3-22706 | B1050: 0
A1051: fertilizer1-4-22706 | B1051: 59
A1052: fertilizer1-5-22706 | B1052: 139
A1053: fertilizer1-6-22706 | B1053: 0.5
A1054: fertilizer1-7-22706 | B1054: 0
A1055: fertilizer1-8-22706 | B1055: 0
A1056: fertilizer2-1-22706 | B1056: 0
A1057: fertilizer2-2-22706 | B1057: 0.4
A1058: fertilizer2-3-22706 | B1058: 0
A1059: fertilizer2-4-22706 | B1059: 0.38
A1060: fertilizer2-5-22706 | B1060: 0.28
A1061: fertilizer2-6-22706 | B1061: 21
A1062: fertilizer2-7-22706 | B1062: 0
A1063: fertilizer2-8-22706 | B1063: 0
A1064: herbicide1-1-22706 | B1064: 0
A1065: herbicide1-2-22706 | B1065: 0
A1066: herbicide1-3-22706 | B1066: 0
A1067: herbicide1-4-22706 | B1067: 2
A1068: herbicide1-5-22706 | B1068: 0
A1069: herbicide1-6-22706 | B1069: 0
A1070: herbicide1-7-22706 | B1070: 0
A1071: herbicide1-8-22706 | B1071: 0
A1072: herbicide2-1-22706 | B1072: 0
A1073: herbicide2-2-22706 | B1073: 0
A1074: herbicide2-3-22706 | B1074: 0
A1075: herbicide2-4-22706 | B1075: 20.5
A1076: herbicide2-5-22706 | B1076: 0
A1077: herbicide2-6-22706 | B1077: 0
A1078: herbicide2-7-22706 | B1078: 0
A1079: herbicide2-8-22706 | B1079: 0
A1080: herbicide2-9-22706 | B1080: 0
A1081: insecticide1-1-22706 | B1081: 0
A1082: insecticide1-2-22706 | B1082: 0
A1083: insecticide1-3-22706 | B1083: 0
A1084: insecticide1-4-22706 | B1084: 0
A1085: insecticide1-5-11206 | B1085: 0
A1086: insecticide1-6-11206 | B1086: 0
A1087: insecticide1-7-11206 | B1087: 0
A1088: insecticide2-1-22706 | B1088: 0
A1089: insecticide2-2-22706 | B1089: 0
A1090: insecticide2-3-22706 | B1090: 0
A1091: insecticide2-4-22706 | B1091: 0
A1092: insecticide2-5-22706 | B1092: 0
A1093: insecticide2-6-11206 | B1093: 0
A1094: labor-1-22706 | B1094: 0.5
A1095: labor-2-22706 | B1095: 15.5
A1096: labor-3-22706 | B1096: 21
A1097: irrigation1-1-22706 | B1097: 0
A1098: irrigation1-2-22706 | B1098: 0
A1099: irrigation1-3-22706 | B1099: 0
A1100: land-1-22706 | B1100: 0
A1101: land-2-22706 | B1101: 4400
A1102: land-3-22706 | B1102: 3.5
A1103: land-4-22706 | B1103: 0
A1104: land-5-22706 | B1104: 0
A1105: otheritems1-1-22706 | B1105: 4.5
A1106: otheritems1-2-22706 | B1106: 2.38
A1107: otheritems1-3-22706 | B1107: 2.55
A1108: otheritems1-4-22706 | B1108: 5.5
A1109: otheritems1-5-22706 | B1109: 0
A1110: otheritems1-6-22706 | B1110: 0
A1111: otheritems1-7-22706 | B1111: 0
A1112: otheritems1-8-22706 | B1112: 0
A1113: otheritems1-9-22706 | B1113: 0
A1114: otheritems1-10-22706 | B1114: 0
A1115: overhead-1-22706 | B1115: 0
A1116: overhead-2-22706 | B1116: 0
A1117: overhead-3-22706 | B1117: 8000
A1118: overhead-4-22706 | B1118: 10
A1119: overhead-5-22706 | B1119: 15000
A1120: overhead-6-22706 | B1120: 10
A1121: landlord_share-1-22706 | B1121: 0
A1122: landlord_share-2-22706 | B1122: 0
A1123: landlord_share-3-22706 | B1123: 0
A1124: landlord_share-4-22706 | B1124: 0
A1125: landlord_share-5-22706 | B1125: 0
A1126: landlord_share-6-22706 | B1126: 0
A1127: landlord_share-7-22706 | B1127: 0
A1128: landlord_share-8-22706 | B1128: 0
A1129: landlord_share-9-22706 | B1129: 0
... 208 more rows

Sheet MDB (hidden)
A1: Tractors Data | H1: Tractors Used
E2: Overhead | K2: Overhead
A3: Use | B3: HP | C3: Maint. & Repair Cost/Hr | D3: Depreciation Cost/Hr | E3: Cost/Hr | F3: Diesel Hr/Gal | G3: Year for data | H3: HP | I3: Maint. & Repair Cost/Hr | J3: Depreciation Cost/Hr | K3: Cost/Hr | L3: Diesel Hr/Gal | O3: Number of Columns
A4: FALSE | B4: 40 HP | C4: 0.6048 | D4: 2.628655181 | E4: 2.614510152 | F4: 1.76 | H4: 60 HP | I4: 1.11 | J4: 4.07 | K4: 3.12 | L4: 2.64 | O4: 5
A5: TRUE | B5: 60 HP | C5: 1.11 | D5: 4.07 | E5: 3.12 | F5: 2.64 | G5: 2020 | H5: 105 MFWD | I5: 4.05 | J5: 16.83 | K5: 10.28 | L5: 4.62
A6: FALSE | B6: 75 HP | C6: 1.87 | D6: 6.3 | E6: 4.97 | F6: 3.3 | G6: 2020 | H6: 0
A7: FALSE | B7: 105 TWD | C7: 3.5559216 | D7: 11.9457805 | E7: 11.81711316 | F7: 4.84
A8: FALSE | B8: 140 TWD | C8: 3.97988976 | D8: 16.59011313 | E8: 16.8274976 | F8: 6.16
A9: TRUE | B9: 105 MFWD | C9: 4.05 | D9: 16.83 | E9: 10.28 | F9: 4.62 | G9: 2020
A10: FALSE | B10: 130 MFWD | C10: 5.04 | D10: 20.95 | E10: 12.74 | F10: 5.72 | G10: 2020
A11: FALSE | B11: 160 MFWD | C11: 7.07 | D11: 23.95 | E11: 14.48 | F11: 7.04 | G11: 2020
A12: FALSE | B12: 200 MFWD | C12: 5.34 | D12: 24.78398311 | E12: 18.35645459 | F12: 8.8
A13: FALSE | B13: 225 MFWD | C13: 4.776 | D13: 34.28936922 | E13: 25.80850132 | F13: 9.9
A14: FALSE | B14: 260 4WD | C14: 3.6576 | D14: 43.76633056 | E14: 32.84649792 | F14: 11.44
A15: FALSE | B15: 310 4WD | C15: 3.5136 | D15: 42.04324668 | E15: 31.56686217 | F15: 13.64
A17: Combines
F18: Overhead
A19: Number | B19: HP | C19: Fuel & Oil Cost/Hr | D19: Maint. & Repair Cost/Hr | E19: Depreciation Cost/Hr | F19: Cost/Hr | G19: Diesel Hr/Gal | H19: Year for data
A20: 100 HP Comb. | B20: 100 HP Comb. | D20: 8 | E20: 2.075540163 | F20: 1.866355697 | G20: 4.4 | H20: old, smallest I have data for is 275 hp
A21: 220 HP Comb. | B21: 220 HP Comb. | D21: 37.32493571 | E21: 48.93863164 | F21: 34.50531821 | G21: 9.68
A22: 275 HP Comb. | B22: 275 HP Comb. | D22: 82.77 | E22: 64.52 | F22: 26 | G22: 12.1 | H22: 2020
A24: Hourly Equipment
C25: Acres/Hr | D25: Repairs/Hour | E25: Depreciation/Hour | F25: Overhead/Hour | G25: Hours/Year
A26: 1 | B26: Rd bale wrapper haylage | C26: =IF(G26<>0,Input!$B$15/MDB!G26,0) -> 0 | D26: 15.12 | E26: 1.97 | F26: 6.59 | G26: =Input!F202 -> 0 | H26: old, not in database
A27: 500 bushel | B27: Grain cart (500 bushel) | C27: =IF(G27<>0,Input!$B$15/MDB!G27,0) -> 0 | D27: 2.85 | E27: 7.14 | F27: 6.25 | G27: =Input!F203 -> 0
A28: 1000 bushel | B28: Grain cart (1000 bushel) | C28: =IF(G28<>0,Input!$B$15/MDB!G28,0) -> 0 | D28: 6.81 | E28: 12.49 | F28: 11.23 | G28: =Input!F203 -> 0
A29: 70 ft | B29: Grain auger 10 in- 5000 bu/hr (70 ft) | C29: =IF(G29<>0,Input!$B$15/MDB!G29,0) -> 0 | D29: 1.84 | E29: 3.44 | F29: 2.75 | G29: =Input!F204 -> 0
Y30: 2010 Updates
A31: Equipment
D32: Implement Cost/Acre | H32: Number of Columns | AC32: Implement Cost/Acre
A33: Number | B33: Implement | C33: Acres/Hr | D33: Repairs | E33: Depreciation | F33: Overhead | G33: Year for data | H33: 6 | Y33: Number | AA33: Implement | AB33: Acres/Hr | AC33: Repairs | AD33: Depreciation | AE33: Overhead
A34: 15 ft | B34: Chisel plow (15 ft) | C34: 7.73 | D34: 0.78 | E34: 2.73 | F34: 1.95 | G34: 2020 | Y34: 15 ft | AA34: Chisel plow (15 ft)
A35: 23 ft | B35: Chisel plow (23 ft) | C35: 13.03333333 | D35: 0.7397399374 | E35: 1.992701033 | F35: 1.725047178 | Y35: 23 ft | AA35: Chisel plow (23 ft)
A36: 37 ft | B36: Chisel plow (37 ft) | C36: 20.96666667 | D36: 0.5912207222 | E36: 1.592622061 | F36: 1.393184424 | Y36: 37 ft | AA36: Chisel plow (37 ft)
A37: 57 ft | B37: Chisel plow (57 ft) | C37: 32.3 | D37: 0.6396247579 | E37: 1.723012171 | F37: 1.459516688 | Y37: 57 ft | AA37: Chisel plow (57 ft)
A38: 16.3 ft | B38: Chisel plow, front dsk (16.3 ft) | C38: 9.208333333 | D38: 0.4179304524 | E38: 1.772846985 | F38: 1.580780175 | Y38: 16.3 ft | AA38: Chisel plow, front dsk (16.3 ft)
A39: 21.3 ft | B39: Chisel plow, front dsk (21.3 ft) Fold | C39: 12.04166667 | D39: 0.4939178074 | E39: 2.0951828 | F39: 1.804495476 | Y39: 21.3 ft | AA39: Chisel plow, front dsk (21.3 ft) Fold
A40: 6 ft | B40: Moldboard plow 4 bottom-18 (6 ft) | C40: 2.781818182 | D40: 2.417351665 | E40: 3.080279942 | F40: 2.593566376 | Y40: 6 ft | AA40: Moldboard plow 4 bottom-18 (6 ft)
A41: 7.5 ft | B41: Moldboard plow 5 bottom-18 (7.5 ft) | C41: 3.477272727 | D41: 2.210150094 | E41: 2.816255947 | F41: 2.393171673 | Y41: 7.5 ft | AA41: Moldboard plow 5 bottom-18 (7.5 ft)
A42: 9 ft | B42: Moldboard plow 6 bottom-18 (9 ft) | C42: 4.172727273 | D42: 2.479805877 | E42: 2.735874977 | F42: 2.325473568 | Y42: 9 ft | AA42: Moldboard plow 6 bottom-18 (9 ft)
A43: 12 ft | B43: Moldboard plow 8 bottom-18 (12 ft) | C43: 5.563636364 | D43: 2.752584523 | E43: 3.036821224 | F43: 2.549918195 | Y43: 12 ft | AA43: Moldboard plow 8 bottom-18 (12 ft)
A44: 18 ft | B44: Field cultivator (18 ft) | C44: 12.98181818 | D44: 0.58 | E44: 1.03 | F44: 0.708805127 | G44: 2013 | Y44: 18 ft | AA44: Field cultivator (18 ft)
A45: 23 ft | B45: Field cultivator (23 ft) | C45: 16.58787879 | D45: 0.6277580783 | E45: 0.9940812774 | F45: 0.8509907003 | Y45: 23 ft | AA45: Field cultivator (23 ft)
A46: 30 ft | B46: Field cultivator (30 ft) | C46: 21.63636364 | D46: 0.611969692 | E46: 0.8330421989 | F46: 0.7756057258 | Y46: 30 ft | AA46: Field cultivator (30 ft)
A47: 35 ft | B47: Field cultivator (35 ft) | C47: 25.24242424 | D47: 0.6022468277 | E47: 0.8198069744 | F47: 0.7559476291 | Y47: 35 ft | AA47: Field cultivator (35 ft)
A48: 47 ft | B48: Field cultivator (47 ft) | C48: 33.8969697 | D48: 0.5806152458 | E48: 0.9194286226 | F48: 0.7897875463 | Y48: 47 ft | AA48: Field cultivator (47 ft)
A49: 60 ft | B49: Field cultivator (60 ft) | C49: 43.27272727 | D49: 0.5125695966 | E49: 0.8116754798 | F49: 0.6923369436 | Y49: 60 ft | AA49: Field cultivator (60 ft)
A50: 11 ft | B50: Tandem disk (11 ft) | C50: 6.4 | D50: 0.2328965715 | E50: 0.4749853064 | F50: 0.4885417128 | Y50: 11 ft | AA50: Tandem disk (11 ft)
A51: 21 ft | B51: Tandem disk (21 ft) | C51: 12.21818182 | D51: 1 | E51: 1.69 | F51: 1.14 | G51: 2013 | Y51: 21 ft | AA51: Tandem disk (21 ft)
A52: 25 ft | B52: Tandem disk (25 ft) | C52: 14.54545455 | D52: 0.8242997609 | E52: 1.453060948 | F52: 1.284566542 | Y52: 25 ft | AA52: Tandem disk (25 ft)
A53: 30 ft | B53: Tandem disk (30 ft) | C53: 17.45454545 | D53: 0.8455086719 | E53: 1.724388611 | F53: 1.400011664 | Y53: 30 ft | AA53: Tandem disk (30 ft)
A54: 25" O.C., 10 ft | B54: V-Ripper 25" O.C., (10 ft) | C54: 6.181818182 | D54: 0.5637691161 | E54: 1.15235054 | F54: 1.049565938 | Y54: 25" O.C., 10 ft | AA54: V-Ripper 25" O.C., (10 ft)
A55: 25" O.C., 18 ft | B55: V-Ripper 25" O.C., (18 ft) | C55: 11.12727273 | D55: 0.5481088629 | E55: 1.120340803 | F55: 1.014794498 | Y55: 25" O.C., 18 ft | AA55: V-Ripper 25" O.C., (18 ft)
A56: 30" O.C., 17 ft | B56: V-Ripper 30" O.C., (17 ft) | C56: 10.50909091 | D56: 0.4698075968 | E56: 0.9602921169 | F56: 0.8877221913 | Y56: 30" O.C., 17 ft | AA56: V-Ripper 30" O.C., (17 ft)
A57: 30" O.C., 22.5 ft | B57: V-Ripper 30" O.C., (22.5 ft) | C57: 13.90909091 | D57: 0.4802477656 | E57: 0.9816319417 | F57: 0.8769995241 | Y57: 30" O.C., 22.5 ft | AA57: V-Ripper 30" O.C., (22.5 ft)
A58: 16 ft | B58: Comb fld cult incorp (16 ft) | C58: 11.53939394 | D58: 0.6153082686 | E58: 1.257697159 | F58: 1.099760972 | Y58: 16 ft | AA58: Comb fld cult incorp (16 ft)
A59: 25 ft | B59: Comb fld cult incorp (25 ft) | C59: 18.03030303 | D59: 0.6736006309 | E59: 1.376847416 | F59: 1.20613815 | Y59: 25 ft | AA59: Comb fld cult incorp (25 ft)
A60: 33 ft | B60: Comb fld cult incorp (33 ft) | C60: 23.8 | D60: 0.6748688408 | E60: 1.379439652 | F60: 1.205705242 | Y60: 33 ft | AA60: Comb fld cult incorp (33 ft)
A61: 17.5 ft | B61: Comb disk & v-ripper (17.5 ft) | C61: 9.015151515 | D61: 0.9073740161 | E61: 2.725427104 | F61: 2.230174497 | Y61: 17.5 ft | AA61: Comb disk & v-ripper (17.5 ft)
A62: 22.5 ft | B62: Comb disk & v-ripper (22.5 ft) | C62: 11.59090909 | D62: 1.146819937 | E62: 3.444637034 | F62: 2.748594728 | Y62: 22.5 ft | AA62: Comb disk & v-ripper (22.5 ft)
A63: 22 ft | B63: Disk, fld cult finish (22 ft) | C63: 11.33333333 | D63: 0.7144045988 | E63: 2.07378847 | F63: 1.82047989 | Y63: 22 ft | AA63: Disk, fld cult finish (22 ft)
A64: 38 ft | B64: Disk, fld cult finish (38 ft) | C64: 19.57575758 | D64: 0.65400921 | E64: 1.898471484 | F64: 1.644196479 | Y64: 38 ft | AA64: Disk, fld cult finish (38 ft)
A65: 12 ft | B65: Roller harrow (12 ft) | C65: 7.418181818 | D65: 0.4058835156 | E65: 1.219128953 | F65: 1.067894318 | G65: old, not in database | Y65: 12 ft | AA65: Roller harrow (12 ft)
A66: 28 ft | B66: Roller harrow (28 ft) | C66: 17.30909091 | D66: 0.4502237316 | E66: 1.306918775 | F66: 1.110523456 | Y66: 28 ft | AA66: Roller harrow (28 ft)
A67: 6 row | B67: Row crop planter (6 row) | C67: 7 | D67: 0.7924620028 | E67: 2.225165504 | F67: 2.347399401 | Y67: 6 row | AA67: Row crop planter (6 row)
A68: 8 row | B68: Row crop planter (8 row) | C68: 9.333333333 | D68: 0.9905775035 | E68: 2.78145688 | F68: 2.870473741 | Y68: 8 row | AA68: Row crop planter (8 row)
A69: 12 row | B69: Row crop planter (12 row) | C69: 14 | D69: 2.29 | E69: 5.13 | F69: 4.26 | G69: 2020 | I69: update list | Y69: 12 row | AA69: Row crop planter (12 row)
A70: 16 row | B70: Row crop planter (16 row) | C70: 18.66666667 | D70: 1.231146326 | E70: 3.456953551 | F70: 3.492151475 | Y70: 16 row | AA70: Row crop planter (16 row)
A71: (6 row 30/15) | B71: Split row no-till planter (6 row 30/15) | C71: 7 | D71: 1.395944711 | E71: 3.290575858 | F71: 3.712572201 | I71: Offset Disk 12 Ft | J71: 13650 | K71: 100 | L71: 1173 | M71: 0.18 | N71: 1.7 | O71: 2000 | P71: 556.3636364 | Q71: 0.2454034271 | R71: 310.1626648 | S71: 0.2628958515 | T71: 805.2288544 | U71: 707.2081324 | V71: 2995.599652 | W71: 2.108333333 | Y71: (6/11 row 30/15") | AA71: Split row no-till planter (6/11 row 30/15")
A72: (8 row 30/15) | B72: Split row no-till planter (8 row 30/15) | C72: 9.333333333 | D72: 1.344068388 | E72: 3.168290944 | F72: 3.560643325 | I72: Subsoiler 10 Ft 30 " O.C. | J72: 17850 | K72: 150 | L72: 1759.5 | M72: 0.27 | N72: 1.4 | O72: 2000 | P72: 618.1818182 | Q72: 0.614816156 | R72: 1016.15448 | S72: 0.2876378478 | T72: 1012.098557 | U72: 942.1255135 | V72: 4729.878551 | W72: 2.84625 | Y72: (8/15 row 30/15") | AA72: Split row no-till planter (8/15 row 30/15")
A73: (12 row 30/15) | B73: Split row no-till planter (12 row 30/15) | C73: 14 | D73: 1.898201846 | E73: 4.474516158 | F73: 4.965523665 | I73: Subsoiler 15 Ft 30 " O.C. | J73: 26880 | K73: 150 | L73: 1759.5 | M73: 0.27 | N73: 1.4 | O73: 2000 | P73: 927.2727273 | Q73: 0.614816156 | R73: 1530.209099 | S73: 0.2876378478 | T73: 1524.101357 | U73: 1400.81842 | V73: 6214.628876 | W73: 1.8975 | Y73: (12/23 row 30/15") | AA73: Split row no-till planter (12/23 row 30/15")
A74: (16 row 30/15) | B74: Split row no-till planter (16 row 30/15) | C74: 18.66666667 | D74: 1.759668481 | E74: 4.147959854 | F74: 4.576038274 | I74: Rod weeder 33 Ft | J74: 22365 | K74: 0 | L74: 0 | P74: 0 | S74: 0.5938852916 | Y74: (16/31 row 30/15") | AA74: Split row no-till planter (16/31 row 30/15")
A75: (24 row 30/15) | B75: Split row no-till planter (24 row 30/15) | C75: 28 | D75: 1.363747441 | E75: 3.214679185 | F75: 3.52482084 | G75: not changed | I75: Corrigator 15 Ft 6 Row | J75: 3150 | K75: 0 | L75: 0 | P75: 0 | S75: 0.776821 | Y75: 6 row | AA75: No-till planter (6 row)
A76: 6 row | B76: No-till planter (6 row) | C76: 6.363636364 | D76: 1.490406286 | E76: 3.16158932 | F76: 3.255756513 | I76: Ditcher 1 Ft | J76: 1680 | K76: 0 | L76: 0 | P76: 0 | S76: 0.5938852916 | Y76: 8 row | AA76: No-till planter (8 row)
A77: 8 row | B77: No-till planter (8 row) | C77: 8.484848485 | D77: 1.314473705 | E77: 3.690929704 | F77: 3.774311645 | I77: Potato Planter 12.64 Ft 4 Row | J77: 42000 | K77: 56 | L77: 1145.76 | M77: 0.32 | N77: 2.1 | O77: 1500 | P77: 214.4969697 | Q77: 0.1388754412 | R77: 540.0711603 | S77: 0.3769536589 | T77: 2034.069104 | U77: 2206.596015 | V77: 5926.496279 | W77: 5.341613924 | Y77: 12 row | AA77: No-till planter (12 row)
A78: 12 row | B78: No-till planter (12 row) | C78: 12.72727273 | D78: 2.765390763 | E78: 3.671523082 | F78: 3.681270237 | I78: Potato Planter 18.96 Ft 6 Row | J78: 63000 | K78: 56 | L78: 1145.76 | M78: 0.32 | N78: 2.1 | O78: 1500 | P78: 321.7454545 | Q78: 0.1388754412 | R78: 810.1067404 | S78: 0.3769536589 | T78: 3051.103657 | U78: 3311.294022 | V78: 8318.264419 | W78: 3.561075949 | Y78: 16 row | AA78: No-till planter (16 row)
A79: 16 row | B79: No-till planter (16 row) | C79: 16.96969697 | D79: 3.377263172 | E79: 2.588894481 | F79: 2.619943299 | I79: Potato Planter 25.3 Ft 8 Row | J79: 84000 | K79: 56 | L79: 1145.76 | M79: 0.32 | N79: 2.1 | O79: 1500 | P79: 429.3333333 | Q79: 0.1388754412 | R79: 1080.142321 | S79: 0.3769536589 | T79: 4068.138209 | U79: 4419.14203 | V79: 10713.18256 | W79: 2.668695652 | Y79: 16 ft | AA79: Presswheel drill (16 ft)
A80: 16 ft | B80: Presswheel drill (16 ft) | C80: 6.787878788 | D80: 0.797693882 | E80: 2.113488494 | F80: 1.9718256 | I80: Beet Planter 22 Ft 12 Row | J80: 38850 | K80: 60 | L80: 1227.6 | M80: 0.32 | N80: 2.1 | O80: 1500 | P80: 280 | Q80: 0.1605270485 | R80: 577.4514663 | S80: 0.3769536589 | T80: 1881.513922 | U80: 2076.118814 | V80: 5762.684201 | W80: 4.384285714 | Y80: 20 ft | AA80: Presswheel drill (20 ft)
A81: 20 ft | B81: Presswheel drill (20 ft) | C81: 8.484848485 | D81: 0.7725035489 | E81: 2.046746752 | F81: 1.912245393 | I81: Beet Planter, Vacuum 44 Ft 24 Row | J81: 103950 | K81: 45 | L81: 920.7 | M81: 0.32 | N81: 2.1 | O81: 1500 | P81: 1008 | Q81: 0.08773580677 | R81: 844.4571401 | S81: 0.3769536589 | T81: 5034.321033 | U81: 5519.547637 | V81: 12319.02581 | W81: 0.9133928571 | Y81: 25 ft | AA81: Presswheel drill (25 ft)
A82: 25 ft | B82: Presswheel drill (25 ft) | C82: 10.60606061 | D82: 0.8866997257 | E82: 2.349309316 | F82: 2.172651855 | I82: Air Seeder Drill w/Cart 52 Ft | J82: 166950 | K82: 80 | L82: 1465.2 | M82: 0.32 | N82: 2.1 | O82: 1500 | P82: 1764.848485 | Q82: 0.1253510349 | R82: 2906.577121 | S82: 0.4513254411 | T82: 10403.64133 | U82: 9362.645128 | V82: 24138.06358 | W82: 0.8302129121 | Y82: 30 ft | AA82: Presswheel drill (30 ft)
A83: 30 ft | B83: Presswheel drill (30 ft) | C83: 12.72727273 | D83: 1.009630065 | E83: 2.335960967 | F83: 2.134414385 | I83: Potato Cultivator 18.96 Ft 6 Row | J83: 12600 | K83: 140 | L83: 1674.4 | M83: 0.17 | N83: 2.2 | O83: 2000 | P83: 1126.109091 | Q83: 0.5322667548 | R83: 620.9778807 | S83: 0.2876378478 | T83: 714.4225109 | U83: 645.3680095 | V83: 3655.168401 | W83: 1.486889693 | Y83: 15 ft | AA83: No-till drill (15 ft)
A84: 15 ft | B84: No-till drill (15 ft) | C84: 6.363636364 | D84: 2.96 | E84: 5.85 | F84: 3.94 | G84: 2013 | I84: Sugar Beet Cult 22 Ft 12 Row | J84: 15750 | K84: 60 | L84: 717.6 | M84: 0.17 | N84: 2.2 | O84: 2000 | P84: 336 | Q84: 0.0825240272 | R84: 120.3475397 | S84: 0.2876378478 | T84: 893.0281386 | U84: 822.0225119 | V84: 2552.99819 | W84: 2.135714286 | Y84: 20 ft | AA84: No-till drill (20 ft)
A85: 20 ft | B85: No-till drill (20 ft) | C85: 8.484848485 | D85: 1.739888423 | E85: 4.025545183 | F85: 3.622440408 | I85: Sugar Beet Cult 44 Ft 24 Row | J85: 36750 | K85: 60 | L85: 717.6 | M85: 0.17 | N85: 2.2 | O85: 2000 | P85: 672 | Q85: 0.0825240272 | R85: 280.8109259 | S85: 0.2876378478 | T85: 2083.732323 | U85: 1865.552528 | V85: 4947.695777 | W85: 1.067857143 | Y85: 30 ft | AA85: No-till drill (30 ft)
A86: 30 ft | B86: No-till drill (30 ft) | C86: 12.72727273 | D86: 2.081917771 | E86: 4.816891672 | F86: 4.27611917 | I86: Anhydrous App., No-Till 32 Ft | J86: 26040 | K86: 75 | L86: 897 | M86: 0.23 | N86: 1.4 | O86: 2000 | P86: 1280 | Q86: 0.1984574237 | R86: 478.5028994 | S86: 0.2876378478 | T86: 1476.473189 | U86: 1321.27722 | V86: 4173.253308 | W86: 0.70078125 | Y86: 6 row | AA86: Row cultivator (6 row)
A87: 6 row | B87: Row cultivator (6 row) | C87: 7.727272727 | D87: 0.1778492458 | E87: 0.4990053506 | F87: 0.4666651058 | I87: Potato Shredder 18 Ft | J87: 16380 | K87: 100 | L87: 1265 | M87: 0.28 | N87: 1.4 | O87: 1200 | P87: 698.1818182 | Q87: 0.3614196623 | R87: 548.1531545 | S87: 0.3363561283 | T87: 854.8598721 | U87: 892.1572199 | V87: 3560.170247 | W87: 1.811848958 | Y87: 8 row | AA87: Row cultivator (8 row)
A88: 8 row | B88: Row cultivator (8 row) | C88: 10.3030303 | D88: 0.2032562809 | E88: 0.5702918292 | F88: 0.5273231461 | Y88: 12 row | AA88: Row cultivator (12 row)
A89: 12 row | B89: Row cultivator (12 row) | C89: 15.45454545 | D89: 0.3970161544 | E89: 1.113938856 | F89: 0.9425951122 | I89: Hooded Sprayer 20 Ft 8 Row | J89: 7875 | K89: 80 | L89: 1650 | M89: 0.41 | N89: 1.3 | O89: 1500 | P89: 819.3939394 | Q89: 0.3888091347 | R89: 283.5066607 | S89: 0.2876378478 | T89: 446.5140693 | U89: 437.2612559 | V89: 2817.281986 | W89: 2.013683432 | Y89: 16 row | AA89: Row cultivator (16 row)
A90: 16 row | B90: Row cultivator (16 row) | C90: 20.60606061 | D90: 0.2413668335 | E90: 0.6772215472 | F90: 0.5904057948 | I90: Disk Bean Top Cutter 11 Ft 6 Row | J90: 15960 | K90: 80 | L90: 1465.2 | M90: 0.2 | N90: 1.6 | O90: 2000 | P90: 512 | Q90: 0.1873544309 | R90: 276.8682145 | S90: 0.2628958515 | T90: 941.4983528 | U90: 798.7548932 | V90: 3482.321461 | W90: 2.86171875 | Y90: 6 row | AA90: Row cultivator- High residue (6 row)
A91: 6 row | B91: Row cultivator- High residue (6 row) | C91: 7.727272727 | D91: 0.4471638179 | E91: 1.254642024 | F91: 1.075346216 | I91: Bean Cutter 15 Ft 6 Row | J91: 12600 | K91: 80 | L91: 1465.2 | M91: 0.2 | N91: 1.6 | O91: 2000 | P91: 698.1818182 | Q91: 0.1873544309 | R91: 218.5801694 | S91: 0.2628958515 | T91: 743.2881733 | U91: 637.5959683 | V91: 3064.664311 | W91: 2.09859375 | Y91: 8 row | AA91: Row cultivator- High residue (8 row)
A92: 8 row | B92: Row cultivator- High residue (8 row) | C92: 10.3030303 | D92: 0.4293788933 | E92: 1.204741489 | F92: 1.028679705 | I92: Bean Rod 15 Ft 6 Row | J92: 6300 | K92: 80 | L92: 1465.2 | M92: 0.2 | N92: 1.6 | O92: 2000 | P92: 698.1818182 | Q92: 0.1873544309 | R92: 109.2900847 | S92: 0.2628958515 | T92: 371.6440866 | U92: 335.4229842 | V92: 2281.557155 | W92: 2.09859375 | Y92: 12 row | AA92: Row cultivator- High residue (12 row)
A93: 12 row | B93: Row cultivator- High residue (12 row) | C93: 15.45454545 | D93: 0.4403886085 | E93: 1.235632297 | F93: 1.043857013 | I93: Bean Windrower 15 Ft 6 Row | J93: 31500 | K93: 80 | L93: 1465.2 | M93: 0.2 | N93: 1.6 | O93: 2000 | P93: 698.1818182 | Q93: 0.1873544309 | R93: 546.4504234 | S93: 0.2628958515 | T93: 1858.220433 | U93: 1544.114921 | V93: 5413.985777 | W93: 2.09859375 | Y93: 21 ft | AA93: Rotary hoe (21 ft)
A94: 21 ft | B94: Rotary hoe (21 ft) | C94: 25.96363636 | D94: 0.1238734316 | E94: 0.307556878 | F94: 0.2642827926 | I94: Sugar Beet Lifter 7.33 Ft 4 Row | J94: 57960 | K94: 80 | L94: 1465.2 | M94: 0.59 | N94: 1.3 | O94: 1500 | P94: 161.7042424 | Q94: 0.5595058279 | R94: 3002.681277 | S94: 0.2628958515 | T94: 3419.125597 | U94: 2813.241454 | V94: 10700.24833 | W94: 9.060986762 | Y94: 60 ft | AA94: Boom sprayer, self propelled (60 ft)
A95: 60 ft | B95: Boom sprayer, self propelled (60 ft) | C95: 33.09090909 | D95: 1.473409523 | E95: 2.019783562 | F95: 1.657197589 | I95: Sugar Beet Lifter 11 Ft 6 Row | J95: 76650 | K95: 80 | L95: 1465.2 | M95: 0.59 | N95: 1.3 | O95: 1500 | P95: 242.6666667 | Q95: 0.5595058279 | R95: 3970.937195 | S95: 0.2628958515 | T95: 4521.669721 | U95: 3725.437974 | V95: 13683.24489 | W95: 6.037912088 | Y95: 30 ft | AA95: Boom sprayer (30 ft)
A96: 30 ft | B96: Boom sprayer (30 ft) | C96: 15.36363636 | D96: 0.4070864872 | E96: 0.6411484072 | F96: 0.6175664582 | I96: Sugar Beet Lifter 14.7 Ft 8 Row | J96: 89250 | K96: 80 | L96: 1465.2 | M96: 0.59 | N96: 1.3 | O96: 1500 | P96: 324.2909091 | Q96: 0.5595058279 | R96: 4623.693995 | S96: 0.2628958515 | T96: 5264.957894 | U96: 4329.783942 | V96: 15683.63583 | W96: 4.518165508 | Y96: 50 ft | AA96: Boom sprayer (50 ft) | AG96: Adjustments Oct 2010
A97: 90 ft | B97: Boom sprayer (90 ft) | C97: 46.09 | D97: 0.47 | E97: 1.28 | F97: 0.95 | G97: 2018 | I97: Sugar Beet Lifter 14.7 Ft (Higher Usage) 8 Row | J97: 89250 | K97: 250 | L97: 4578.75 | M97: 0.59 | N97: 1.3 | O97: 1500 | P97: 1013.409091 | Q97: 0.4059117789 | R97: 13417.63936 | S97: 0.4834263057 | T97: 13770.07489 | U97: 5408.074683 | V97: 37174.53894 | W97: 4.518165508 | Y97: 21 ft | AA97: Anhydrous applicator (21 ft)
A98: 21 ft | B98: Anhydrous applicator (21 ft) | C98: 11.2 | D98: 0.255769447 | E98: 0.9180834372 | F98: 0.8228687011 | G98: old, not in database | I98: Sugar Beet Topper 11 Ft 6 Row | J98: 22575 | K98: 80 | L98: 1320 | M98: 0.28 | N98: 1.4 | O98: 1200 | P98: 426.6666667 | Q98: 0.2644464599 | R98: 552.7665586 | S98: 0.2628958515 | T98: 1331.724644 | U98: 1131.786527 | V98: 4336.277729 | W98: 3.09375 | Y98: 20 ft | AA98: Stalk shredder (20 ft) | AG98: 0.04 | AH98: 0.04 | AI98: 0.04 | AQ98: 0.04 | AR98: 0.04 | AS98: 0.04
A99: 20 ft | B99: Stalk shredder (20 ft) | C99: 7.757575758 | D99: 1.009433823 | E99: 1.853536595 | F99: 1.804690053 | I99: Sugar Beet Topper 14.7 Ft 8 Row | J99: 37800 | K99: 80 | L99: 1320 | M99: 0.28 | N99: 1.4 | O99: 1200 | P99: 570.1818182 | Q99: 0.2644464599 | R99: 925.5626097 | S99: 0.2628958515 | T99: 2229.86452 | U99: 1862.037905 | V99: 6337.465035 | W99: 2.31505102 | Y99: 7 ft swath | AA99: Disc mower, 7 ft swath | AB99: 4.412121212 | AC99: 0.7232822123 | AD99: 0.7828387108 | AE99: 0.8293014834 | AG99: =AC99*(1+$AG$98) -> 0.7522135008 | AH99: =AD99*(1+$AH$98) -> 0.8141522592 | AI99: =AE99*(1+$AI$98) -> 0.8624735428
A100: 7 ft | B100: Disc mower (7 ft) | C100: 4.412121212 | D100: 0.7232822123 | E100: 0.7828387108 | F100: 0.8293014834 | I100: Sugar Beet Topper 22 Ft 12 Row | J100: 45150 | K100: 80 | L100: 1320 | M100: 0.28 | N100: 1.4 | O100: 1200 | P100: 853.3333333 | Q100: 0.2644464599 | R100: 1105.533117 | S100: 0.2628958515 | T100: 2663.449288 | U100: 2249.573053 | V100: 7338.555458 | W100: 1.546875 | Y100: 8 ft swath | AA100: Disc mower, 8 ft swath | AB100: 5.042424242 | AC100: 0.7844975037 | AD100: 1.109021507 | AE100: 1.154427102 | AG100: =AC100*(1+$AG$98) -> 0.8158774038 | AH100: =AD100*(1+$AH$98) -> 1.153382367 | AI100: =AE100*(1+$AI$98) -> 1.200604186 | AK100: Disc mower (7 ft) | AL100: 4.412121212 | AM100: 0.7232822123 | AN100: 0.7828387108 | AO100: 0.8293014834 | AQ100: =AM100*(1+$AQ$98) -> 0.7522135008 | AR100: =AN100*(1+$AR$98) -> 0.8141522592 | AS100: =AO100*(1+$AS$98) -> 0.8624735428
A101: 8 ft | B101: Disc mower (8 ft) | C101: 5.042424242 | D101: 0.7844975037 | E101: 1.109021507 | F101: 1.154427102 | I101: Sugar Beet Wagon 11 Ft 20 Ton | J101: 52500 | K101: 100 | L101: 1150 | M101: 0.19 | N101: 1.3 | O101: 3000 | P101: 520 | Q101: 0.2408181528 | R101: 1170.643798 | S101: 0.2628958515 | T101: 3097.034055 | U101: 2605.608201 | V101: 8023.286055 | W101: 2.211538462 | Y101: 9 ft swath | AA101: Disc mower, 9 ft swath | AB101: 5.672727273 | AC101: 0.8203895464 | AD101: 0.9394064529 | AE101: 0.9811617801 | AG101: 0.8532051282 | AH101: 0.976982711 | AI101: 1.020408251 | AK101: Disc mower (8 ft) | AL101: 5.042424242 | AM101: 0.7844975037 | AN101: 1.109021507 | AO101: 1.154427102 | AQ101: 0.8158774038 | AR101: 1.153382367 | AS101: 1.200604186
A102: 9 ft | B102: Disc mower (9 ft) | C102: 5.672727273 | D102: 0.8203895464 | E102: 0.9394064529 | F102: 0.9811617801 | I102: Sugar Beet Wagon 11 Ft 24 Ton | J102: 58800 | K102: 100 | L102: 1150 | M102: 0.19 | N102: 1.3 | O102: 3000 | P102: 520 | Q102: 0.2408181528 | R102: 1311.121054 | S102: 0.2628958515 | T102: 3468.678142 | U102: 2907.781186 | V102: 8837.580382 | W102: 2.211538462 | Y102: 10 ft swath | AA102: Disc mower, 10 ft swath | AB102: 6.303030303 | AC102: 1.08537537 | AD102: 0.7828387108 | AE102: 0.8143014834 | AG102: 1.128790385 | AH102: 0.8141522592 | AI102: 0.8468735428 | AK102: Disc mower (9 ft) | AL102: 5.672727273 | AM102: 0.8203895464 | AN102: 0.9394064529 | AO102: 0.9811617801 | AQ102: 0.8532051282 | AR102: 0.976982711 | AS102: 1.020408251
A103: 10 ft | B103: Disc mower (10 ft) | C103: 6.303030303 | D103: 1.08537537 | E103: 0.7828387108 | F103: 0.8143014834 | Y103: 6 ft | AA103: Disk mower-conditioner (6 ft) | AB103: 3.781818182 | AC103: 0.7159763314 | AD103: 1.729220291 | AE103: 1.515989476 | AG103: 0.7446153846 | AH103: 1.798389103 | AI103: 1.576629055 | AK103: Disc mower (10 ft) | AL103: 6.303030303 | AM103: 1.08537537 | AN103: 0.7828387108 | AO103: 0.8143014834 | AQ103: 1.128790385 | AR103: 0.8141522592 | AS103: 0.8468735428
A104: 6 ft | B104: Disk mower-conditioner (6 ft) | C104: 3.781818182 | D104: 0.7159763314 | E104: 1.729220291 | F104: 1.515989476 | I104: Mower-Conditioner 9 Ft | J104: 18900 | K104: 80 | L104: 1012 | M104: 0.18 | N104: 1.6 | O104: 2500 | P104: 349.0909091 | Q104: 0.1686189878 | R104: 295.0832287 | S104: 0.2774806953 | T104: 1089.408783 | U104: 951.4858701 | V104: 3347.977882 | W104: 2.898958333 | Y104: 9 ft | AA104: Disk mower-conditioner (9 ft) | AB104: 5.672727273 | AC104: 0.5469263642 | AD104: 1.572018446 | AE104: 1.386126797 | AG104: 0.5688034188 | AH104: 1.634899184 | AI104: 1.441571869 | AK104: Disk mower-conditioner (6 ft) | AL104: 3.781818182 | AM104: 0.7159763314 | AN104: 1.729220291 | AO104: 1.515989476 | AQ104: 0.7446153846 | AR104: 1.798389103 | AS104: 1.576629055
A105: 9 ft | B105: Disk mower-conditioner (9 ft) | C105: 5.672727273 | D105: 0.5469263642 | E105: 1.572018446 | F105: 1.386126797 | G105: om | I105: Rotary Hay Mower 6 Ft | J105: 3150 | K105: 100 | L105: 1150 | M105: 0.44 | N105: 2 | O105: 2000 | P105: 290.9090909 | Q105: 0.6336 | R105: 184.8 | S105: 0.3363561283 | T105: 164.3961293 | U105: 179.4033115 | V105: 1678.599441 | W105: 3.953125 | Y105: 8.5 ft | AA105: Roller bar rake (basket), 8.5 ft | AB105: 5.692424242 | AC105: 0.4140332652 | AD105: 1.433258067 | AE105: 1.147235802 | AG105: 0.4305945958 | AH105: 1.490588389 | AI105: 1.193125234 | AK105: Disk mower-conditioner (9 ft) | AL105: 5.672727273 | AM105: 0.5469263642 | AN105: 1.572018446 | AO105: 1.386126797 | AQ105: 0.5688034188 | AR105: 1.634899184 | AS105: 1.441571869
A106: 10.5 ft | B106: Disk mower-conditioner (10.5 ft) | C106: 6.618 | D106: 0.6255782313 | E106: 1.752276561 | F106: 1.535736003 | I106: Ditch Mowing - Rotary Hay Mower Ft | J106: 3045 | K106: 40 | L106: 460 | M106: 0.44 | N106: 2 | O106: 2000 | P106: 0 | Q106: 0.101376 | R106: 28.5824 | S106: 0.3363561283 | T106: 158.9162583 | U106: 174.0882011 | V106: 821.5868594 | Y106: 9.5 ft | AA106: Roller bar rake (basket), 9.5 ft | AB106: 6.362121212 | AC106: 0.1090248062 | AD106: 0.441002482 | AE106: 0.4097757103 | AG106: 0.1133857984 | AH106: 0.4586425813 | AI106: 0.4261667387 | AK106: Disk mower-conditioner (10.5 ft) | AL106: 6.618 | AM106: 0.6015175301 | AN106: 1.684881309 | AO106: 1.476669233 | AQ106: 0.6255782313 | AR106: 1.752276561 | AS106: 1.535736003
A107: 13 ft | B107: Disk mower-conditioner (13 ft) | C107: 8.194 | D107: 0.6080291306 | E107: 1.723456223 | F107: 1.513590345 | I107: Rotary Mow/Cond 9 Ft | J107: 20580 | K107: 80 | L107: 966 | M107: 0.16 | N107: 2 | O107: 2500 | P107: 523.6363636 | Q107: 0.147456 | R107: 280.9856 | S107: 0.3363561283 | T107: 1074.054711 | U107: 1076.761635 | V107: 3397.801946 | W107: 1.844791667 | Y107: tandem, 24 ft | AA107: Roller bar rake (basket), 24 ft tandem | AB107: 16.07272727 | AC107: 0.07444543471 | AD107: 0.6247535162 | AE107: 0.5619311878 | AG107: 0.07742325209 | AH107: 0.6497436568 | AI107: 0.5844084353 | AK107: Disk mower-conditioner (13 ft) | AL107: 8.194 | AM107: 0.5846433948 | AN107: 1.657169445 | AO107: 1.455375332 | AQ107: 0.6080291306 | AR107: 1.723456223 | AS107: 1.513590345
A108: 15.5 ft | B108: Disk mower-conditioner (15.5 ft) | C108: 9.77 | D108: 0.6276154647 | E108: 1.618550192 | F108: 1.42351615 | I108: Hay Rake (Hyd) 9 Ft | J108: 6300 | K108: 200 | L108: 2300 | M108: 0.17 | N108: 1.4 | O108: 2500 | P108: 698.1818182 | Q108: 0.5790881257 | R108: 337.8014067 | S108: 0.2774806953 | T108: 363.1362611 | U108: 345.74529 | V108: 3346.682958 | W108: 3.294270833 | Y108: 7 ft swath | AA108: Swather mower-conditioner, 7 ft swath | AB108: 4.072727273 | AC108: 0.5419487413 | AD108: 1.441016909 | AE108: 1.282282897 | AG108: 0.5636266909 | AH108: 1.498657585 | AI108: 1.333574213 | AK108: Disk mower-conditioner (15.5 ft) | AL108: 9.77 | AM108: 0.6034764083 | AN108: 1.556298262 | AO108: 1.368765529 | AQ108: 0.6276154647 | AR108: 1.618550192 | AS108: 1.42351615
A109: 8.5 ft | B109: Roller bar rake (basket) (8.5 ft) | C109: 5.692424242 | D109: 0.4140332652 | E109: 1.433258067 | F109: 1.147235802 | I109: Hay Swather-Cond 12 Ft | J109: 23835 | K109: 80 | L109: 920 | M109: 0.18 | N109: 1.6 | O109: 2500 | P109: 465.4545455 | Q109: 0.1686189878 | R109: 372.1327384 | S109: 0.2422074482 | T109: 1451.711618 | U109: 1197.141613 | V109: 3940.985969 | W109: 1.9765625 | Y109: 9 ft swath | AA109: Swather mower-conditioner, 9 ft swath | AB109: 5.236363636 | AC109: 0.5704952491 | AD109: 1.362415987 | AE109: 1.209794739 | AG109: 0.593315059 | AH109: 1.416912626 | AI109: 1.258186529 | AK109: Roller bar rake (basket) (8.5 ft) | AL109: 5.692424242 | AM109: 0.4140332652 | AN109: 1.433258067 | AO109: 1.147235802 | AQ109: 0.4305945958 | AR109: 1.490588389 | AS109: 1.193125234
A110: 9.5 ft | B110: Roller bar rake (basket) (9.5 ft) | C110: 6.362121212 | D110: 0.1090248062 | E110: 0.441002482 | F110: 0.4097757103 | I110: Hay Swather-Cond 14 Ft | J110: 28350 | K110: 80 | L110: 920 | M110: 0.18 | N110: 1.6 | O110: 2500 | P110: 543.030303 | Q110: 0.1686189878 | R110: 442.624843 | S110: 0.2422074482 | T110: 1726.705449 | U110: 1422.571522 | V110: 4511.901814 | W110: 1.694196429 | Y110: 12 ft swath | AA110: Swather mower-conditioner, 12 ft swath | AB110: 6.981818182 | AC110: 0.5837997359 | AD110: 1.344949115 | AE110: 1.192130704 | AG110: 0.6071517254 | AH110: 1.39874708 | AI110: 1.239815932 | AK110: Roller bar rake (basket) (9.5 ft) | AL110: 6.362121212 | AM110: 0.1090248062 | AN110: 0.441002482 | AO110: 0.4097757103 | AQ110: 0.1133857984 | AR110: 0.4586425813 | AS110: 0.4261667387
A111: tandem, 24 ft | B111: Roller bar rake (basket) (24 ft) | C111: 16.07272727 | D111: 0.07444543471 | E111: 0.6247535162 | F111: 0.5619311878 | I111: Swather-Cond, Self-Prop 16 Ft | J111: 92400 | K111: 80 | L111: 920 | M111: 0.06 | N111: 2 | O111: 3000 | P111: 620.6060606 | Q111: 0.055296 | R111: 473.088 | S111: 0.2422074482 | T111: 5627.780721 | U111: 4453.751628 | V111: 11474.62035 | W111: 1.482421875 | Y111: 20 ft | AA111: Hay merger (20 ft both swaths) | AB111: 6.109090909 | AC111: 0.4478033585 | AD111: 4.841608228 | AE111: 3.918010841 | AG111: 0.4657154929 | AH111: 5.035272557 | AI111: 4.074731275 | AK111: Roller bar rake (basket) (24 ft) | AL111: 16.07272727 | AM111: 0.07444543471 | AN111: 0.6247535162 | AO111: 0.5619311878 | AQ111: 0.07742325209 | AR111: 0.6497436568 | AS111: 0.5844084353
A112: 7 ft | B112: Swather (haybine) mower-conditioner (7 ft) | C112: 4.072727273 | D112: 0.5419487413 | E112: 1.441016909 | F112: 1.282282897 | I112: Grain Swather, Self-Prop 21 Ft | J112: 75600 | K112: 80 | L112: 920 | M112: 0.06 | N112: 2 | O112: 3000 | P112: 814.5454545 | Q112: 0.055296 | R112: 387.072 | S112: 0.2422074482 | T112: 4604.547863 | U112: 3690.27406 | V112: 9601.893922 | W112: 1.129464286 | Y112: 6 ft pickup | AA112: Small square baler | AB112: 4.909090909 | AC112: 1.055452088 | AD112: 1.685808157 | AE112: 1.483510097 | AG112: 1.097670171 | AH112: 1.753240483 | AI112: 1.5428505 | AK112: Swather (haybine) mower-conditioner (7 ft) | AL112: 4.072727273 | AM112: 0.5419487413 | AN112: 1.441016909 | AO112: 1.282282897 | AQ112: 0.5636266909 | AR112: 1.498657585 | AS112: 1.333574213
A113: 9 ft | B113: Swather (haybine) mower-conditioner (9 ft) | C113: 4.36 | D113: 1.01 | E113: 3.72 | F113: 2.33 | G113: 2013 | Y113: 750 lb | AA113: Round baler (tie), 750 lb | AB113: 5.236363636 | AC113: 0.8921960459 | AD113: 2.77644904 | AE113: 2.006302414 | AG113: 0.9278838877 | AH113: 2.887507002 | AI113: 2.08655451 | AK113: Swather (haybine) mower-conditioner (9 ft) | AL113: 5.236363636 | AM113: 0.5704952491 | AN113: 1.362415987 | AO113: 1.209794739 | AQ113: 0.593315059 | AR113: 1.416912626 | AS113: 1.258186529
A114: 12 ft | B114: Swather (haybine) mower-conditioner (12 ft) | C114: 6.981818182 | D114: 0.5837997359 | E114: 1.344949115 | F114: 1.192130704 | I114: Hay Baler PTO Twine 12 Ft | J114: 19950 | K114: 200 | L114: 3663 | M114: 0.23 | N114: 1.8 | O114: 2000 | P114: 872.7272727 | Q114: 1.089232865 | R114: 2012.055153 | S114: 0.2741437218 | T114: 1156.095625 | U114: 1029.394658 | V114: 7860.545436 | W114: 4.1971875 | Y114: 1000 lb | AA114: Round baler (tie), 1000 lb | AB114: 5.672727273 | AC114: 1.271552768 | AD114: 2.576266194 | AE114: 1.849797851 | AG114: 1.322414879 | AH114: 2.679316842 | AI114: 1.923789765 | AK114: Swather (haybine) mower-conditioner (12 ft) | AL114: 6.981818182 | AM114: 0.5837997359 | AN114: 1.344949115 | AO114: 1.192130704 | AQ114: 0.6071517254 | AR114: 1.39874708 | AS114: 1.239815932
A115: 20 ft | B115: Hay merger (20 ft both swaths) | C115: 6.109090909 | D115: 0.4478033585 | E115: 4.841608228 | F115: 3.918010841 | I115: Round Baler 9 Ft 1000 Lb | J115: 11550 | K115: 200 | L115: 2553 | M115: 0.43 | N115: 1.8 | O115: 1500 | P115: 602.7272727 | Q115: 0.9991961329 | R115: 1602.87713 | S115: 0.3485397768 | T115: 884.634108 | U115: 635.2184242 | V115: 5675.729662 | W115: 4.235746606 | Y115: 1500 lb | AA115: Round baler (tie), 1500 lb | AB115: 6.109090909 | AC115: 1.275164137 | AD115: 2.952261801 | AE115: 2.11763567 | AG115: 1.326170703 | AH115: 3.070352273 | AI115: 2.202341097 | AK115: Hay merger (20 ft both swaths) | AL115: 6.109090909 | AM115: 0.4478033585 | AN115: 4.841608228 | AO115: 3.918010841 | AQ115: 0.4657154929 | AR115: 5.035272557 | AS115: 4.074731275
A116: 1 | B116: Small square baler | C116: 4.36 | D116: 3.18 | E116: 1.83 | F116: 1.18 | G116: 2013 | I116: Round Baler 12 Ft 1500 Lb | J116: 22050 | K116: 200 | L116: 2553 | M116: 0.43 | N116: 1.8 | O116: 1500 | P116: 803.6363636 | Q116: 0.9991961329 | R116: 3060.038157 | S116: 0.3485397768 | T116: 1688.846933 | U116: 1186.121537 | V116: 8488.006627 | W116: 3.176809955 | Y116: 2000 lb | AA116: Round baler (tie), 2000 lb | AB116: 6.545454545 | AC116: 1.733153336 | AD116: 2.943309524 | AE116: 2.097016155 | AG116: 1.80247947 | AH116: 3.061041905 | AI116: 2.180896801 | AK116: Small square baler | AL116: 4.909090909 | AM116: 1.055452088 | AN116: 1.685808157 | AO116: 1.483510097 | AQ116: 1.097670171 | AR116: 1.753240483 | AS116: 1.5428505
A117: 750 lb | B117: Round baler, tie (750 lb) | C117: 5.236363636 | D117: 0.8921960459 | E117: 2.77644904 | F117: 2.006302414 | Y117: 1000 Lb | AA117: Round baler/wrap 1000 lb | AB117: 3.013636364 | AC117: 7.736360204 | AD117: 4.269727218 | AE117: 2.955051218 | AG117: 8.045814612 | AH117: 4.440516307 | AI117: 3.073253266 | AK117: Round baler, tie (750 lb) | AL117: 5.236363636 | AM117: 0.8921960459 | AN117: 2.77644904 | AO117: 2.006302414 | AQ117: 0.9278838877 | AR117: 2.887507002 | AS117: 2.08655451
A118: 1000 lb | B118: Round baler, tie (1000 lb) | C118: 3.013636364 | D118: 3.491718315 | E118: 1.365820987 | F118: 1.152784835 | I118: Rd Bale Wrapper Silage Ft | J118: 22050 | K118: 150 | L118: 1725 | M118: 0.43 | N118: 1.8 | O118: 1500 | P118: 0 | Q118: 0.5970279985 | R118: 1828.398245 | S118: 0.3485397768 | T118: 1688.846933 | U118: 1166.871537 | V118: 6409.116716 | Y118: 1 | AA118: Large rectangular baler | AK118: Round baler, tie (1000 lb) | AL118: 5.672727273 | AM118: 1.271552768 | AN118: 2.576266194 | AO118: 1.849797851 | AQ118: 1.322414879 | AR118: 2.679316842 | AS118: 1.923789765
A119: 1500 lb | B119: Round baler, tie (1500 lb) | C119: 4.018181818 | D119: 4.99950577 | E119: 1.955607322 | F119: 1.603349779 | I119: Bale Wrapper Dry Hay Ft | J119: 9555 | K119: 150 | L119: 1725 | M119: 0.43 | N119: 1.8 | O119: 1500 | P119: 0 | Q119: 1.21330959 | R119: 1073.441957 | S119: 0.2741437218 | T119: 553.7089572 | U119: 483.1816522 | V119: 3835.332566 | Y119: 2 row (5 ft) | AA119: Silage chopper, 2 row (5 ft) | AK119: Round baler, tie (1500 lb) | AL119: 6.109090909 | AM119: 1.275164137 | AN119: 2.952261801 | AO119: 2.11763567 | AQ119: 1.326170703 | AR119: 3.070352273 | AS119: 2.202341097
A120: 2000 lb | B120: Round baler, tie (2000 lb) | C120: 6.545454545 | D120: 1.733153336 | E120: 2.943309524 | F120: 2.097016155 | Y120: 15 ft | AA120: Combine, fixed grain head (15 ft) | AK120: Round baler, tie (2000 lb) | AL120: 6.545454545 | AM120: 1.733153336 | AN120: 2.943309524 | AO120: 2.097016155 | AQ120: 1.80247947 | AR120: 3.061041905 | AS120: 2.180896801
A121: 1000 lb | B121: Round baler, net wrap (1000 lb) | C121: 3.013636364 | D121: 10.15772601 | E121: 3.973297416 | F121: 3.195184842 | Y121: 20 ft | AA121: Combine, fixed grain head (20 ft) | AK121: Round baler, net wrap (1000 lb) | AL121: 5.934545455 | AM121: 1.425847821 | AN121: 3.133296722 | AO121: 2.227739401 | AQ121: 1.482881734 | AR121: 3.258628591 | AS121: 2.316848977
A122: 1500 lb | B122: Round baler, net wrap (1500 lb) | C122: 9.45 | D122: 8.02 | E122: 2.03 | F122: 1.16 | G122: 2020 | I122: Forage Harvester (Pickup Head) 12 Ft | J122: 29925 | K122: 200 | L122: 3663 | M122: 0.15 | N122: 1.6 | O122: 2500 | P122: 661.8181818 | Q122: 0.6087363638 | R122: 1686.707008 | S122: 0.286338777 | T122: 1700.352972 | U122: 1509.687164 | V122: 8559.747145 | W122: 5.534752747 | Y122: 30 ft | AA122: Combine, fixed grain head (30 ft) | AK122: Round baler, net wrap (1500 lb) | AL122: 6.327272727 | AM122: 1.451213844 | AN122: 3.578921145 | AO122: 2.542819914 | AQ122: 1.509262397 | AR122: 3.722077991 | AS122: 2.64453271
A123: 2000 lb | B123: Round baler, net wrap (2000 lb) | C123: 6.545454545 | D123: 2.097308825 | E123: 3.561732775 | F123: 2.520612263 | I123: Corn Head for SP Harvstr Base 7.5 Ft 3 Row | J123: 9450 | K123: 200 | L123: 3663 | M123: 0.03 | N123: 2 | O123: 4000 | P123: 509.0909091 | Q123: 0.1728 | R123: 151.2 | S123: 0.04224632537 | T123: 750.5344653 | U123: 482.8662913 | V123: 5047.600757 | W123: 7.195178571 | Y123: 15 ft | AA123: Combine, flexible grain head (15 ft) | AK123: Round baler, net wrap (2000 lb) | AL123: 6.545454545 | AM123: 2.016643101 | AN123: 3.424743053 | AO123: 2.423665637 | AQ123: 2.097308825 | AR123: 3.561732775 | AS123: 2.520612263
A124: 1000 lb | B124: Round baler, silage kit (1000 lb) | C124: 5.454545455 | D124: 1.725991002 | E124: 3.258628591 | F124: 2.316848977 | I124: Corn Head for SP Harvstr Base 15 Ft 6 Row | J124: 25200 | K124: 120 | L124: 2197.8 | M124: 0.03 | N124: 2 | O124: 4000 | P124: 610.9090909 | Q124: 0.062208 | R124: 145.152 | S124: 0.04224632537 | T124: 2001.425241 | U124: 1112.643443 | V124: 5457.020684 | W124: 3.597589286 | Y124: 18 ft | AA124: Combine, flexible grain head (18 ft) | AK124: Round baler, silage kit (1000 lb) | AL124: 5.454545455 | AM124: 1.659606733 | AN124: 3.133296722 | AO124: 2.227739401 | AQ124: 1.725991002 | AR124: 3.258628591 | AS124: 2.316848977
A125: 1500 lb | B125: Round baler, silage kit (1500 lb) | C125: 5.672727273 | D125: 1.837084453 | E125: 3.722077991 | F125: 2.64453271 | G125: old, not in database | I125: Pickup Head for SP Harvstr Base 12 Ft | J125: 11025 | K125: 80 | L125: 1465.2 | M125: 0.03 | N125: 2 | O125: 4000 | P125: 325.8181818 | Q125: 0.027648 | R125: 28.224 | S125: 0.04224632537 | T125: 875.6235428 | U125: 545.8440065 | V125: 2914.891549 | W125: 4.496986607 | Y125: 20 ft | AA125: Combine, flexible grain head (20 ft) | AK125: Round baler, silage kit (1500 lb) | AL125: 5.672727273 | AM125: 1.766427359 | AN125: 3.578921145 | AO125: 2.542819914 | AQ125: 1.837084453 | AR125: 3.722077991 | AS125: 2.64453271
A126: 2000 lb | B126: Round baler, silage kit (2000 lb) | C126: 6.109090909 | D126: 2.374631291 | E126: 3.561732775 | F126: 2.520612263 | I126: Pickup Head for SP Harvstr Base (2X Windrows) 24 Ft | J126: 14700 | K126: 80 | L126: 1465.2 | M126: 0.03 | N126: 2 | O126: 4000 | P126: 651.6363636 | Q126: 0.027648 | R126: 37.632 | S126: 0.04224632537 | T126: 1167.498057 | U126: 692.7920087 | V126: 3363.122066 | W126: 2.248493304 | Y126: 25 ft | AA126: Combine, flexible grain head (25 ft) | AK126: Round baler, silage kit (2000 lb) | AL126: 6.109090909 | AM126: 2.283299319 | AN126: 3.424743053 | AO126: 2.423665637 | AQ126: 2.374631291 | AR126: 3.561732775 | AS126: 2.520612263
A127: 1 | B127: Large rectangular baler | C127: 16.29090909 | D127: 0.6590426005 | E127: 3.387500323 | F127: 2.798057167 | I127: Combine Corn Hd 15 Ft 6 Row | J127: 33600 | K127: 200 | L127: 3663 | M127: 0.04 | N127: 2.1 | O127: 3000 | P127: 840 | Q127: 0.2514800853 | R127: 782.3824875 | S127: 0.04224632537 | T127: 2668.566988 | U127: 1385.524591 | V127: 8499.474067 | W127: 4.360714286 | Y127: 30 ft | AA127: Combine, flexible grain head (30 ft) | AK127: Large rectangular baler | AL127: 16.29090909 | AM127: 0.6656995965 | AN127: 2.942257863 | AO127: 2.6042747 | AQ127: =AM127*(1+$AQ$98) -> 0.6923275803 | AR127: =AN127*(1+$AR$98) -> 3.059948177 | AS127: =AO127*(1+$AS$98) -> 2.708445688
A128: 3 row corn head | B128: Silage Chopper, 3 row (5 ft) | C128: 2.07 | D128: 9.81 | E128: 8.21 | F128: 6.51 | G128: 2020 | I128: Combine Belt Pickup Hd 14 Ft | J128: 18900 | K128: 200 | L128: 3663 | M128: 0.04 | N128: 2.1 | O128: 3000 | P128: 712.7272727 | Q128: 0.2514800853 | R128: 440.0901492 | S128: 0.04224632537 | T128: 1501.068931 | U128: 781.9825826 | V128: 6386.141662 | W128: 5.139413265 | Y128: 6 row | AA128: Combine, corn head (6 row) | AK128: Silage Chopper, 2 row (5 ft) | AL128: 1.378787879 | AM128: 6.207284702 | AN128: 6.257503491 | AO128: 5.629350641 | AQ128: =AM128*(1+$AQ$98) -> 6.45557609 | AR128: =AN128*(1+$AR$98) -> 6.507803631 | AS128: =AO128*(1+$AS$98) -> 5.854524666
A129: 12 ft pickup head | B129: Silage Chopper, 12 ft pickup head | C129: 3.309090909 | D129: 2.299484891 | E129: 2.695835664 | F129: 2.271451997 | Y129: 8 row | AA129: Combine, corn head (8 row) | AK129: Silage Chopper, 12 ft pickup head | AL129: 3.309090909 | AM129: 2.548595754 | AN129: 2.569214656 | AO129: 2.281120715 | AQ129: 2.650539584 | AR129: 2.671983242 | AS129: 2.372365544
A130: 15 ft | B130: Combine, fixed grain head (15 ft) | C130: 6.681818182 | D130: 0.378342268 | E130: 1.440904146 | F130: 0.7460674523 | I130: Manure Spreader Ft 300 Bu | J130: 13860 | K130: 100 | L130: 1150 | M130: 0.63 | N130: 1.3 | O130: 1200 | P130: 0 | Q130: 0.7985022961 | R130: 1024.744613 | S130: 0.2884892541 | T130: 784.7721239 | U130: 704.9064856 | V130: 3664.423223 | Y130: 12 row | AA130: Combine, corn head (12 row) | AK130: Combine, fixed grain head (15 ft) | AL130: 6.681818182 | AM130: 0.3439475163 | AN130: 1.30991286 | AO130: 0.6806921181 | AQ130: 0.357705417 | AR130: 1.362309374 | AS130: 0.7079198028
A131: 20 ft | B131: Combine, fixed grain head (20 ft) | C131: 6.79 | D131: 0.38 | E131: 1.02 | F131: 0.55 | G131: 2013 | I131: Liquid Manure Spreader Ft 9500 Gal | J131: 51135 | K131: 70 | L131: 805 | M131: 0.63 | N131: 1.3 | O131: 1200 | P131: 0 | Q131: 0.502231122 | R131: 2377.924854 | S131: 0.2884892541 | T131: 2895.333518 | U131: 2587.457261 | V131: 8665.715633 | Y131: 8 wheel, 17.5 ft | AA131: Wheel rake, 8 wheel | AK131: Combine, fixed grain head (20 ft) | AL131: 8.909090909 | AM131: 0.3233694598 | AN131: 1.102955497 | AO131: 0.5771849764 | AQ131: 0.3363042382 | AR131: 1.147073717 | AS131: 0.6002723755
A132: 30 ft | B132: Combine, fixed grain head (30 ft) | C132: 13.36363636 | D132: 0.2645750126 | E132: 0.9024181338 | F132: 0.4711708249 | I132: Grain Cart Ft 500 Bu | J132: 16590 | K132: 130 | L132: 1495 | M132: 0.19 | N132: 1.3 | O132: 3000 | P132: 0 | Q132: 0.338700298 | R132: 520.2812912 | S132: 0.2628958515 | T132: 978.6627615 | U132: 865.7221916 | V132: 3859.666244 | Y132: 10 wheel, 20 ft | AA132: Wheel rake, 10 wheel | AK132: Combine, fixed grain head (30 ft) | AL132: 13.36363636 | AM132: 0.2645750126 | AN132: 0.9024181338 | AO132: 0.4711708249 | AQ132: 0.2751580131 | AR132: 0.9385148592 | AS132: 0.4900176579
A133: 15 ft | B133: Combine, flexible grain head (15 ft) | C133: 6.681818182 | D133: 0.4255598086 | E133: 1.451508533 | F133: 0.7599644323 | I133: Grain Cart Ft 1000 Bu | J133: 29190 | K133: 130 | L133: 1495 | M133: 0.19 | N133: 1.3 | O133: 3000 | P133: 0 | Q133: 0.338700298 | R133: 915.4316389 | S133: 0.2628958515 | T133: 1721.950935 | U133: 1575.06816 | V133: 5707.450734 | Y133: 12 wheel, 25 ft | AA133: Wheel rake, 12 wheel | AK133: Combine, flexible grain head (15 ft) | AL133: 6.681818182 | AM133: 0.4255598086 | AN133: 1.451508533 | AO133: 0.7599644323 | AQ133: 0.4425822009 | AR133: 1.509568874 | AS133: 0.7903630095
A134: 18 ft | B134: Combine, flexible grain head (18 ft) | C134: 8.018181818 | D134: 0.3756311907 | E134: 1.281210931 | F134: 0.6787156962 | I134: Gravity Grain Box Ft 240 Bu | J134: 3990 | K134: 130 | L134: 1495 | M134: 0.19 | N134: 1.3 | O134: 3000 | P134: 0 | Q134: 0.338700298 | R134: 125.1309434 | S134: 0.2628958515 | T134: 235.3745882 | U134: 264.8762233 | V134: 2120.381755 | Y134: 16 wheel, 31 ft | AA134: Wheel rake, 16 wheel | AK134: Combine, flexible grain head (18 ft) | AL134: 8.018181818 | AM134: 0.3756311907 | AN134: 1.281210931 | AO134: 0.6787156962 | AQ134: 0.3906564383 | AR134: 1.332459368 | AS134: 0.705864324
A135: 20 ft | B135: Combine, flexible grain head (20 ft) | C135: 8.909090909 | D135: 0.3471602129 | E135: 1.322148309 | F135: 0.6901659523 | I135: Grain Auger, 70 Ft, Ft 10 Inch | J135: 7980 | K135: 130 | L135: 1495 | M135: 0.19 | N135: 1.3 | O135: 3000 | P135: 0 | Q135: 0.338700298 | R135: 250.2618869 | S135: 0.2628958515 | T135: 470.7491764 | U135: 382.7524466 | V135: 2598.76351 | Y135: 20 wheel, 36 ft | AA135: Wheel rake, 20 wheel | AK135: Combine, flexible grain head (20 ft) | AL135: 8.909090909 | AM135: 0.3156001936 | AN135: 1.201953009 | AO135: 0.630178695 | AQ135: 0.3282242013 | AR135: 1.250031129 | AS135: 0.6553858428
A136: 25 ft | B136: Combine, flexible grain head (25 ft) | C136: 11.13636364 | D136: 0.3057311256 | E136: 1.042794288 | F136: 0.5492531799 | I136: Loader Ft | J136: 8925 | K136: 50 | L136: 575 | M136: 0.29 | N136: 1.8 | O136: 2000 | P136: 0 | Q136: 0.1156299262 | R136: 95.55528626 | S136: 0.2741437218 | T136: 517.2006743 | U136: 431.7081367 | V136: 1619.464097 | Y136: 1 | AA136: Hay tedder | AB136: 9.633333333 | AC136: 0.1353902833 | AD136: 0.9967658372 | AE136: 0.8583538497 | AG136: =AC136*(1+$AG$98) -> 0.1408058947 | AH136: =AD136*(1+$AH$98) -> 1.036636471 | AI136: =AE136*(1+$AI$98) -> 0.8926880036 | AK136: Combine, flexible grain head (25 ft) | AL136: 11.13636364 | AM136: 0.3057311256 | AN136: 1.042794288 | AO136: 0.5492531799 | AQ136: 0.3179603706 | AR136: 1.084506059 | AS136: 0.5712233071
A137: 30 ft | B137: Combine, flexible grain head (30 ft) | C137: 13.36363636 | D137: 0.2730162153 | E137: 1.039773321 | F137: 0.5391357642 | I137: Field roller 8 Ft | J137: 2100 | K137: 40 | L137: 469.2 | M137: 0.16 | N137: 1.3 | O137: 2000 | P137: 186.1818182 | Q137: 0.1197118013 | R137: 12.56973914 | S137: 0.2208008127 | T137: 81.81591467 | U137: 107.9151656 | V137: 671.5008194 | W137: 2.520117187 | Y137: 3 ton | AA137: Bale wagon/stacker (pull-type), 3 ton | AB137: 7.757575758 | AC137: 0.7450651456 | AD137: 3.266304994 | AE137: 2.897174567 | AG137: =AC137*(1+$AG$98) -> 0.7748677514 | AH137: =AD137*(1+$AH$98) -> 3.396957194 | AI137: =AE137*(1+$AI$98) -> 3.013061549 | AK137: Combine, flexible grain head (30 ft) | AL137: 13.36363636 | AM137: 0.2481965594 | AN137: 0.9452484738 | AO137: 0.4919601567 | AQ137: 0.2581244218 | AR137: 0.9830584128 | AS137: 0.5116385629
A138: 6 row | B138: Combine, corn head (6 row) | C138: 6.681818182 | D138: 0.690002048 | E138: 2.627850218 | F138: 1.356409524 | I138: Field roller 10 Ft | J138: 2310 | K138: 40 | L138: 469.2 | M138: 0.16 | N138: 1.3 | O138: 2000 | P138: 232.7272727 | Q138: 0.1197118013 | R138: 13.82671305 | S138: 0.2208008127 | T138: 89.99750613 | U138: 120.8066821 | V138: 693.8309013 | W138: 2.01609375 | Y138: 15 ft | AA138: Rotary mower (15 ft) | AB138: 7.69 | AC138: 0.4 | AD138: 1 | AE138: 1.9 | AG138: =AC138*(1+$AG$98) -> 0.416 | AH138: =AD138*(1+$AH$98) -> 1.04 | AI138: =AE138*(1+$AI$98) -> 1.976 | AK138: Combine, corn head (6 row) | AL138: 6.681818182 | AM138: 0.6271407705 | AN138: 2.139065206 | AO138: 1.121838025 | AQ138: 0.6522264013 | AR138: 2.224627814 | AS138: 1.166711546
A139: 8 row | B139: Combine, corn head (8 row) | C139: 8.909090909 | D139: 0.6703997171 | E139: 2.553195383 | F139: 1.319150672 | I139: Field roller 12 Ft | J139: 2520 | K139: 40 | L139: 469.2 | M139: 0.16 | N139: 1.3 | O139: 2000 | P139: 279.2727273 | Q139: 0.1197118013 | R139: 15.08368697 | S139: 0.2208008127 | T139: 98.1790976 | U139: 133.6981987 | V139: 716.1609832 | W139: 1.680078125 | Y139: 4 T (40 ft) | AA139: Fertilizer spreader 4 T (40 ft) | AB139: 23.76 | AC139: 0.23 | AD139: 0.77 | AE139: 0.71 | AG139: =AC139*(1+$AG$98) -> 0.2392 | AH139: =AD139*(1+$AH$98) -> 0.8008 | AI139: =AE139*(1+$AI$98) -> 0.7384 | AK139: Combine, corn head (8 row) | AL139: 8.909090909 | AM139: 0.6320403078 | AN139: 2.155776653 | AO139: 1.130251619 | AQ139: 0.6573219201 | AR139: 2.242007719 | AS139: 1.175461684
A140: 12 row | B140: Combine, corn head (12 row) | C140: 13.36363636 | D140: 0.6821611156 | E140: 2.597988284 | F140: 1.326539997 | AK140: Combine, corn head (12 row) | AL140: 13.36363636 | AM140: 0.6467389196 | AN140: 2.205910994 | AO140: 1.140526415 | AQ140: 0.6726084764 | AR140: 2.294147434 | AS140: 1.186147472
A141: 6 ft | B141: Sprigger (6 ft) | C141: 3.2 | D141: 2.9224 | E141: 2.6416 | F141: 3.588 | I141: Hay tedder 16.5 Ft 4 rotor | J141: 17325 | K141: 34.75935829 | L141: 399.7326203 | M141: 0.17 | N141: 1.4 | O141: 2500 | P141: 650 | Q141: 0.04998078996 | R141: 72.15976551 | S141: 0.2628958515 | T141: 1064.194114 | U141: 877.5071983 | V141: 2413.593699 | W141: 0.614973262 | AK141: Sprigger (6 ft) | AL141: 3.2 | AM141: 2.81 | AN141: 2.54 | AO141: 3.45 | AQ141: 2.9224 | AR141: 2.6416 | AS141: 3.588
A142: 8 ft | B142: Field roller (8 ft) | C142: 4.654545455 | D142: 0.07955220959 | E142: 0.5178020578 | F142: 0.7017984847 | I142: Hay tedder 23 Ft 6 rotor | J142: 24150 | K142: 42.19948849 | L142: 485.2941176 | M142: 0.17 | N142: 1.4 | O142: 2500 | P142: 1000 | Q142: 0.0655741587 | R142: 131.9679944 | S142: 0.2628958515 | T142: 1483.422099 | U142: 1208.87367 | V142: 3309.557881 | W142: 0.4852941176 | AK142: Field roller (8 ft) | AL142: 4.654545455 | AM142: 0.06429833079 | AN142: 0.4185151885 | AO142: 0.5513052554 | AQ142: 0.06687026402 | AR142: 0.435255796 | AS142: 0.5733574656
A143: 10 ft | B143: Field roller (10 ft) | C143: 5.818181818 | D143: 0.07000594444 | E143: 0.4556658108 | F143: 0.6304732915 | I143: Row Crop Planter 60 Ft 24 row | J143: 130100 | K143: 70 | L143: 1339.8 | M143: 0.32 | N143: 2.1 | O143: 1500 | P143: 1960 | Q143: 0.2218893608 | R143: 2672.944985 | S143: 0.3769536589 | T143: 6300.771202 | U143: 6916.648846 | V143: 17230.16503 | W143: 0.6835714286 | AK143: Field roller (10 ft) | AL143: 5.818181818 | AM143: 0.05658253109 | AN143: 0.3682933659 | AO143: 0.4936564372 | AQ143: 0.05884583234 | AR143: 0.3830251005 | AS143: 0.5134026947
A144: 12 ft | B144: Field roller (12 ft) | C144: 6.981818182 | D144: 0.06364176767 | E144: 0.4142416462 | F144: 0.5829231628 | AK144: Field roller (12 ft) | AL144: 6.981818182 | AM144: 0.05143866463 | AN144: 0.3348121508 | AO144: 0.4552238918 | AQ144: 0.05349621122 | AR144: 0.3482046368 | AS144: 0.4734328475
A145: 6 ft | B145: ATV spreader combo (6 ft) | C145: 6.18 | D145: 0.06394822006 | E145: 0.8431067961 | F145: 0.3702265372 | I145: Disc Mow-Condition 10.5 Ft | J145: 19000 | K145: 98.21428571 | L145: 1620.535714 | M145: 0.16 | N145: 2 | O145: 2500 | P145: 650 | Q145: 0.222244898 | R145: 390.9863946 | S145: 0.2774806953 | T145: 1095.172851 | U145: 959.8350017 | V145: 4066.529961 | W145: 2.493131868 | AK145: ATV spreader combo (6 ft) | AL145: 6.18 | AM145: 0.06148867314 | AN145: 0.8106796117 | AO145: 0.355987055 | AQ145: 0.06394822006 | AR145: 0.8431067961 | AS145: 0.3702265372
A146: 8 ft | B146: ATV spreader combo (8 ft) | C146: 8.24 | D146: 0.04796116505 | E146: 0.6323300971 | F146: 0.2776699029 | I146: Disc Mow-Condition 13 Ft | J146: 23000 | K146: 97.63313609 | L146: 1610.946746 | M146: 0.16 | N146: 2 | O146: 2500 | P146: 800 | Q146: 0.2196225622 | R146: 467.7147159 | S146: 0.2774806953 | T146: 1325.735556 | U146: 1164.300265 | V146: 4568.697283 | W146: 2.013683432 | AK146: ATV spreader combo (8 ft) | AL146: 8.24 | AM146: 0.04611650485 | AN146: 0.6080097087 | AO146: 0.2669902913 | AQ146: 0.04796116505 | AR146: 0.6323300971 | AS146: 0.2776699029
A147: 10 ft | B147: ATV spreader combo (10 ft) | C147: 10.3 | D147: 0.03836893204 | E147: 0.5058640777 | F147: 0.2221359223 | I147: Disc Mow-Condition 15.5 Ft | J147: 27000 | K147: 102.3573201 | L147: 1688.895782 | M147: 0.16 | N147: 2 | O147: 2500 | P147: 1000 | Q147: 0.2413905633 | R147: 603.4764083 | S147: 0.2774806953 | T147: 1556.298262 | U147: 1368.765529 | V147: 5217.435981 | W147: 1.688895782 | AK147: ATV spreader combo (10 ft) | AL147: 10.3 | AM147: 0.03689320388 | AN147: 0.486407767 | AO147: 0.213592233 | AQ147: 0.03836893204 | AR147: 0.5058640777 | AS147: 0.2221359223
A148: 12 ft | B148: ATV spreader combo (12 ft) | C148: 12.36 | D148: 0.03197411003 | E148: 0.4215533981 | F148: 0.1851132686 | I148: Tedder 8.5 Ft | J148: 2500 | K148: 57.09342561 | L148: 656.5743945 | M148: 0.17 | N148: 1.4 | O148: 2500 | P148: 550 | Q148: 0.1001205457 | R148: 23.17605224 | S148: 0.2628958515 | T148: 147.4778122 | U148: 154.9099144 | V148: 982.1381732 | W148: 1.193771626 | AK148: ATV spreader combo (12 ft) | AL148: 12.36 | AM148: 0.03074433657 | AN148: 0.4053398058 | AO148: 0.1779935275 | AQ148: 0.03197411003 | AR148: 0.4215533981 | AS148: 0.1851132686
A149: 8 wheel, 17.5 ft | B149: Wheel rake, V hitch (8 wheel) | C149: 19.83333333 | D149: 0.0434875502 | E149: 0.5188345956 | F149: 0.507236256 | I149: Tedder 16.5 Ft | J149: 3500 | K149: 34.75935829 | L149: 399.7326203 | M149: 0.17 | N149: 1.4 | O149: 2500 | P149: 650 | Q149: 0.04998078996 | R149: 16.19747823 | S149: 0.2628958515 | T149: 206.468937 | U149: 230.8738801 | V149: 853.2729157 | W149: 0.614973262 | AK149: Wheel rake, V hitch (8 wheel) | AL149: 19.83333333 | AM149: 0.03953413654 | AN149: 0.4716678142 | AO149: 0.4702911723 | AQ149: 0.041115502 | AR149: 0.4905345267 | AS149: 0.4891028192
A150: 10 wheel, 20 ft | B150: Wheel rake, V hitch (10 wheel) | C150: 22.66666667 | D150: 0.0463537751 | E150: 0.5530305121 | F150: 0.5324458113 | I150: Tedder 23 Ft | J150: 5000 | K150: 42.19948849 | L150: 485.2941176 | M150: 0.17 | N150: 1.4 | O150: 2500 | P150: 1000 | Q150: 0.0655741587 | R150: 30.3584068 | S150: 0.2628958515 | T150: 294.9556243 | U150: 323.8198287 | V150: 1134.427977 | W150: 0.4852941176 | AK150: Wheel rake, V hitch (10 wheel) | AL150: 22.66666667 | AM150: 0.04213979554 | AN150: 0.502755011 | AO150: 0.4930657108 | AQ150: 0.04382538736 | AR150: 0.5228652115 | AS150: 0.5127883393
A151: 2-16' wheel, 30 ft | B151: Wheel rake (2-16') | C151: 26.18 | D151: 0.33 | E151: 1.29 | F151: 0.81 | G151: 2013 | I151: Wheel Rake 17.5 Ft | J151: 5500 | K151: 30.25210084 | L151: 347.8991597 | M151: 0.17 | N151: 1.4 | O151: 2500 | P151: 600 | Q151: 0.04114910759 | R151: 20.95556405 | S151: 0.2628958515 | T151: 324.4511867 | U151: 326.8018116 | V151: 1020.107722 | W151: 0.5798319328 | AK151: Wheel rake, V hitch (12 wheel) | AL151: 28.33333333 | AM151: 0.03924661555 | AN151: 0.4682375028 | AO151: 0.4549992152 | AQ151: 0.04081648017 | AR151: 0.4869670029 | AS151: 0.4731991838
A152: 16 wheel, 31 ft | B152: Wheel rake, V hitch (16 wheel) | C152: 35.13333333 | D152: 0.04463531545 | E152: 0.5325281773 | F152: 0.4953951566 | I152: Wheel Rake 20 Ft | J152: 6700 | K152: 35.29411765 | L152: 405.8823529 | M152: 0.17 | N152: 1.4 | O152: 2500 | P152: 800 | Q152: 0.05106060149 | R152: 31.67648426 | S152: 0.2628958515 | T152: 395.2405366 | U152: 391.3585705 | V152: 1224.157944 | W152: 0.5073529412 | AK152: Wheel rake, V hitch (16 wheel) | AL152: 35.13333333 | AM152: 0.0405775595 | AN152: 0.4841165248 | AO152: 0.4574749828 | AQ152: 0.04220066188 | AR152: 0.5034811858 | AS152: 0.4757739821
A153: 20 wheel, 36 ft | B153: Wheel rake, V hitch (20 wheel) | C153: 37.09090909 | D153: 0.0549634315 | E153: 0.6527346094 | F153: 0.5956988696 | I153: Wheel Rake 25 Ft | J153: 7800 | K153: 35.29411765 | L153: 405.8823529 | M153: 0.17 | N153: 1.4 | O153: 2500 | P153: 1000 | Q153: 0.05106060149 | R153: 36.87710108 | S153: 0.2628958515 | T153: 460.1307739 | U153: 461.6189328 | V153: 1364.509161 | W153: 0.4058823529 | AK153: Wheel rake, V hitch (20 wheel) | AL153: 37.09090909 | AM153: 0.04996675591 | AN153: 0.5933950995 | AO153: 0.5488973681 | AQ153: 0.05196542614 | AR153: 0.6171309035 | AS153: 0.5708532628
A154: 2 rotor, 8.5 ft | B154: Hay tedder (8.5 ft) | C154: 9.633333333 | D154: 0.04069690526 | E154: 0.4855403969 | F154: 0.5100748227 | G154: old, not in database | I154: Wheel Rake 31 Ft | J154: 10000 | K154: 34.15559772 | L154: 392.7893738 | M154: 0.17 | N154: 1.4 | O154: 2500 | P154: 1200 | Q154: 0.04876961326 | R154: 45.15704932 | S154: 0.2628958515 | T154: 589.9112486 | U154: 591.6396574 | V154: 1619.497329 | W154: 0.3273244782 | AK154: Hay tedder (8.5 ft) | AL154: 9.633333333 | AM154: 0.1353902833 | AN154: 0.9967658372 | AO154: 0.8583538497 | AQ154: 0.1408058947 | AR154: 1.036636471 | AS154: 0.8926880036
A155: 4 rotor, 16.5 ft | B155: Hay tedder (16.5 ft) | C155: 18.7 | D155: 0.02935110137 | E155: 0.3501776196 | F155: 0.3545031609 | I155: Wheel Rake 36 Ft | J155: 13000 | K155: 34.31372549 | L155: 394.6078431 | M155: 0.17 | N155: 1.4 | O155: 2500 | P155: 1400 | Q155: 0.04908600502 | R155: 59.08500604 | S155: 0.2628958515 | T155: 766.8846232 | U155: 721.5315546 | V155: 1942.109027 | W155: 0.2818627451 | AK155: Hay tedder (16.5 ft) | AL155: 18.7 | AM155: 0.02491919727 | AN155: 0.3176445185 | AO155: 0.3551905848 | AQ155: 0.02591596516 | AR155: 0.3303502992 | AS155: 0.3693982081
A156: 6 rotor, 23 ft | B156: Hay tedder (23 ft) | C156: 23.6969697 | D156: 0.03308835341 | E156: 0.3947654532 | F156: 0.3830633917 | I156: Bar Rake 8.5 Ft | J156: 3500 | K156: 97.8744439 | L156: 1125.556105 | M156: 0.17 | N156: 1.4 | O156: 2500 | P156: 600 | Q156: 0.2129313935 | R156: 69.0055442 | S156: 0.2628958515 | T156: 206.468937 | U156: 199.3738801 | V156: 1600.404466 | W156: 1.875926841 | AK156: Hay tedder (23 ft) | AL156: 23.6969697 | AM156: 0.0303584068 | AN156: 0.2949556243 | AO156: 0.3238198287 | AQ156: 0.03157274308 | AR156: 0.3067538493 | AS156: 0.3367726219
A157: 3 ton | B157: Bale wagon/stacker, pull-type (3 ton) | C157: 7.757575758 | D157: 0.7450651456 | E157: 3.266304994 | F157: 2.897174567 | I157: Bar Rake 9.5 Ft | J157: 4500 | K157: 87.57187085 | L157: 1007.076515 | M157: 0.17 | N157: 1.4 | O157: 2500 | P157: 600 | Q157: 0.182227176 | R157: 75.92799 | S157: 0.2628958515 | T157: 265.4600619 | U157: 250.8378458 | V157: 1599.302413 | W157: 1.678460858 | AK157: Bale wagon/stacker, pull-type (3 ton) | AL157: 7.76 | AM157: 0.7450651456 | AN157: 3.266304994 | AO157: 2.897174567 | AQ157: 0.7748677514 | AR157: 3.396957194 | AS157: 3.013061549
A158: 12 ft | B158: Rotary mower (12 ft) | C158: 8.73 | D158: 0.74 | E158: 3 | F158: 1.95 | G158: 2020 | I158: Bar Rake 24 Ft | J158: 8500 | K158: 51.99579832 | L158: 597.9516807 | M158: 0.17 | N158: 1.4 | O158: 2500 | P158: 900 | Q158: 0.08783310111 | R158: 69.12790365 | S158: 0.2628958515 | T158: 501.4245613 | U158: 495.1937088 | V158: 1663.697854 | W158: 0.6643907563 | AK158: Rotary mower (15 ft) | AL158: 7.69 | AM158: 0.4 | AN158: 1 | AO158: 1.9 | AQ158: 0.416 | AR158: 1.04 | AS158: 1.976
A159: 40 ft | B159: Fertilizer spreader 4 T (40 ft) | C159: 23.76 | D159: 0.23 | E159: 0.77 | F159: 0.71 | AK159: Fertilizer spreader 4 T (40 ft) | AL159: 23.76 | AM159: 0.23 | AN159: 0.77 | AO159: 0.71 | AQ159: 0.2392 | AR159: 0.8008 | AS159: 0.7384
B163: Manufactured Costs
B164: Unupdated Costs
B167: Grain hauling | C167: 2.6 | D167: $ per bushel per mile
B168: Irrigation repairs | C168: 5.6 | D168: $ per acre-inch applied
B169: Irrigation overhead | C169: 22 | D169: $ per acre land irrigated
B170: Irrigation depreciation | C170: 22 | D170: $ per acre land irrigated | H170: Est | I170: =VLOOKUP(establishment,H172:K173,4) -> Prod
H172: 1 | I172: Yes | J172: Establishment year | K172: Est | L172: 1 | M172: Tons | N172: ton
B173: Establishment | C173: 2 | D173: 1 | H173: 2 | I173: No | J173: Production | K173: Prod | L173: 2 | M173: Bales | N173: bale
B174: Harvest as | C174: TRUE | D174: FALSE | E174: TRUE | F174: TRUE
B175: Yield | C175: 2 | D175: 2 | E175: 2 | H175: 1 | I175: Owned land | L175: 1 | M175: Tons | N175: ton
B176: Irrigation | C176: 2 | H176: 3 | I176: Cash rent | L176: 2 | M176: AUM | N176: AUM
B177: Lease arrangement | C177: 1 | H177: 2 | I177: Share crop
H179: 1 | I179: Irrigated
H180: 2 | I180: Dryland

Sheet Machinery Cost (hidden)
B1: Skilled Labor, $/hr | C1: =Input!B71 -> 21
B2: Unskilled Labor, $/hr | C2: =Input!B70 -> 15.5
B3: Power Unit Fuel | C3: =Input!B90 -> 2.38
B4: Pickup fuel, $/gal | C4: =Input!B91 -> 2.55 | I4: Activity Costs | L4: Labor and Fuel, Quantity and Costs | P4: Machine Costs | S4: Power Costs
H5: Passes | I5: Total | J5: Operating | K5: Ownership | L5: Acres per | M5: Fuel | N5: Labor | O5: Fuel | P5: Rep & Main | Q5: Depreciation | R5: Overhead | S5: Rep and Main | T5: Depreciation | U5: Overhead
A6: Name | B6: Implement | C6: Power | D6: ID | E6: Implement | F6: Power Source | G6: Use | H6: Trips/Acre | I6: $/Acre | J6: $/Acre | K6: $/Acre | L6: Labor Hour | M6: Gal/Acre | N6: $/Acre | O6: $/Acre | P6: $/Acre | Q6: $/Acre | R6: $/Acre | S6: $/Acre | T6: $/Acre | U6: $/Acre | V6: Rented | W6: Label
A7: Chisel_Plow | B7: =Input!B154 -> 15 ft | C7: =Input!D154 -> 0 | D7: 1 | E7: =VLOOKUP($B7,OFFSET(INDIRECT(A7),0,0,,MDB!$H$33),2,FALSE) -> Chisel plow (15 ft) | F7: =VLOOKUP(C7,OFFSET(Power_Size,0,0,,MDB!$O$4),1,FALSE) ->  | G7: =IF(H7>0,1,0) -> 0 | H7: =Input!F154 -> 0 | I7: =J7+K7 -> 7.465174644 | J7: =N7+O7+P7+S7+Input!H154 -> 2.785174644 | K7: =Q7+R7+T7+U7 -> 4.68 | L7: =VLOOKUP($B7,OFFSET(INDIRECT(A7),0,0,,MDB!$H$33),3,FALSE) -> 7.73 | M7: =VLOOKUP(C7,OFFSET(Power_Size,0,0,ROWS(Power_Size)+1,MDB!$O$4),5,FALSE)/L7 -> 0 | N7: =C$2*(1/L7) -> 2.005174644 | O7: =M7*C$3 -> 0 | P7: =IF(V7=0,VLOOKUP($B7,OFFSET(INDIRECT(A7),0,0,,MDB!$H$33),4,FALSE),0) -> 0.78 | Q7: =IF(V7=0,VLOOKUP($B7,OFFSET(INDIRECT(A7),0,0,,MDB!$H$33),5,FALSE),0) -> 2.73 | R7: =IF(V7=0,VLOOKUP($B7,OFFSET(INDIRECT(A7),0,0,,MDB!$H$33),6,FALSE),0) -> 1.95 | S7: =(VLOOKUP(C7,OFFSET(Power_Size,0,0,ROWS(Power_Size)+1,MDB!$O$4),2,FALSE)/L7)+(0.15*O7) -> 0 | T7: =VLOOKUP(C7,OFFSET(Power_Size,0,0,ROWS(Power_Size)+1,MDB!$O$4),3,FALSE)/L7 -> 0 | U7: =VLOOKUP(C7,OFFSET(Power_Size,0,0,ROWS(Power_Size)+1,MDB!$O$4),4,FALSE)/L7 -> 0 | V7: =Input!H154 -> 0 | W7: =CONCATENATE(IF(V7<>0,"Rent, ",""),E7,"; ",F7) -> 
A8: Chisel_Plow_FD | B8: =Input!B155 -> 16.3 ft | C8: =Input!D155 -> 0 | D8: 2 | E8: =VLOOKUP($B8,OFFSET(INDIRECT(A8),0,0,,MDB!$H$33),2,FALSE) -> Chisel plow, front dsk (16.3 ft) | F8: =VLOOKUP(C8,OFFSET(Power_Size,0,0,,MDB!$O$4),1,FALSE) ->  | G8: =IF(H8>0,1,0) -> 0 | H8: =Input!F155 -> 0 | I8: =J8+K8 -> 5.454815531 | J8: =N8+O8+P8+S8+Input!H155 -> 2.101188371 | K8: 3.35362716 | L8: =VLOOKUP($B8,OFFSET(INDIRECT(A8),0,0,,MDB!$H$33),3,FALSE) -> 9.208333333 | M8: =VLOOKUP(C8,OFFSET(Power_Size,0,0,ROWS(Power_Size)+1,MDB!$O$4),5,FALSE)/L8 -> 0 | N8: =C$2*(1/L8) -> 1.683257919 | O8: 0 | P8: =IF(V8=0,VLOOKUP($B8,OFFSET(INDIRECT(A8),0,0,,MDB!$H$33),4,FALSE),0) -> 0.4179304524 | Q8: =IF(V8=0,VLOOKUP($B8,OFFSET(INDIRECT(A8),0,0,,MDB!$H$33),5,FALSE),0) -> 1.772846985 | R8: =IF(V8=0,VLOOKUP($B8,OFFSET(INDIRECT(A8),0,0,,MDB!$H$33),6,FALSE),0) -> 1.580780175 | S8: =(VLOOKUP(C8,OFFSET(Power_Size,0,0,ROWS(Power_Size)+1,MDB!$O$4),2,FALSE)/L8)+(0.15*O8) -> 0 | T8: =VLOOKUP(C8,OFFSET(Power_Size,0,0,ROWS(Power_Size)+1,MDB!$O$4),3,FALSE)/L8 -> 0 | U8: =VLOOKUP(C8,OFFSET(Power_Size,0,0,ROWS(Power_Size)+1,MDB!$O$4),4,FALSE)/L8 -> 0 | V8: =Input!H155 -> 0 | W8: =CONCATENATE(IF(V8<>0,"Rent, ",""),E8,"; ",F8) -> 
A9: Moldboard_Plow | B9: =Input!B156 -> 6 ft | C9: =Input!D156 -> 0 | D9: 3 | E9: =VLOOKUP($B9,OFFSET(INDIRECT(A9),0,0,,MDB!$H$33),2,FALSE) -> Moldboard plow 4 bottom-18 (6 ft) | F9: =VLOOKUP(C9,OFFSET(Power_Size,0,0,,MDB!$O$4),1,FALSE) ->  | G9: 0 | H9: =Input!F156 -> 0 | I9: =J9+K9 -> 13.66309341 | J9: =N9+O9+P9+S9+Input!H156 -> 7.98924709 | K9: 5.673846317 | L9: =VLOOKUP($B9,OFFSET(INDIRECT(A9),0,0,,MDB!$H$33),3,FALSE) -> 2.781818182 | M9: =VLOOKUP(C9,OFFSET(Power_Size,0,0,ROWS(Power_Size)+1,MDB!$O$4),5,FALSE)/L9 -> 0 | N9: =C$2*(1/L9) -> 5.571895425 | O9: 0 | P9: =IF(V9=0,VLOOKUP($B9,OFFSET(INDIRECT(A9),0,0,,MDB!$H$33),4,FALSE),0) -> 2.417351665 | Q9: =IF(V9=0,VLOOKUP($B9,OFFSET(INDIRECT(A9),0,0,,MDB!$H$33),5,FALSE),0) -> 3.080279942 | R9: =IF(V9=0,VLOOKUP($B9,OFFSET(INDIRECT(A9),0,0,,MDB!$H$33),6,FALSE),0) -> 2.593566376 | S9: =(VLOOKUP(C9,OFFSET(Power_Size,0,0,ROWS(Power_Size)+1,MDB!$O$4),2,FALSE)/L9)+(0.15*O9) -> 0 | T9: =VLOOKUP(C9,OFFSET(Power_Size,0,0,ROWS(Power_Size)+1,MDB!$O$4),3,FALSE)/L9 -> 0 | U9: =VLOOKUP(C9,OFFSET(Power_Size,0,0,ROWS(Power_Size)+1,MDB!$O$4),4,FALSE)/L9 -> 0 | V9: =Input!H156 -> 0
A10: Field_Cultivator | B10: =Input!B157 -> 18 ft | C10: =Input!D157 -> 0 | D10: 4 | E10: =VLOOKUP($B10,OFFSET(INDIRECT(A10),0,0,,MDB!$H$33),2,FALSE) -> Field cultivator (18 ft) | F10: =VLOOKUP(C10,OFFSET(Power_Size,0,0,,MDB!$O$4),1,FALSE) ->  | G10: 0 | H10: =Input!F157 -> 0 | I10: 3.512782718 | J10: =N10+O10+P10+S10+Input!H157 -> 1.773977591 | K10: 1.738805127 | L10: =VLOOKUP($B10,OFFSET(INDIRECT(A10),0,0,,MDB!$H$33),3,FALSE) -> 12.98181818 | M10: =VLOOKUP(C10,OFFSET(Power_Size,0,0,ROWS(Power_Size)+1,MDB!$O$4),5,FALSE)/L10 -> 0 | N10: =(1/L10)*C$2 -> 1.193977591 | O10: 0 | P10: =IF(V10=0,VLOOKUP($B10,OFFSET(INDIRECT(A10),0,0,,MDB!$H$33),4,FALSE),0) -> 0.58 | Q10: =IF(V10=0,VLOOKUP($B10,OFFSET(INDIRECT(A10),0,0,,MDB!$H$33),5,FALSE),0) -> 1.03 | R10: =IF(V10=0,VLOOKUP($B10,OFFSET(INDIRECT(A10),0,0,,MDB!$H$33),6,FALSE),0) -> 0.708805127 | S10: =(VLOOKUP(C10,OFFSET(Power_Size,0,0,ROWS(Power_Size)+1,MDB!$O$4),2,FALSE)/L10)+(0.15*O10) -> 0 | T10: =VLOOKUP(C10,OFFSET(Power_Size,0,0,ROWS(Power_Size)+1,MDB!$O$4),3,FALSE)/L10 -> 0 | U10: =VLOOKUP(C10,OFFSET(Power_Size,0,0,ROWS(Power_Size)+1,MDB!$O$4),4,FALSE)/L10 -> 0 | V10: =Input!H157 -> 0
A11: Tandem_Disk | B11: =Input!B158 -> 25 ft | C11: =Input!D158 -> 0 | D11: 5 | E11: =VLOOKUP($B11,OFFSET(INDIRECT(A11),0,0,,MDB!$H$33),2,FALSE) -> Tandem disk (25 ft) | F11: =VLOOKUP(C11,OFFSET(Power_Size,0,0,,MDB!$O$4),1,FALSE) ->  | G11: 0 | H11: =Input!F158 -> 0 | I11: 4.627552252 | J11: =N11+O11+P11+S11+Input!H158 -> 1.889924761 | K11: 2.737627491 | L11: =VLOOKUP($B11,OFFSET(INDIRECT(A11),0,0,,MDB!$H$33),3,FALSE) -> 14.54545455 | M11: =VLOOKUP(C11,OFFSET(Power_Size,0,0,ROWS(Power_Size)+1,MDB!$O$4),5,FALSE)/L11 -> 0 | N11: =C$2*(1/L11) -> 1.065625 | O11: 0 | P11: =IF(V11=0,VLOOKUP($B11,OFFSET(INDIRECT(A11),0,0,,MDB!$H$33),4,FALSE),0) -> 0.8242997609 | Q11: =IF(V11=0,VLOOKUP($B11,OFFSET(INDIRECT(A11),0,0,,MDB!$H$33),5,FALSE),0) -> 1.453060948 | R11: =IF(V11=0,VLOOKUP($B11,OFFSET(INDIRECT(A11),0,0,,MDB!$H$33),6,FALSE),0) -> 1.284566542 | S11: =(VLOOKUP(C11,OFFSET(Power_Size,0,0,ROWS(Power_Size)+1,MDB!$O$4),2,FALSE)/L11)+(0.15*O11) -> 0 | T11: =VLOOKUP(C11,OFFSET(Power_Size,0,0,ROWS(Power_Size)+1,MDB!$O$4),3,FALSE)/L11 -> 0 | U11: =VLOOKUP(C11,OFFSET(Power_Size,0,0,ROWS(Power_Size)+1,MDB!$O$4),4,FALSE)/L11 -> 0 | V11: =Input!H158 -> 0
A12: VRipper | B12: =Input!B159 -> 30" O.C., 17 ft | C12: =Input!D159 -> 0 | D12: 6 | E12: =VLOOKUP($B12,OFFSET(INDIRECT(A12),0,0,,MDB!$H$33),2,FALSE) -> V-Ripper 30" O.C., (17 ft) | F12: =VLOOKUP(C12,OFFSET(Power_Size,0,0,,MDB!$O$4),1,FALSE) ->  | G12: 0 | H12: =Input!F159 -> 0 | I12: 3.7927354 | J12: =N12+O12+P12+S12+Input!H159 -> 1.944721092 | K12: 1.848014308 | L12: =VLOOKUP($B12,OFFSET(INDIRECT(A12),0,0,,MDB!$H$33),3,FALSE) -> 10.50909091 | M12: =VLOOKUP(C12,OFFSET(Power_Size,0,0,ROWS(Power_Size)+1,MDB!$O$4),5,FALSE)/L12 -> 0 | N12: =(1/L12)*C$2 -> 1.474913495 | O12: 0 | P12: =IF(V12=0,VLOOKUP($B12,OFFSET(INDIRECT(A12),0,0,,MDB!$H$33),4,FALSE),0) -> 0.4698075968 | Q12: =IF(V12=0,VLOOKUP($B12,OFFSET(INDIRECT(A12),0,0,,MDB!$H$33),5,FALSE),0) -> 0.9602921169 | R12: =IF(V12=0,VLOOKUP($B12,OFFSET(INDIRECT(A12),0,0,,MDB!$H$33),6,FALSE),0) -> 0.8877221913 | S12: =(VLOOKUP(C12,OFFSET(Power_Size,0,0,ROWS(Power_Size)+1,MDB!$O$4),2,FALSE)/L12)+(0.15*O12) -> 0 | T12: =VLOOKUP(C12,OFFSET(Power_Size,0,0,ROWS(Power_Size)+1,MDB!$O$4),3,FALSE)/L12 -> 0 | U12: =VLOOKUP(C12,OFFSET(Power_Size,0,0,ROWS(Power_Size)+1,MDB!$O$4),4,FALSE)/L12 -> 0 | V12: =Input!H159 -> 0
A13: Comb_Fld_Cult_Incorp | B13: =Input!B160 -> 16 ft | C13: =Input!D160 -> 0 | D13: 7 | E13: =VLOOKUP($B13,OFFSET(INDIRECT(A13),0,0,,MDB!$H$33),2,FALSE) -> Comb fld cult incorp (16 ft) | F13: =VLOOKUP(C13,OFFSET(Power_Size,0,0,,MDB!$O$4),1,FALSE) ->  | G13: 0 | H13: =Input!F160 -> 0 | I13: 4.315991189 | J13: =N13+O13+P13+S13+Input!H160 -> 1.958533059 | K13: 2.357458131 | L13: =VLOOKUP($B13,OFFSET(INDIRECT(A13),0,0,,MDB!$H$33),3,FALSE) -> 11.53939394 | M13: =VLOOKUP(C13,OFFSET(Power_Size,0,0,ROWS(Power_Size)+1,MDB!$O$4),5,FALSE)/L13 -> 0 | N13: =(1/L13)*C$2 -> 1.34322479 | O13: 0 | P13: =IF(V13=0,VLOOKUP($B13,OFFSET(INDIRECT(A13),0,0,,MDB!$H$33),4,FALSE),0) -> 0.6153082686 | Q13: =IF(V13=0,VLOOKUP($B13,OFFSET(INDIRECT(A13),0,0,,MDB!$H$33),5,FALSE),0) -> 1.257697159 | R13: =IF(V13=0,VLOOKUP($B13,OFFSET(INDIRECT(A13),0,0,,MDB!$H$33),6,FALSE),0) -> 1.099760972 | S13: =(VLOOKUP(C13,OFFSET(Power_Size,0,0,ROWS(Power_Size)+1,MDB!$O$4),2,FALSE)/L13)+(0.15*O13) -> 0 | T13: =VLOOKUP(C13,OFFSET(Power_Size,0,0,ROWS(Power_Size)+1,MDB!$O$4),3,FALSE)/L13 -> 0 | U13: =VLOOKUP(C13,OFFSET(Power_Size,0,0,ROWS(Power_Size)+1,MDB!$O$4),4,FALSE)/L13 -> 0 | V13: =Input!H160 -> 0
A14: Comb_Disk_VRipper | B14: =Input!B161 -> 17.5 ft | C14: =Input!D161 -> 0 | D14: 8 | E14: =VLOOKUP($B14,OFFSET(INDIRECT(A14),0,0,,MDB!$H$33),2,FALSE) -> Comb disk & v-ripper (17.5 ft) | F14: =VLOOKUP(C14,OFFSET(Power_Size,0,0,,MDB!$O$4),1,FALSE) ->  | G14: 0 | H14: =Input!F161 -> 0 | I14: 7.582303348 | J14: =N14+O14+P14+S14+Input!H161 -> 2.626701747 | K14: 4.955601601 | L14: =VLOOKUP($B14,OFFSET(INDIRECT(A14),0,0,,MDB!$H$33),3,FALSE) -> 9.015151515 | M14: =VLOOKUP(C14,OFFSET(Power_Size,0,0,ROWS(Power_Size)+1,MDB!$O$4),5,FALSE)/L14 -> 0 | N14: =(1/L14)*C$2 -> 1.719327731 | O14: 0 | P14: =IF(V14=0,VLOOKUP($B14,OFFSET(INDIRECT(A14),0,0,,MDB!$H$33),4,FALSE),0) -> 0.9073740161 | Q14: =IF(V14=0,VLOOKUP($B14,OFFSET(INDIRECT(A14),0,0,,MDB!$H$33),5,FALSE),0) -> 2.725427104 | R14: =IF(V14=0,VLOOKUP($B14,OFFSET(INDIRECT(A14),0,0,,MDB!$H$33),6,FALSE),0) -> 2.230174497 | S14: =(VLOOKUP(C14,OFFSET(Power_Size,0,0,ROWS(Power_Size)+1,MDB!$O$4),2,FALSE)/L14)+(0.15*O14) -> 0 | T14: =VLOOKUP(C14,OFFSET(Power_Size,0,0,ROWS(Power_Size)+1,MDB!$O$4),3,FALSE)/L14 -> 0 | U14: =VLOOKUP(C14,OFFSET(Power_Size,0,0,ROWS(Power_Size)+1,MDB!$O$4),4,FALSE)/L14 -> 0 | V14: =Input!H161 -> 0
A15: Disk | B15: =Input!B162 -> 22 ft | C15: =Input!D162 -> 0 | D15: 9 | E15: =VLOOKUP($B15,OFFSET(INDIRECT(A15),0,0,,MDB!$H$33),2,FALSE) -> Disk, fld cult finish (22 ft) | F15: =VLOOKUP(C15,OFFSET(Power_Size,0,0,,MDB!$O$4),1,FALSE) ->  | G15: 0 | H15: =Input!F162 -> 0 | I15: 5.976320017 | J15: =N15+O15+P15+S15+Input!H162 -> 2.082051658 | K15: 3.894268359 | L15: =VLOOKUP($B15,OFFSET(INDIRECT(A15),0,0,,MDB!$H$33),3,FALSE) -> 11.33333333 | M15: =VLOOKUP(C15,OFFSET(Power_Size,0,0,ROWS(Power_Size)+1,MDB!$O$4),5,FALSE)/L15 -> 0 | N15: =(1/L15)*C$2 -> 1.367647059 | O15: 0 | P15: =IF(V15=0,VLOOKUP($B15,OFFSET(INDIRECT(A15),0,0,,MDB!$H$33),4,FALSE),0) -> 0.7144045988 | Q15: =IF(V15=0,VLOOKUP($B15,OFFSET(INDIRECT(A15),0,0,,MDB!$H$33),5,FALSE),0) -> 2.07378847 | R15: =IF(V15=0,VLOOKUP($B15,OFFSET(INDIRECT(A15),0,0,,MDB!$H$33),6,FALSE),0) -> 1.82047989 | S15: =(VLOOKUP(C15,OFFSET(Power_Size,0,0,ROWS(Power_Size)+1,MDB!$O$4),2,FALSE)/L15)+(0.15*O15) -> 0 | T15: =VLOOKUP(C15,OFFSET(Power_Size,0,0,ROWS(Power_Size)+1,MDB!$O$4),3,FALSE)/L15 -> 0 | U15: =VLOOKUP(C15,OFFSET(Power_Size,0,0,ROWS(Power_Size)+1,MDB!$O$4),4,FALSE)/L15 -> 0 | V15: =Input!H162 -> 0
A16: Harrow | B16: =Input!B163 -> 12 ft | C16: =Input!D163 -> 0 | D16: 10 | E16: =VLOOKUP($B16,OFFSET(INDIRECT(A16),0,0,,MDB!$H$33),2,FALSE) -> Roller harrow (12 ft) | F16: =VLOOKUP(C16,OFFSET(Power_Size,0,0,,MDB!$O$4),1,FALSE) ->  | G16: 0 | H16: =Input!F163 -> 0 | I16: 4.782367571 | J16: =N16+O16+P16+S16+Input!H163 -> 2.4953443 | K16: 2.287023271 | L16: =VLOOKUP($B16,OFFSET(INDIRECT(A16),0,0,,MDB!$H$33),3,FALSE) -> 7.418181818 | M16: =VLOOKUP(C16,OFFSET(Power_Size,0,0,ROWS(Power_Size)+1,MDB!$O$4),5,FALSE)/L16 -> 0 | N16: =(1/L16)*C2 -> 2.089460784 | O16: 0 | P16: =IF(V16=0,VLOOKUP($B16,OFFSET(INDIRECT(A16),0,0,,MDB!$H$33),4,FALSE),0) -> 0.4058835156 | Q16: =IF(V16=0,VLOOKUP($B16,OFFSET(INDIRECT(A16),0,0,,MDB!$H$33),5,FALSE),0) -> 1.219128953 | R16: =IF(V16=0,VLOOKUP($B16,OFFSET(INDIRECT(A16),0,0,,MDB!$H$33),6,FALSE),0) -> 1.067894318 | S16: =(VLOOKUP(C16,OFFSET(Power_Size,0,0,ROWS(Power_Size)+1,MDB!$O$4),2,FALSE)/L16)+(0.15*O16) -> 0 | T16: =VLOOKUP(C16,OFFSET(Power_Size,0,0,ROWS(Power_Size)+1,MDB!$O$4),3,FALSE)/L16 -> 0 | U16: =VLOOKUP(C16,OFFSET(Power_Size,0,0,ROWS(Power_Size)+1,MDB!$O$4),4,FALSE)/L16 -> 0 | V16: =Input!H163 -> 0
A17: Planter | B17: =Input!B165 -> 6 row | C17: =Input!D165 -> 0 | D17: 11 | E17: =VLOOKUP($B17,OFFSET(INDIRECT(A17),0,0,,MDB!$H$33),2,FALSE) -> Row crop planter (6 row) | F17: =VLOOKUP(C17,OFFSET(Power_Size,0,0,,MDB!$O$4),1,FALSE) ->  | G17: 0 | H17: =Input!F165 -> 0 | I17: 8.365026908 | J17: =N17+O17+P17+S17+Input!H165 -> 3.792462003 | K17: 4.572564905 | L17: =VLOOKUP($B17,OFFSET(INDIRECT(A17),0,0,,MDB!$H$33),3,FALSE) -> 7 | M17: =VLOOKUP(C17,OFFSET(Power_Size,0,0,ROWS(Power_Size)+1,MDB!$O$4),5,FALSE)/L17 -> 0 | N17: =(1/L17)*C1 -> 3 | O17: 0 | P17: =IF(V17=0,VLOOKUP($B17,OFFSET(INDIRECT(A17),0,0,,MDB!$H$33),4,FALSE),0) -> 0.7924620028 | Q17: =IF(V17=0,VLOOKUP($B17,OFFSET(INDIRECT(A17),0,0,,MDB!$H$33),5,FALSE),0) -> 2.225165504 | R17: =IF(V17=0,VLOOKUP($B17,OFFSET(INDIRECT(A17),0,0,,MDB!$H$33),6,FALSE),0) -> 2.347399401 | S17: =(VLOOKUP(C17,OFFSET(Power_Size,0,0,ROWS(Power_Size)+1,MDB!$O$4),2,FALSE)/L17)+(0.15*O17) -> 0 | T17: =VLOOKUP(C17,OFFSET(Power_Size,0,0,ROWS(Power_Size)+1,MDB!$O$4),3,FALSE)/L17 -> 0 | U17: =VLOOKUP(C17,OFFSET(Power_Size,0,0,ROWS(Power_Size)+1,MDB!$O$4),4,FALSE)/L17 -> 0 | V17: =Input!H165 -> 0
A18: SplitRow_Planter | B18: =Input!B166 -> (6 row 30/15) | C18: =Input!D166 -> 0 | D18: 12 | E18: =VLOOKUP($B18,OFFSET(INDIRECT(A18),0,0,,MDB!$H$33),2,FALSE) -> Split row no-till planter (6 row 30/15) | F18: =VLOOKUP(C18,OFFSET(Power_Size,0,0,,MDB!$O$4),1,FALSE) ->  | G18: 0 | H18: =Input!F166 -> 0 | I18: 11.39909277 | J18: =N18+O18+P18+S18+Input!H166 -> 4.395944711 | K18: 7.003148059 | L18: =VLOOKUP($B18,OFFSET(INDIRECT(A18),0,0,,MDB!$H$33),3,FALSE) -> 7 | M18: =VLOOKUP(C18,OFFSET(Power_Size,0,0,ROWS(Power_Size)+1,MDB!$O$4),5,FALSE)/L18 -> 0 | N18: =C1*(1/L18) -> 3 | O18: 0 | P18: =IF(V18=0,VLOOKUP($B18,OFFSET(INDIRECT(A18),0,0,,MDB!$H$33),4,FALSE),0) -> 1.395944711 | Q18: =IF(V18=0,VLOOKUP($B18,OFFSET(INDIRECT(A18),0,0,,MDB!$H$33),5,FALSE),0) -> 3.290575858 | R18: =IF(V18=0,VLOOKUP($B18,OFFSET(INDIRECT(A18),0,0,,MDB!$H$33),6,FALSE),0) -> 3.712572201 | S18: =(VLOOKUP(C18,OFFSET(Power_Size,0,0,ROWS(Power_Size)+1,MDB!$O$4),2,FALSE)/L18)+(0.15*O18) -> 0 | T18: =VLOOKUP(C18,OFFSET(Power_Size,0,0,ROWS(Power_Size)+1,MDB!$O$4),3,FALSE)/L18 -> 0 | U18: =VLOOKUP(C18,OFFSET(Power_Size,0,0,ROWS(Power_Size)+1,MDB!$O$4),4,FALSE)/L18 -> 0 | V18: =Input!H166 -> 0
A19: NoTill_Planter | B19: =Input!B167 -> 6 row | C19: =Input!D167 -> 0 | D19: 13 | E19: =VLOOKUP($B19,OFFSET(INDIRECT(A19),0,0,,MDB!$H$33),2,FALSE) -> No-till planter (6 row) | F19: =VLOOKUP(C19,OFFSET(Power_Size,0,0,,MDB!$O$4),1,FALSE) ->  | G19: 0 | H19: =Input!F167 -> 0 | I19: 11.20775212 | J19: =N19+O19+P19+S19+Input!H167 -> 4.790406286 | K19: 6.417345834 | L19: =VLOOKUP($B19,OFFSET(INDIRECT(A19),0,0,,MDB!$H$33),3,FALSE) -> 6.363636364 | M19: =VLOOKUP(C19,OFFSET(Power_Size,0,0,ROWS(Power_Size)+1,MDB!$O$4),5,FALSE)/L19 -> 0 | N19: =C1*(1/L19) -> 3.3 | O19: 0 | P19: =IF(V19=0,VLOOKUP($B19,OFFSET(INDIRECT(A19),0,0,,MDB!$H$33),4,FALSE),0) -> 1.490406286 | Q19: =IF(V19=0,VLOOKUP($B19,OFFSET(INDIRECT(A19),0,0,,MDB!$H$33),5,FALSE),0) -> 3.16158932 | R19: =IF(V19=0,VLOOKUP($B19,OFFSET(INDIRECT(A19),0,0,,MDB!$H$33),6,FALSE),0) -> 3.255756513 | S19: =(VLOOKUP(C19,OFFSET(Power_Size,0,0,ROWS(Power_Size)+1,MDB!$O$4),2,FALSE)/L19)+(0.15*O19) -> 0 | T19: =VLOOKUP(C19,OFFSET(Power_Size,0,0,ROWS(Power_Size)+1,MDB!$O$4),3,FALSE)/L19 -> 0 | U19: =VLOOKUP(C19,OFFSET(Power_Size,0,0,ROWS(Power_Size)+1,MDB!$O$4),4,FALSE)/L19 -> 0 | V19: =Input!H167 -> 0
A20: Presswheel_Drill | B20: =Input!B168 -> 16 ft | C20: =Input!D168 -> 0 | D20: 14 | E20: =VLOOKUP($B20,OFFSET(INDIRECT(A20),0,0,,MDB!$H$33),2,FALSE) -> Presswheel drill (16 ft) | F20: =VLOOKUP(C20,OFFSET(Power_Size,0,0,,MDB!$O$4),1,FALSE) ->  | G20: 0 | H20: =Input!F168 -> 0 | I20: 7.976757976 | J20: =N20+O20+P20+S20+Input!H168 -> 3.891443882 | K20: 4.085314094 | L20: =VLOOKUP($B20,OFFSET(INDIRECT(A20),0,0,,MDB!$H$33),3,FALSE) -> 6.787878788 | M20: =VLOOKUP(C20,OFFSET(Power_Size,0,0,ROWS(Power_Size)+1,MDB!$O$4),5,FALSE)/L20 -> 0 | N20: =(1/L20)*C1 -> 3.09375 | O20: 0 | P20: =IF(V20=0,VLOOKUP($B20,OFFSET(INDIRECT(A20),0,0,,MDB!$H$33),4,FALSE),0) -> 0.797693882 | Q20: =IF(V20=0,VLOOKUP($B20,OFFSET(INDIRECT(A20),0,0,,MDB!$H$33),5,FALSE),0) -> 2.113488494 | R20: =IF(V20=0,VLOOKUP($B20,OFFSET(INDIRECT(A20),0,0,,MDB!$H$33),6,FALSE),0) -> 1.9718256 | S20: =(VLOOKUP(C20,OFFSET(Power_Size,0,0,ROWS(Power_Size)+1,MDB!$O$4),2,FALSE)/L20)+(0.15*O20) -> 0 | T20: =VLOOKUP(C20,OFFSET(Power_Size,0,0,ROWS(Power_Size)+1,MDB!$O$4),3,FALSE)/L20 -> 0 | U20: =VLOOKUP(C20,OFFSET(Power_Size,0,0,ROWS(Power_Size)+1,MDB!$O$4),4,FALSE)/L20 -> 0 | V20: =Input!H168 -> 0
A21: NoTill_Drill | B21: =Input!B169 -> 15 ft | C21: =Input!D169 -> 0 | D21: 15 | E21: =VLOOKUP($B21,OFFSET(INDIRECT(A21),0,0,,MDB!$H$33),2,FALSE) -> No-till drill (15 ft) | F21: =VLOOKUP(C21,OFFSET(Power_Size,0,0,,MDB!$O$4),1,FALSE) ->  | G21: 0 | H21: =Input!F169 -> 0 | I21: 16.05 | J21: =N21+O21+P21+S21+Input!H169 -> 6.26 | K21: 9.79 | L21: =VLOOKUP($B21,OFFSET(INDIRECT(A21),0,0,,MDB!$H$33),3,FALSE) -> 6.363636364 | M21: =VLOOKUP(C21,OFFSET(Power_Size,0,0,ROWS(Power_Size)+1,MDB!$O$4),5,FALSE)/L21 -> 0 | N21: =(1/L21)*C1 -> 3.3 | O21: 0 | P21: =IF(V21=0,VLOOKUP($B21,OFFSET(INDIRECT(A21),0,0,,MDB!$H$33),4,FALSE),0) -> 2.96 | Q21: =IF(V21=0,VLOOKUP($B21,OFFSET(INDIRECT(A21),0,0,,MDB!$H$33),5,FALSE),0) -> 5.85 | R21: =IF(V21=0,VLOOKUP($B21,OFFSET(INDIRECT(A21),0,0,,MDB!$H$33),6,FALSE),0) -> 3.94 | S21: =(VLOOKUP(C21,OFFSET(Power_Size,0,0,ROWS(Power_Size)+1,MDB!$O$4),2,FALSE)/L21)+(0.15*O21) -> 0 | T21: =VLOOKUP(C21,OFFSET(Power_Size,0,0,ROWS(Power_Size)+1,MDB!$O$4),3,FALSE)/L21 -> 0 | U21: =VLOOKUP(C21,OFFSET(Power_Size,0,0,ROWS(Power_Size)+1,MDB!$O$4),4,FALSE)/L21 -> 0 | V21: =Input!H169 -> 0
A22: Sprigger | B22: =Input!B170 -> 6 ft | C22: =Input!D170 -> 0 | D22: 16 | E22: =VLOOKUP($B22,OFFSET(INDIRECT(A22),0,0,,MDB!$H$33),2,FALSE) -> Sprigger (6 ft) | F22: =VLOOKUP(C22,OFFSET(Power_Size,0,0,,MDB!$O$4),1,FALSE) ->  | G22: =IF(H22>0,1,0) -> 0 | H22: =Input!F170 -> 0 | I22: =J22+K22 -> 15.7145 | J22: =N22+O22+P22+S22+Input!H170 -> 9.4849 | K22: =Q22+R22+T22+U22 -> 6.2296 | L22: =VLOOKUP($B22,OFFSET(INDIRECT(A22),0,0,,MDB!$H$33),3,FALSE) -> 3.2 | M22: =VLOOKUP(C22,OFFSET(Power_Size,0,0,ROWS(Power_Size)+1,MDB!$O$4),5,FALSE)/L22 -> 0 | N22: =(1/L22)*C1 -> 6.5625 | O22: =M22*C$3 -> 0 | P22: =IF(V22=0,VLOOKUP($B22,OFFSET(INDIRECT(A22),0,0,,MDB!$H$33),4,FALSE),0) -> 2.9224 | Q22: =IF(V22=0,VLOOKUP($B22,OFFSET(INDIRECT(A22),0,0,,MDB!$H$33),5,FALSE),0) -> 2.6416 | R22: =IF(V22=0,VLOOKUP($B22,OFFSET(INDIRECT(A22),0,0,,MDB!$H$33),6,FALSE),0) -> 3.588 | S22: =(VLOOKUP(C22,OFFSET(Power_Size,0,0,ROWS(Power_Size)+1,MDB!$O$4),2,FALSE)/L22)+(0.15*O22) -> 0 | T22: =VLOOKUP(C22,OFFSET(Power_Size,0,0,ROWS(Power_Size)+1,MDB!$O$4),3,FALSE)/L22 -> 0 | U22: =VLOOKUP(C22,OFFSET(Power_Size,0,0,ROWS(Power_Size)+1,MDB!$O$4),4,FALSE)/L22 -> 0 | V22: =Input!H170 -> 0 | W22: =CONCATENATE(IF(V22<>0,"Rent, ",""),E22,"; ",F22) -> 
A23: Cultivator | B23: =Input!B172 -> 6 row | C23: =Input!D172 -> 0 | D23: 17 | E23: =VLOOKUP($B23,OFFSET(INDIRECT(A23),0,0,,MDB!$H$33),2,FALSE) -> Row cultivator (6 row) | F23: =VLOOKUP(C23,OFFSET(Power_Size,0,0,,MDB!$O$4),1,FALSE) ->  | G23: 0 | H23: =Input!F172 -> 0 | I23: 3.149402055 | J23: =N23+O23+P23+S23+Input!H172 -> 2.183731599 | K23: =Q23+R23+T23+U23 -> 0.9656704563 | L23: =VLOOKUP($B23,OFFSET(INDIRECT(A23),0,0,,MDB!$H$33),3,FALSE) -> 7.727272727 | M23: =VLOOKUP(C23,OFFSET(Power_Size,0,0,ROWS(Power_Size)+1,MDB!$O$4),5,FALSE)/L23 -> 0 | N23: =(1/L23)*C$2 -> 2.005882353 | O23: =M23*C$3 -> 0 | P23: =IF(V23=0,VLOOKUP($B23,OFFSET(INDIRECT(A23),0,0,,MDB!$H$33),4,FALSE),0) -> 0.1778492458 | Q23: =IF(V23=0,VLOOKUP($B23,OFFSET(INDIRECT(A23),0,0,,MDB!$H$33),5,FALSE),0) -> 0.4990053506 | R23: =IF(V23=0,VLOOKUP($B23,OFFSET(INDIRECT(A23),0,0,,MDB!$H$33),6,FALSE),0) -> 0.4666651058 | S23: =(VLOOKUP(C23,OFFSET(Power_Size,0,0,ROWS(Power_Size)+1,MDB!$O$4),2,FALSE)/L23)+(0.15*O23) -> 0 | T23: =VLOOKUP(C23,OFFSET(Power_Size,0,0,ROWS(Power_Size)+1,MDB!$O$4),3,FALSE)/L23 -> 0 | U23: =VLOOKUP(C23,OFFSET(Power_Size,0,0,ROWS(Power_Size)+1,MDB!$O$4),4,FALSE)/L23 -> 0 | V23: =Input!H172 -> 0
A24: Cultivator_HR | B24: =Input!B173 -> 6 row | C24: =Input!D173 -> 0 | D24: 18 | E24: =VLOOKUP($B24,OFFSET(INDIRECT(A24),0,0,,MDB!$H$33),2,FALSE) -> Row cultivator- High residue (6 row) | F24: =VLOOKUP(C24,OFFSET(Power_Size,0,0,,MDB!$O$4),1,FALSE) ->  | G24: 0 | H24: =Input!F173 -> 0 | I24: 4.783034411 | J24: =N24+O24+P24+S24+Input!H173 -> 2.453046171 | K24: 2.32998824 | L24: =VLOOKUP($B24,OFFSET(INDIRECT(A24),0,0,,MDB!$H$33),3,FALSE) -> 7.727272727 | M24: =VLOOKUP(C24,OFFSET(Power_Size,0,0,ROWS(Power_Size)+1,MDB!$O$4),5,FALSE)/L24 -> 0 | N24: =(1/L24)*C$2 -> 2.005882353 | O24: 0 | P24: =IF(V24=0,VLOOKUP($B24,OFFSET(INDIRECT(A24),0,0,,MDB!$H$33),4,FALSE),0) -> 0.4471638179 | Q24: =IF(V24=0,VLOOKUP($B24,OFFSET(INDIRECT(A24),0,0,,MDB!$H$33),5,FALSE),0) -> 1.254642024 | R24: =IF(V24=0,VLOOKUP($B24,OFFSET(INDIRECT(A24),0,0,,MDB!$H$33),6,FALSE),0) -> 1.075346216 | S24: =(VLOOKUP(C24,OFFSET(Power_Size,0,0,ROWS(Power_Size)+1,MDB!$O$4),2,FALSE)/L24)+(0.15*O24) -> 0 | T24: =VLOOKUP(C24,OFFSET(Power_Size,0,0,ROWS(Power_Size)+1,MDB!$O$4),3,FALSE)/L24 -> 0 | U24: =VLOOKUP(C24,OFFSET(Power_Size,0,0,ROWS(Power_Size)+1,MDB!$O$4),4,FALSE)/L24 -> 0 | V24: =Input!H173 -> 0
A25: Rotary_Hoe | B25: 21 ft | C25: =Input!D174 -> 0 | D25: 19 | E25: =VLOOKUP($B25,OFFSET(INDIRECT(A25),0,0,,MDB!$H$33),2,FALSE) -> Rotary hoe (21 ft) | F25: =VLOOKUP(C25,OFFSET(Power_Size,0,0,,MDB!$O$4),1,FALSE) ->  | G25: 0 | H25: =Input!F174 -> 0 | I25: 1.292701898 | J25: =N25+O25+P25+S25+Input!H174 -> 0.7208622271 | K25: 0.5718396707 | L25: =VLOOKUP($B25,OFFSET(INDIRECT(A25),0,0,,MDB!$H$33),3,FALSE) -> 25.96363636 | M25: =VLOOKUP(C25,OFFSET(Power_Size,0,0,ROWS(Power_Size)+1,MDB!$O$4),5,FALSE)/L25 -> 0 | N25: =(1/L25)*C$2 -> 0.5969887955 | O25: 0 | P25: =IF(V25=0,VLOOKUP($B25,OFFSET(INDIRECT(A25),0,0,,MDB!$H$33),4,FALSE),0) -> 0.1238734316 | Q25: =IF(V25=0,VLOOKUP($B25,OFFSET(INDIRECT(A25),0,0,,MDB!$H$33),5,FALSE),0) -> 0.307556878 | R25: =IF(V25=0,VLOOKUP($B25,OFFSET(INDIRECT(A25),0,0,,MDB!$H$33),6,FALSE),0) -> 0.2642827926 | S25: =(VLOOKUP(C25,OFFSET(Power_Size,0,0,ROWS(Power_Size)+1,MDB!$O$4),2,FALSE)/L25)+(0.15*O25) -> 0 | T25: =VLOOKUP(C25,OFFSET(Power_Size,0,0,ROWS(Power_Size)+1,MDB!$O$4),3,FALSE)/L25 -> 0 | U25: =VLOOKUP(C25,OFFSET(Power_Size,0,0,ROWS(Power_Size)+1,MDB!$O$4),4,FALSE)/L25 -> 0 | V25: =Input!H174 -> 0
A26: Rotary_Mower | B26: 12 ft | C26: =Input!D175 -> 0 | D26: 20 | E26: =VLOOKUP($B26,OFFSET(INDIRECT(A26),0,0,,MDB!$H$33),2,FALSE) -> Rotary mower (12 ft) | F26: =VLOOKUP(C26,OFFSET(Power_Size,0,0,,MDB!$O$4),1,FALSE) ->  | G26: 0 | H26: =Input!F175 -> 0 | I26: 7.465486827 | J26: =N26+O26+P26+S26+Input!H175 -> 2.515486827 | K26: 4.95 | L26: =VLOOKUP($B26,OFFSET(INDIRECT(A26),0,0,,MDB!$H$33),3,FALSE) -> 8.73 | M26: =VLOOKUP(C26,OFFSET(Power_Size,0,0,ROWS(Power_Size)+1,MDB!$O$4),5,FALSE)/L26 -> 0 | N26: =(1/L26)*C$2 -> 1.775486827 | O26: 0 | P26: =IF(V26=0,VLOOKUP($B26,OFFSET(INDIRECT(A26),0,0,,MDB!$H$33),4,FALSE),0) -> 0.74 | Q26: =IF(V26=0,VLOOKUP($B26,OFFSET(INDIRECT(A26),0,0,,MDB!$H$33),5,FALSE),0) -> 3 | R26: =IF(V26=0,VLOOKUP($B26,OFFSET(INDIRECT(A26),0,0,,MDB!$H$33),6,FALSE),0) -> 1.95 | S26: =(VLOOKUP(C26,OFFSET(Power_Size,0,0,ROWS(Power_Size)+1,MDB!$O$4),2,FALSE)/L26)+(0.15*O26) -> 0 | T26: =VLOOKUP(C26,OFFSET(Power_Size,0,0,ROWS(Power_Size)+1,MDB!$O$4),3,FALSE)/L26 -> 0 | U26: =VLOOKUP(C26,OFFSET(Power_Size,0,0,ROWS(Power_Size)+1,MDB!$O$4),4,FALSE)/L26 -> 0 | V26: =Input!H175 -> 0
A27: Boom_Sprayer | B27: =Input!B176 -> 30 ft | C27: =Input!D176 -> 0 | D27: 21 | E27: =VLOOKUP($B27,OFFSET(INDIRECT(A27),0,0,,MDB!$H$33),2,FALSE) -> Boom sprayer (30 ft) | F27: =VLOOKUP(C27,OFFSET(Power_Size,0,0,,MDB!$O$4),1,FALSE) ->  | G27: 0 | H27: =Input!F176 -> 0 | I27: 3.032665258 | J27: =N27+O27+P27+S27+Input!H176 -> 1.773950392 | K27: 1.258714865 | L27: =VLOOKUP($B27,OFFSET(INDIRECT(A27),0,0,,MDB!$H$33),3,FALSE) -> 15.36363636 | M27: =VLOOKUP(C27,OFFSET(Power_Size,0,0,ROWS(Power_Size)+1,MDB!$O$4),5,FALSE)/L27 -> 0 | N27: =(1/L27)*C$1 -> 1.366863905 | O27: 0 | P27: =IF(V27=0,VLOOKUP($B27,OFFSET(INDIRECT(A27),0,0,,MDB!$H$33),4,FALSE),0) -> 0.4070864872 | Q27: =IF(V27=0,VLOOKUP($B27,OFFSET(INDIRECT(A27),0,0,,MDB!$H$33),5,FALSE),0) -> 0.6411484072 | R27: =IF(V27=0,VLOOKUP($B27,OFFSET(INDIRECT(A27),0,0,,MDB!$H$33),6,FALSE),0) -> 0.6175664582 | S27: =(VLOOKUP(C27,OFFSET(Power_Size,0,0,ROWS(Power_Size)+1,MDB!$O$4),2,FALSE)/L27)+(0.15*O27) -> 0 | T27: =VLOOKUP(C27,OFFSET(Power_Size,0,0,ROWS(Power_Size)+1,MDB!$O$4),3,FALSE)/L27 -> 0 | U27: =VLOOKUP(C27,OFFSET(Power_Size,0,0,ROWS(Power_Size)+1,MDB!$O$4),4,FALSE)/L27 -> 0 | V27: =Input!H176 -> 0
A28: Boom_Sprayer_SP | B28: 60 ft | D28: 22 | E28: =VLOOKUP($B28,OFFSET(INDIRECT(A28),0,0,,MDB!$H$33),2,FALSE) -> Boom sprayer, self propelled (60 ft) | F28: N/A | G28: 0 | H28: =Input!F177 -> 0 | I28: 5.785006059 | J28: =N28+O28+P28+S28+Input!H177 -> 2.108024908 | K28: 3.676981151 | L28: =VLOOKUP($B28,OFFSET(INDIRECT(A28),0,0,,MDB!$H$33),3,FALSE) -> 33.09090909 | M28: =VLOOKUP(B28,MDB!$A$95:$G$95,7) -> 0 | N28: 0.6346153846 | O28: 0 | P28: =IF(V28=0,VLOOKUP($B28,OFFSET(INDIRECT(A28),0,0,,MDB!$H$33),4,FALSE),0) -> 1.473409523 | Q28: =IF(V28=0,VLOOKUP($B28,OFFSET(INDIRECT(A28),0,0,,MDB!$H$33),5,FALSE),0) -> 2.019783562 | R28: =IF(V28=0,VLOOKUP($B28,OFFSET(INDIRECT(A28),0,0,,MDB!$H$33),6,FALSE),0) -> 1.657197589 | S28: 0 | T28: 0 | U28: 0 | V28: =Input!H177 -> 0 | W28: Boom sprayer, self propelled (60 ft); N/A
A29: Anhydrous_Applicator | B29: 21 ft | C29: =Input!D178 -> 0 | D29: 23 | E29: =VLOOKUP($B29,OFFSET(INDIRECT(A29),0,0,,MDB!$H$33),2,FALSE) -> Anhydrous applicator (21 ft) | F29: =VLOOKUP(C29,OFFSET(Power_Size,0,0,,MDB!$O$4),1,FALSE) ->  | G29: 0 | H29: =Input!F178 -> 0 | I29: 3.871721585 | J29: =N29+O29+P29+S29+Input!H178 -> 2.130769447 | K29: 1.740952138 | L29: =VLOOKUP($B29,OFFSET(INDIRECT(A29),0,0,,MDB!$H$33),3,FALSE) -> 11.2 | M29: =VLOOKUP(C29,OFFSET(Power_Size,0,0,ROWS(Power_Size)+1,MDB!$O$4),5,FALSE)/L29 -> 0 | N29: 1.875 | O29: 0 | P29: =IF(V29=0,VLOOKUP($B29,OFFSET(INDIRECT(A29),0,0,,MDB!$H$33),4,FALSE),0) -> 0.255769447 | Q29: =IF(V29=0,VLOOKUP($B29,OFFSET(INDIRECT(A29),0,0,,MDB!$H$33),5,FALSE),0) -> 0.9180834372 | R29: =IF(V29=0,VLOOKUP($B29,OFFSET(INDIRECT(A29),0,0,,MDB!$H$33),6,FALSE),0) -> 0.8228687011 | S29: =(VLOOKUP(C29,OFFSET(Power_Size,0,0,ROWS(Power_Size)+1,MDB!$O$4),2,FALSE)/L29)+(0.15*O29) -> 0 | T29: =VLOOKUP(C29,OFFSET(Power_Size,0,0,ROWS(Power_Size)+1,MDB!$O$4),3,FALSE)/L29 -> 0 | U29: =VLOOKUP(C29,OFFSET(Power_Size,0,0,ROWS(Power_Size)+1,MDB!$O$4),4,FALSE)/L29 -> 0 | V29: =Input!H178 -> 0
A30: Fertilizer_Spreader | B30: 40 ft | C30: =Input!D179 -> 0 | D30: 24 | E30: =VLOOKUP($B30,OFFSET(INDIRECT(A30),0,0,,MDB!$H$33),2,FALSE) -> Fertilizer spreader 4 T (40 ft) | F30: =VLOOKUP(C30,OFFSET(Power_Size,0,0,,MDB!$O$4),1,FALSE) ->  | G30: 0 | H30: =Input!F179 -> 0 | I30: 2.593838384 | J30: =N30+O30+P30+S30+Input!H179 -> 1.113838384 | K30: 1.48 | L30: =VLOOKUP($B30,OFFSET(INDIRECT(A30),0,0,,MDB!$H$33),3,FALSE) -> 23.76 | M30: =VLOOKUP(C30,OFFSET(Power_Size,0,0,ROWS(Power_Size)+1,MDB!$O$4),5,FALSE)/L30 -> 0 | N30: 0.8838383838 | O30: 0 | P30: =IF(V30=0,VLOOKUP($B30,OFFSET(INDIRECT(A30),0,0,,MDB!$H$33),4,FALSE),0) -> 0.23 | Q30: =IF(V30=0,VLOOKUP($B30,OFFSET(INDIRECT(A30),0,0,,MDB!$H$33),5,FALSE),0) -> 0.77 | R30: =IF(V30=0,VLOOKUP($B30,OFFSET(INDIRECT(A30),0,0,,MDB!$H$33),6,FALSE),0) -> 0.71 | S30: =(VLOOKUP(C30,OFFSET(Power_Size,0,0,ROWS(Power_Size)+1,MDB!$O$4),2,FALSE)/L30)+(0.15*O30) -> 0 | T30: =VLOOKUP(C30,OFFSET(Power_Size,0,0,ROWS(Power_Size)+1,MDB!$O$4),3,FALSE)/L30 -> 0 | U30: =VLOOKUP(C30,OFFSET(Power_Size,0,0,ROWS(Power_Size)+1,MDB!$O$4),4,FALSE)/L30 -> 0 | V30: =Input!H179 -> 0
A31: Roller | B31: =Input!B180 -> 8 ft | C31: =Input!D180 -> 0 | D31: 25 | E31: =VLOOKUP($B31,OFFSET(INDIRECT(A31),0,0,,MDB!$H$33),2,FALSE) -> Field roller (8 ft) | F31: =VLOOKUP(C31,OFFSET(Power_Size,0,0,,MDB!$O$4),1,FALSE) ->  | G31: =IF(H31>0,1,0) -> 0 | H31: =Input!F180 -> 0 | I31: =J31+K31 -> 5.810871502 | J31: =N31+O31+P31+S31+Input!H180 -> 4.59127096 | K31: =Q31+R31+T31+U31 -> 1.219600542 | L31: =VLOOKUP($B31,OFFSET(INDIRECT(A31),0,0,,MDB!$H$33),3,FALSE) -> 4.654545455 | M31: =VLOOKUP(C31,OFFSET(Power_Size,0,0,ROWS(Power_Size)+1,MDB!$O$4),5,FALSE)/L31 -> 0 | N31: 4.51171875 | O31: =M31*C$3 -> 0 | P31: =IF(V31=0,VLOOKUP($B31,OFFSET(INDIRECT(A31),0,0,,MDB!$H$33),4,FALSE),0) -> 0.07955220959 | Q31: =IF(V31=0,VLOOKUP($B31,OFFSET(INDIRECT(A31),0,0,,MDB!$H$33),5,FALSE),0) -> 0.5178020578 | R31: =IF(V31=0,VLOOKUP($B31,OFFSET(INDIRECT(A31),0,0,,MDB!$H$33),6,FALSE),0) -> 0.7017984847 | S31: =(VLOOKUP(C31,OFFSET(Power_Size,0,0,ROWS(Power_Size)+1,MDB!$O$4),2,FALSE)/L31)+(0.15*O31) -> 0 | T31: =VLOOKUP(C31,OFFSET(Power_Size,0,0,ROWS(Power_Size)+1,MDB!$O$4),3,FALSE)/L31 -> 0 | U31: =VLOOKUP(C31,OFFSET(Power_Size,0,0,ROWS(Power_Size)+1,MDB!$O$4),4,FALSE)/L31 -> 0 | V31: =Input!H180 -> 0 | W31: =CONCATENATE(IF(V31<>0,"Rent, ",""),E31,"; ",F31) -> 
A32: Mower_Conditioner | B32: =Input!B183 -> 7 ft | C32: =Input!D183 -> 0 | D32: 26 | E32: =VLOOKUP($B32,OFFSET(INDIRECT(A32),0,0,,MDB!$H$33),2,FALSE) -> Disc mower (7 ft) | F32: =VLOOKUP(C32,OFFSET(Power_Size,0,0,,MDB!$O$4),1,FALSE) ->  | G32: =IF(H32>0,1,0) -> 0 | H32: =Input!F183 -> 0 | I32: 7.095037791 | J32: =N32+O32+P32+S32+Input!H183 -> 5.482897597 | K32: 1.612140194 | L32: =VLOOKUP($B32,OFFSET(INDIRECT(A32),0,0,,MDB!$H$33),3,FALSE) -> 4.412121212 | M32: =VLOOKUP(C32,OFFSET(Power_Size,0,0,ROWS(Power_Size)+1,MDB!$O$4),5,FALSE)/L32 -> 0 | N32: 4.759615385 | O32: 0 | P32: =IF(V32=0,VLOOKUP($B32,OFFSET(INDIRECT(A32),0,0,,MDB!$H$33),4,FALSE),0) -> 0.7232822123 | Q32: =IF(V32=0,VLOOKUP($B32,OFFSET(INDIRECT(A32),0,0,,MDB!$H$33),5,FALSE),0) -> 0.7828387108 | R32: =IF(V32=0,VLOOKUP($B32,OFFSET(INDIRECT(A32),0,0,,MDB!$H$33),6,FALSE),0) -> 0.8293014834 | S32: =(VLOOKUP(C32,OFFSET(Power_Size,0,0,ROWS(Power_Size)+1,MDB!$O$4),2,FALSE)/L32)+(0.15*O32) -> 0 | T32: =VLOOKUP(C32,OFFSET(Power_Size,0,0,ROWS(Power_Size)+1,MDB!$O$4),3,FALSE)/L32 -> 0 | U32: =VLOOKUP(C32,OFFSET(Power_Size,0,0,ROWS(Power_Size)+1,MDB!$O$4),4,FALSE)/L32 -> 0 | V32: =Input!H183 -> 0
A33: Disk_Mower | B33: =Input!B184 -> 9 ft | C33: =Input!D184 -> 0 | D33: 27 | E33: =VLOOKUP($B33,OFFSET(INDIRECT(A33),0,0,,MDB!$H$33),2,FALSE) -> Disk mower-conditioner (9 ft) | F33: =VLOOKUP(C33,OFFSET(Power_Size,0,0,,MDB!$O$4),1,FALSE) ->  | G33: 0 | H33: =Input!F184 -> 0 | I33: 7.206994684 | J33: =N33+O33+P33+S33+Input!H184 -> 4.248849441 | K33: 2.958145243 | L33: =VLOOKUP($B33,OFFSET(INDIRECT(A33),0,0,,MDB!$H$33),3,FALSE) -> 5.672727273 | M33: =VLOOKUP(C33,OFFSET(Power_Size,0,0,ROWS(Power_Size)+1,MDB!$O$4),5,FALSE)/L33 -> 0 | N33: 3.701923077 | O33: 0 | P33: =IF(V33=0,VLOOKUP($B33,OFFSET(INDIRECT(A33),0,0,,MDB!$H$33),4,FALSE),0) -> 0.5469263642 | Q33: =IF(V33=0,VLOOKUP($B33,OFFSET(INDIRECT(A33),0,0,,MDB!$H$33),5,FALSE),0) -> 1.572018446 | R33: =IF(V33=0,VLOOKUP($B33,OFFSET(INDIRECT(A33),0,0,,MDB!$H$33),6,FALSE),0) -> 1.386126797 | S33: =(VLOOKUP(C33,OFFSET(Power_Size,0,0,ROWS(Power_Size)+1,MDB!$O$4),2,FALSE)/L33)+(0.15*O33) -> 0 | T33: =VLOOKUP(C33,OFFSET(Power_Size,0,0,ROWS(Power_Size)+1,MDB!$O$4),3,FALSE)/L33 -> 0 | U33: =VLOOKUP(C33,OFFSET(Power_Size,0,0,ROWS(Power_Size)+1,MDB!$O$4),4,FALSE)/L33 -> 0 | V33: =Input!H184 -> 0
A34: Hay_Swather | B34: =Input!B185 -> 9 ft | C34: =Input!D185 -> 105 MFWD | D34: 28 | E34: =VLOOKUP($B34,OFFSET(INDIRECT(A34),0,0,,MDB!$H$33),2,FALSE) -> Swather (haybine) mower-conditioner (9 ft) | F34: =VLOOKUP(C34,OFFSET(Power_Size,0,0,,MDB!$O$4),1,FALSE) -> 105 MFWD | G34: 1 | H34: =Input!F185 -> 1 | I34: 21.92351835 | J34: =N34+O34+P34+S34+Input!H185 -> 9.65562844 | K34: 12.26788991 | L34: =VLOOKUP($B34,OFFSET(INDIRECT(A34),0,0,,MDB!$H$33),3,FALSE) -> 4.36 | M34: =VLOOKUP(C34,OFFSET(Power_Size,0,0,ROWS(Power_Size)+1,MDB!$O$4),5,FALSE)/L34 -> 1.059633028 | N34: 4.816513761 | O34: 2.521926606 | P34: =IF(V34=0,VLOOKUP($B34,OFFSET(INDIRECT(A34),0,0,,MDB!$H$33),4,FALSE),0) -> 1.01 | Q34: =IF(V34=0,VLOOKUP($B34,OFFSET(INDIRECT(A34),0,0,,MDB!$H$33),5,FALSE),0) -> 3.72 | R34: =IF(V34=0,VLOOKUP($B34,OFFSET(INDIRECT(A34),0,0,,MDB!$H$33),6,FALSE),0) -> 2.33 | S34: =(VLOOKUP(C34,OFFSET(Power_Size,0,0,ROWS(Power_Size)+1,MDB!$O$4),2,FALSE)/L34)+(0.15*O34) -> 1.307188073 | T34: =VLOOKUP(C34,OFFSET(Power_Size,0,0,ROWS(Power_Size)+1,MDB!$O$4),3,FALSE)/L34 -> 3.860091743 | U34: =VLOOKUP(C34,OFFSET(Power_Size,0,0,ROWS(Power_Size)+1,MDB!$O$4),4,FALSE)/L34 -> 2.357798165 | V34: =Input!H185 -> 0 | W34: Swather (haybine) mower-conditioner (9 ft); 105 MFWD
A35: Hay_Tedder | B35: =Input!B186 -> 2 rotor, 8.5 ft | C35: =Input!D186 -> 0 | D35: 29 | E35: =VLOOKUP($B35,OFFSET(INDIRECT(A35),0,0,,MDB!$H$33),2,FALSE) -> Hay tedder (8.5 ft) | F35: =VLOOKUP(C35,OFFSET(Power_Size,0,0,,MDB!$O$4),1,FALSE) ->  | G35: 0 | H35: =Input!F186 -> 0 | I35: 2.645308665 | J35: =N35+O35+P35+S35+Input!H186 -> 1.649693445 | K35: 0.9956152197 | L35: =VLOOKUP($B35,OFFSET(INDIRECT(A35),0,0,,MDB!$H$33),3,FALSE) -> 9.633333333 | M35: =VLOOKUP(C35,OFFSET(Power_Size,0,0,ROWS(Power_Size)+1,MDB!$O$4),5,FALSE)/L35 -> 0 | N35: =(1/L35)*C$2 -> 1.60899654 | O35: 0 | P35: =IF(V35=0,VLOOKUP($B35,OFFSET(INDIRECT(A35),0,0,,MDB!$H$33),4,FALSE),0) -> 0.04069690526 | Q35: =IF(V35=0,VLOOKUP($B35,OFFSET(INDIRECT(A35),0,0,,MDB!$H$33),5,FALSE),0) -> 0.4855403969 | R35: =IF(V35=0,VLOOKUP($B35,OFFSET(INDIRECT(A35),0,0,,MDB!$H$33),6,FALSE),0) -> 0.5100748227 | S35: =(VLOOKUP(C35,OFFSET(Power_Size,0,0,ROWS(Power_Size)+1,MDB!$O$4),2,FALSE)/L35)+(0.15*O35) -> 0 | T35: =VLOOKUP(C35,OFFSET(Power_Size,0,0,ROWS(Power_Size)+1,MDB!$O$4),3,FALSE)/L35 -> 0 | U35: =VLOOKUP(C35,OFFSET(Power_Size,0,0,ROWS(Power_Size)+1,MDB!$O$4),4,FALSE)/L35 -> 0 | V35: =Input!H186 -> 0
A36: Wheel_Rake | B36: =Input!B187 -> 2-16' wheel, 30 ft | C36: =Input!D187 -> 60 HP | D36: 30 | E36: =VLOOKUP($B36,OFFSET(INDIRECT(A36),0,0,,MDB!$H$33),2,FALSE) -> Wheel rake (2-16') | F36: =VLOOKUP(C36,OFFSET(Power_Size,0,0,,MDB!$O$4),1,FALSE) -> 60 HP | G36: 1 | H36: =Input!F187 -> 1 | I36: 3.615090909 | J36: =N36+O36+P36+S36+Input!H187 -> 1.240453782 | K36: 2.374637128 | L36: =VLOOKUP($B36,OFFSET(INDIRECT(A36),0,0,,MDB!$H$33),3,FALSE) -> 26.18 | M36: =VLOOKUP(C36,OFFSET(Power_Size,0,0,ROWS(Power_Size)+1,MDB!$O$4),5,FALSE)/L36 -> 0.1008403361 | N36: =(1/L36)*C$2 -> 0.5920550038 | O36: 0.24 | P36: =IF(V36=0,VLOOKUP($B36,OFFSET(INDIRECT(A36),0,0,,MDB!$H$33),4,FALSE),0) -> 0.33 | Q36: =IF(V36=0,VLOOKUP($B36,OFFSET(INDIRECT(A36),0,0,,MDB!$H$33),5,FALSE),0) -> 1.29 | R36: =IF(V36=0,VLOOKUP($B36,OFFSET(INDIRECT(A36),0,0,,MDB!$H$33),6,FALSE),0) -> 0.81 | S36: =(VLOOKUP(C36,OFFSET(Power_Size,0,0,ROWS(Power_Size)+1,MDB!$O$4),2,FALSE)/L36)+(0.15*O36) -> 0.07839877769 | T36: =VLOOKUP(C36,OFFSET(Power_Size,0,0,ROWS(Power_Size)+1,MDB!$O$4),3,FALSE)/L36 -> 0.1554621849 | U36: =VLOOKUP(C36,OFFSET(Power_Size,0,0,ROWS(Power_Size)+1,MDB!$O$4),4,FALSE)/L36 -> 0.1191749427 | V36: =Input!H187 -> 0 | W36: Wheel rake (2-16'); 60 HP
A37: Hay_Rake | B37: =Input!B188 -> 8.5 ft | C37: =Input!D188 -> 0 | D37: 31 | E37: =VLOOKUP($B37,OFFSET(INDIRECT(A37),0,0,,MDB!$H$33),2,FALSE) -> Roller bar rake (basket) (8.5 ft) | F37: =VLOOKUP(C37,OFFSET(Power_Size,0,0,,MDB!$O$4),1,FALSE) ->  | G37: 0 | H37: =Input!F188 -> 0 | I37: 5.717444355 | J37: =N37+O37+P37+S37+Input!H188 -> 3.136950486 | K37: 2.580493868 | L37: =VLOOKUP($B37,OFFSET(INDIRECT(A37),0,0,,MDB!$H$33),3,FALSE) -> 5.692424242 | M37: =VLOOKUP(C37,OFFSET(Power_Size,0,0,ROWS(Power_Size)+1,MDB!$O$4),5,FALSE)/L37 -> 0 | N37: =(1/L37)*C$2 -> 2.722917221 | O37: 0 | P37: =IF(V37=0,VLOOKUP($B37,OFFSET(INDIRECT(A37),0,0,,MDB!$H$33),4,FALSE),0) -> 0.4140332652 | Q37: =IF(V37=0,VLOOKUP($B37,OFFSET(INDIRECT(A37),0,0,,MDB!$H$33),5,FALSE),0) -> 1.433258067 | R37: =IF(V37=0,VLOOKUP($B37,OFFSET(INDIRECT(A37),0,0,,MDB!$H$33),6,FALSE),0) -> 1.147235802 | S37: =(VLOOKUP(C37,OFFSET(Power_Size,0,0,ROWS(Power_Size)+1,MDB!$O$4),2,FALSE)/L37)+(0.15*O37) -> 0 | T37: =VLOOKUP(C37,OFFSET(Power_Size,0,0,ROWS(Power_Size)+1,MDB!$O$4),3,FALSE)/L37 -> 0 | U37: =VLOOKUP(C37,OFFSET(Power_Size,0,0,ROWS(Power_Size)+1,MDB!$O$4),4,FALSE)/L37 -> 0 | V37: =Input!H188 -> 0
A38: Hay_Merger | B38: 20 ft | C38: =Input!D189 -> 0 | D38: 32 | E38: =VLOOKUP($B38,OFFSET(INDIRECT(A38),0,0,,MDB!$H$33),2,FALSE) -> Hay merger (20 ft both swaths) | F38: =VLOOKUP(C38,OFFSET(Power_Size,0,0,,MDB!$O$4),1,FALSE) ->  | G38: 0 | H38: =Input!F189 -> 0 | I38: 11.74462481 | J38: =N38+O38+P38+S38+Input!H189 -> 2.985005739 | K38: 8.759619069 | L38: =VLOOKUP($B38,OFFSET(INDIRECT(A38),0,0,,MDB!$H$33),3,FALSE) -> 6.109090909 | M38: =VLOOKUP(C38,OFFSET(Power_Size,0,0,ROWS(Power_Size)+1,MDB!$O$4),5,FALSE)/L38 -> 0 | N38: =(1/L38)*C$2 -> 2.537202381 | O38: 0 | P38: =IF(V38=0,VLOOKUP($B38,OFFSET(INDIRECT(A38),0,0,,MDB!$H$33),4,FALSE),0) -> 0.4478033585 | Q38: =IF(V38=0,VLOOKUP($B38,OFFSET(INDIRECT(A38),0,0,,MDB!$H$33),5,FALSE),0) -> 4.841608228 | R38: =IF(V38=0,VLOOKUP($B38,OFFSET(INDIRECT(A38),0,0,,MDB!$H$33),6,FALSE),0) -> 3.918010841 | S38: =(VLOOKUP(C38,OFFSET(Power_Size,0,0,ROWS(Power_Size)+1,MDB!$O$4),2,FALSE)/L38)+(0.15*O38) -> 0 | T38: =VLOOKUP(C38,OFFSET(Power_Size,0,0,ROWS(Power_Size)+1,MDB!$O$4),3,FALSE)/L38 -> 0 | U38: =VLOOKUP(C38,OFFSET(Power_Size,0,0,ROWS(Power_Size)+1,MDB!$O$4),4,FALSE)/L38 -> 0 | V38: =Input!H189 -> 0
A39: Hay_Baler_Twine | B39: 1 | C39: =Input!D190 -> 0 | D39: 33 | E39: =VLOOKUP($B39,OFFSET(INDIRECT(A39),0,0,,MDB!$H$33),2,FALSE) -> Small square baler | F39: =VLOOKUP(C39,OFFSET(Power_Size,0,0,,MDB!$O$4),1,FALSE) ->  | G39: 0 | H39: =Input!F190 -> 0 | I39: 11.00651376 | J39: =N39+O39+P39+S39+Input!H190 -> 7.996513761 | K39: 3.01 | L39: =VLOOKUP($B39,OFFSET(INDIRECT(A39),0,0,,MDB!$H$33),3,FALSE) -> 4.36 | M39: =VLOOKUP(C39,OFFSET(Power_Size,0,0,ROWS(Power_Size)+1,MDB!$O$4),5,FALSE)/L39 -> 0 | N39: =(1/L39)*C1 -> 4.816513761 | O39: 0 | P39: =IF(V39=0,VLOOKUP($B39,OFFSET(INDIRECT(A39),0,0,,MDB!$H$33),4,FALSE),0) -> 3.18 | Q39: =IF(V39=0,VLOOKUP($B39,OFFSET(INDIRECT(A39),0,0,,MDB!$H$33),5,FALSE),0) -> 1.83 | R39: =IF(V39=0,VLOOKUP($B39,OFFSET(INDIRECT(A39),0,0,,MDB!$H$33),6,FALSE),0) -> 1.18 | S39: =(VLOOKUP(C39,OFFSET(Power_Size,0,0,ROWS(Power_Size)+1,MDB!$O$4),2,FALSE)/L39)+(0.15*O39) -> 0 | T39: =VLOOKUP(C39,OFFSET(Power_Size,0,0,ROWS(Power_Size)+1,MDB!$O$4),3,FALSE)/L39 -> 0 | U39: =VLOOKUP(C39,OFFSET(Power_Size,0,0,ROWS(Power_Size)+1,MDB!$O$4),4,FALSE)/L39 -> 0 | V39: =Input!H190 -> 0
A40: Round_Baler | B40: =Input!B191 -> 1000 Lb | C40: =Input!D191 -> 0 | D40: 34 | E40: =VLOOKUP($B40,OFFSET(INDIRECT(A40),0,0,,MDB!$H$33),2,FALSE) -> Round baler, tie (1000 lb) | F40: =VLOOKUP(C40,OFFSET(Power_Size,0,0,,MDB!$O$4),1,FALSE) ->  | G40: 0 | H40: =Input!F191 -> 0 | I40: 12.97864993 | J40: =N40+O40+P40+S40+Input!H191 -> 10.46004411 | K40: 2.518605821 | L40: =VLOOKUP($B40,OFFSET(INDIRECT(A40),0,0,,MDB!$H$33),3,FALSE) -> 3.013636364 | M40: =VLOOKUP(C40,OFFSET(Power_Size,0,0,ROWS(Power_Size)+1,MDB!$O$4),5,FALSE)/L40 -> 0 | N40: =C1*(1/L40) -> 6.968325792 | O40: 0 | P40: =IF(V40=0,VLOOKUP($B40,OFFSET(INDIRECT(A40),0,0,,MDB!$H$33),4,FALSE),0) -> 3.491718315 | Q40: =IF(V40=0,VLOOKUP($B40,OFFSET(INDIRECT(A40),0,0,,MDB!$H$33),5,FALSE),0) -> 1.365820987 | R40: =IF(V40=0,VLOOKUP($B40,OFFSET(INDIRECT(A40),0,0,,MDB!$H$33),6,FALSE),0) -> 1.152784835 | S40: =(VLOOKUP(C40,OFFSET(Power_Size,0,0,ROWS(Power_Size)+1,MDB!$O$4),2,FALSE)/L40)+(0.15*O40) -> 0 | T40: =VLOOKUP(C40,OFFSET(Power_Size,0,0,ROWS(Power_Size)+1,MDB!$O$4),3,FALSE)/L40 -> 0 | U40: =VLOOKUP(C40,OFFSET(Power_Size,0,0,ROWS(Power_Size)+1,MDB!$O$4),4,FALSE)/L40 -> 0 | V40: =Input!H191 -> 0
A41: Hay_Baler_Wrap | B41: =Input!B192 -> 1500 lb | C41: =Input!D192 -> 105 MFWD | D41: 35 | E41: =VLOOKUP($B41,OFFSET(INDIRECT(A41),0,0,,MDB!$H$33),2,FALSE) -> Round baler, net wrap (1500 lb) | F41: =VLOOKUP(C41,OFFSET(Power_Size,0,0,,MDB!$O$4),1,FALSE) -> 105 MFWD | G41: 1 | H41: =Input!F192 -> 1 | I41: 18.06766561 | J41: =N41+O41+P41+S41+Input!H192 -> 12.00888254 | K41: 6.058783069 | L41: =VLOOKUP($B41,OFFSET(INDIRECT(A41),0,0,,MDB!$H$33),3,FALSE) -> 9.45 | M41: =VLOOKUP(C41,OFFSET(Power_Size,0,0,ROWS(Power_Size)+1,MDB!$O$4),5,FALSE)/L41 -> 0.4888888889 | N41: =C1*(1/L41) -> 2.222222222 | O41: 1.163555556 | P41: =IF(V41=0,VLOOKUP($B41,OFFSET(INDIRECT(A41),0,0,,MDB!$H$33),4,FALSE),0) -> 8.02 | Q41: =IF(V41=0,VLOOKUP($B41,OFFSET(INDIRECT(A41),0,0,,MDB!$H$33),5,FALSE),0) -> 2.03 | R41: =IF(V41=0,VLOOKUP($B41,OFFSET(INDIRECT(A41),0,0,,MDB!$H$33),6,FALSE),0) -> 1.16 | S41: =(VLOOKUP(C41,OFFSET(Power_Size,0,0,ROWS(Power_Size)+1,MDB!$O$4),2,FALSE)/L41)+(0.15*O41) -> 0.6031047619 | T41: =VLOOKUP(C41,OFFSET(Power_Size,0,0,ROWS(Power_Size)+1,MDB!$O$4),3,FALSE)/L41 -> 1.780952381 | U41: =VLOOKUP(C41,OFFSET(Power_Size,0,0,ROWS(Power_Size)+1,MDB!$O$4),4,FALSE)/L41 -> 1.087830688 | V41: =Input!H192 -> 0 | W41: Round baler, net wrap (1500 lb); 105 MFWD
A42: Round_Baler_Silage | B42: =Input!B193 -> 1000 lb | C42: =Input!D193 -> 0 | D42: 36 | E42: =VLOOKUP($B42,OFFSET(INDIRECT(A42),0,0,,MDB!$H$33),2,FALSE) -> Round baler, silage kit (1000 lb) | F42: =VLOOKUP(C42,OFFSET(Power_Size,0,0,,MDB!$O$4),1,FALSE) ->  | G42: =IF(H42>0,1,0) -> 0 | H42: =Input!F193 -> 0 | I42: =J42+K42 -> 11.15146857 | J42: =N42+O42+P42+S42+Input!H193 -> 5.575991002 | K42: =Q42+R42+T42+U42 -> 5.575477568 | L42: =VLOOKUP($B42,OFFSET(INDIRECT(A42),0,0,,MDB!$H$33),3,FALSE) -> 5.454545455 | M42: =VLOOKUP(C42,OFFSET(Power_Size,0,0,ROWS(Power_Size)+1,MDB!$O$4),5,FALSE)/L42 -> 0 | N42: =C1*(1/L42) -> 3.85 | O42: =M42*C$3 -> 0 | P42: =IF(V42=0,VLOOKUP($B42,OFFSET(INDIRECT(A42),0,0,,MDB!$H$33),4,FALSE),0) -> 1.725991002 | Q42: =IF(V42=0,VLOOKUP($B42,OFFSET(INDIRECT(A42),0,0,,MDB!$H$33),5,FALSE),0) -> 3.258628591 | R42: =IF(V42=0,VLOOKUP($B42,OFFSET(INDIRECT(A42),0,0,,MDB!$H$33),6,FALSE),0) -> 2.316848977 | S42: =(VLOOKUP(C42,OFFSET(Power_Size,0,0,ROWS(Power_Size)+1,MDB!$O$4),2,FALSE)/L42)+(0.15*O42) -> 0 | T42: =VLOOKUP(C42,OFFSET(Power_Size,0,0,ROWS(Power_Size)+1,MDB!$O$4),3,FALSE)/L42 -> 0 | U42: =VLOOKUP(C42,OFFSET(Power_Size,0,0,ROWS(Power_Size)+1,MDB!$O$4),4,FALSE)/L42 -> 0 | V42: =Input!H193 -> 0 | W42: =CONCATENATE(IF(V42<>0,"Rent, ",""),E42,"; ",F42) -> 
A43: Large_Rectangular_Baler | B43: 1 | C43: =Input!D194 -> 0 | D43: 37 | E43: =VLOOKUP($B43,OFFSET(INDIRECT(A43),0,0,,MDB!$H$33),2,FALSE) -> Large rectangular baler | F43: =VLOOKUP(C43,OFFSET(Power_Size,0,0,,MDB!$O$4),1,FALSE) ->  | G43: 0 | H43: =Input!F194 -> 0 | I43: 8.133662591 | J43: =N43+O43+P43+S43+Input!H194 -> 1.948105101 | K43: 6.18555749 | L43: =VLOOKUP($B43,OFFSET(INDIRECT(A43),0,0,,MDB!$H$33),3,FALSE) -> 16.29090909 | M43: =VLOOKUP(C43,OFFSET(Power_Size,0,0,ROWS(Power_Size)+1,MDB!$O$4),5,FALSE)/L43 -> 0 | N43: =C1*(1/L43) -> 1.2890625 | O43: 0 | P43: =IF(V43=0,VLOOKUP($B43,OFFSET(INDIRECT(A43),0,0,,MDB!$H$33),4,FALSE),0) -> 0.6590426005 | Q43: =IF(V43=0,VLOOKUP($B43,OFFSET(INDIRECT(A43),0,0,,MDB!$H$33),5,FALSE),0) -> 3.387500323 | R43: =IF(V43=0,VLOOKUP($B43,OFFSET(INDIRECT(A43),0,0,,MDB!$H$33),6,FALSE),0) -> 2.798057167 | S43: =(VLOOKUP(C43,OFFSET(Power_Size,0,0,ROWS(Power_Size)+1,MDB!$O$4),2,FALSE)/L43)+(0.15*O43) -> 0 | T43: =VLOOKUP(C43,OFFSET(Power_Size,0,0,ROWS(Power_Size)+1,MDB!$O$4),3,FALSE)/L43 -> 0 | U43: =VLOOKUP(C43,OFFSET(Power_Size,0,0,ROWS(Power_Size)+1,MDB!$O$4),4,FALSE)/L43 -> 0 | V43: =Input!H194 -> 0
A44: Forage_Harvester | B44: =Input!B195 -> 3 row corn head | C44: =Input!D195 -> 0 | D44: 38 | E44: =VLOOKUP($B44,OFFSET(INDIRECT(A44),0,0,,MDB!$H$33),2,FALSE) -> Silage Chopper, 3 row (5 ft) | F44: =VLOOKUP(C44,OFFSET(Power_Size,0,0,,MDB!$O$4),1,FALSE) ->  | G44: 0 | H44: =Input!F195 -> 0 | I44: 34.67492754 | J44: =N44+O44+P44+S44+Input!H195 -> 19.95492754 | K44: 14.72 | L44: =VLOOKUP($B44,OFFSET(INDIRECT(A44),0,0,,MDB!$H$33),3,FALSE) -> 2.07 | M44: =VLOOKUP(C44,OFFSET(Power_Size,0,0,ROWS(Power_Size)+1,MDB!$O$4),5,FALSE)/L44 -> 0 | N44: =C1*(1/L44) -> 10.14492754 | O44: 0 | P44: =IF(V44=0,VLOOKUP($B44,OFFSET(INDIRECT(A44),0,0,,MDB!$H$33),4,FALSE),0) -> 9.81 | Q44: =IF(V44=0,VLOOKUP($B44,OFFSET(INDIRECT(A44),0,0,,MDB!$H$33),5,FALSE),0) -> 8.21 | R44: =IF(V44=0,VLOOKUP($B44,OFFSET(INDIRECT(A44),0,0,,MDB!$H$33),6,FALSE),0) -> 6.51 | S44: =(VLOOKUP(C44,OFFSET(Power_Size,0,0,ROWS(Power_Size)+1,MDB!$O$4),2,FALSE)/L44)+(0.15*O44) -> 0 | T44: =VLOOKUP(C44,OFFSET(Power_Size,0,0,ROWS(Power_Size)+1,MDB!$O$4),3,FALSE)/L44 -> 0 | U44: =VLOOKUP(C44,OFFSET(Power_Size,0,0,ROWS(Power_Size)+1,MDB!$O$4),4,FALSE)/L44 -> 0 | V44: =Input!H195 -> 0
A45: Hay_Stacker | B45: 3 ton | C45: =Input!D196 -> 0 | D45: 39 | E45: =VLOOKUP($B45,OFFSET(INDIRECT(A45),0,0,,MDB!$H$33),2,FALSE) -> Bale wagon/stacker, pull-type (3 ton) | F45: =VLOOKUP(C45,OFFSET(Power_Size,0,0,,MDB!$O$4),1,FALSE) ->  | G45: 0 | H45: =Input!F196 -> 0 | I45: 9.615575956 | J45: =N45+O45+P45+S45+Input!H196 -> 3.452096396 | K45: 6.16347956 | L45: =VLOOKUP($B45,OFFSET(INDIRECT(A45),0,0,,MDB!$H$33),3,FALSE) -> 7.757575758 | M45: =VLOOKUP(C45,OFFSET(Power_Size,0,0,ROWS(Power_Size)+1,MDB!$O$4),5,FALSE)/L45 -> 0 | N45: =(1/L45)*C1 -> 2.70703125 | O45: 0 | P45: =IF(V45=0,VLOOKUP($B45,OFFSET(INDIRECT(A45),0,0,,MDB!$H$33),4,FALSE),0) -> 0.7450651456 | Q45: =IF(V45=0,VLOOKUP($B45,OFFSET(INDIRECT(A45),0,0,,MDB!$H$33),5,FALSE),0) -> 3.266304994 | R45: =IF(V45=0,VLOOKUP($B45,OFFSET(INDIRECT(A45),0,0,,MDB!$H$33),6,FALSE),0) -> 2.897174567 | S45: =(VLOOKUP(C45,OFFSET(Power_Size,0,0,ROWS(Power_Size)+1,MDB!$O$4),2,FALSE)/L45)+(0.15*O45) -> 0 | T45: =VLOOKUP(C45,OFFSET(Power_Size,0,0,ROWS(Power_Size)+1,MDB!$O$4),3,FALSE)/L45 -> 0 | U45: =VLOOKUP(C45,OFFSET(Power_Size,0,0,ROWS(Power_Size)+1,MDB!$O$4),4,FALSE)/L45 -> 0 | V45: =Input!H196 -> 0
A46: Stalk_Shredder | B46: 20 ft | C46: =Input!D197 -> 0 | D46: 40 | E46: =VLOOKUP($B46,OFFSET(INDIRECT(A46),0,0,,MDB!$H$33),2,FALSE) -> Stalk shredder (20 ft) | F46: =VLOOKUP(C46,OFFSET(Power_Size,0,0,,MDB!$O$4),1,FALSE) ->  | G46: 0 | H46: =Input!F197 -> 0 | I46: 6.665707346 | J46: =N46+O46+P46+S46+Input!H197 -> 3.007480698 | K46: 3.658226648 | L46: =VLOOKUP($B46,OFFSET(INDIRECT(A46),0,0,,MDB!$H$33),3,FALSE) -> 7.757575758 | M46: =VLOOKUP(C46,OFFSET(Power_Size,0,0,ROWS(Power_Size)+1,MDB!$O$4),5,FALSE)/L46 -> 0 | N46: =C$2*(1/L46) -> 1.998046875 | O46: 0 | P46: =IF(V46=0,VLOOKUP($B46,OFFSET(INDIRECT(A46),0,0,,MDB!$H$33),4,FALSE),0) -> 1.009433823 | Q46: =IF(V46=0,VLOOKUP($B46,OFFSET(INDIRECT(A46),0,0,,MDB!$H$33),5,FALSE),0) -> 1.853536595 | R46: =IF(V46=0,VLOOKUP($B46,OFFSET(INDIRECT(A46),0,0,,MDB!$H$33),6,FALSE),0) -> 1.804690053 | S46: =(VLOOKUP(C46,OFFSET(Power_Size,0,0,ROWS(Power_Size)+1,MDB!$O$4),2,FALSE)/L46)+(0.15*O46) -> 0 | T46: =VLOOKUP(C46,OFFSET(Power_Size,0,0,ROWS(Power_Size)+1,MDB!$O$4),3,FALSE)/L46 -> 0 | U46: =VLOOKUP(C46,OFFSET(Power_Size,0,0,ROWS(Power_Size)+1,MDB!$O$4),4,FALSE)/L46 -> 0 | V46: =Input!H197 -> 0
A47: Grainhead_Size | B47: =Input!B198 -> 15 ft | C47: =Input!D198 -> 100 HP Comb. | D47: 41 | E47: =VLOOKUP($B47,OFFSET(INDIRECT(A47),0,0,,MDB!$H$33),2,FALSE) -> Combine, fixed grain head (15 ft) | F47: =VLOOKUP(C47,MDB!$A$20:$G$22,2,FALSE) -> 100 HP Comb. | G47: 1 | H47: =Input!F198 -> 1 | I47: 9.297717328 | J47: =N47+O47+P47+S47+Input!H198 -> 6.520802132 | K47: 2.776915196 | L47: =VLOOKUP($B47,OFFSET(INDIRECT(A47),0,0,,MDB!$H$33),3,FALSE) -> 6.681818182 | M47: =VLOOKUP(C47,MDB!$A$20:$G$22,7,FALSE)/L47 -> 0.6585034014 | N47: =(1/L47)*C1 -> 3.142857143 | O47: 1.567238095 | P47: =IF(V47=0,VLOOKUP($B47,OFFSET(INDIRECT(A47),0,0,,MDB!$H$33),4,FALSE),0) -> 0.378342268 | Q47: =IF(V47=0,VLOOKUP($B47,OFFSET(INDIRECT(A47),0,0,,MDB!$H$33),5,FALSE),0) -> 1.440904146 | R47: =IF(V47=0,VLOOKUP($B47,OFFSET(INDIRECT(A47),0,0,,MDB!$H$33),6,FALSE),0) -> 0.7460674523 | S47: =(VLOOKUP(C47,MDB!$A$20:$G$22,4,FALSE)/L47)+(0.15*O47) -> 1.432364626 | T47: =VLOOKUP(C47,MDB!$A$20:$G$22,5,FALSE)/L47 -> 0.3106250584 | U47: =VLOOKUP(C47,MDB!$A$20:$G$22,6,FALSE)/L47 -> 0.2793185397 | V47: =Input!H198 -> 0 | W47: Combine, fixed grain head (15 ft); 100 HP Comb.
A48: Soybeanhead_Size | B48: =Input!B199 -> 15 ft | C48: =Input!D199 -> 220 HP Comb. | D48: 42 | E48: =VLOOKUP($B48,OFFSET(INDIRECT(A48),0,0,,MDB!$H$33),2,FALSE) -> Combine, flexible grain head (15 ft) | F48: =VLOOKUP(C48,MDB!$A$20:$G$22,2,FALSE) -> 220 HP Comb. | G48: 0 | H48: =Input!F199 -> 0 | I48: 27.81925728 | J48: =N48+O48+P48+S48+Input!H199 -> 13.11957413 | K48: 14.69968315 | L48: =VLOOKUP($B48,OFFSET(INDIRECT(A48),0,0,,MDB!$H$33),3,FALSE) -> 6.681818182 | M48: =VLOOKUP(C48,MDB!$A$20:$G$22,7,FALSE)/L48 -> 1.448707483 | N48: =(1/L48)*C1 -> 3.142857143 | O48: 3.44792381 | P48: =IF(V48=0,VLOOKUP($B48,OFFSET(INDIRECT(A48),0,0,,MDB!$H$33),4,FALSE),0) -> 0.4255598086 | Q48: =IF(V48=0,VLOOKUP($B48,OFFSET(INDIRECT(A48),0,0,,MDB!$H$33),5,FALSE),0) -> 1.451508533 | R48: =IF(V48=0,VLOOKUP($B48,OFFSET(INDIRECT(A48),0,0,,MDB!$H$33),6,FALSE),0) -> 0.7599644323 | S48: =(VLOOKUP(C48,MDB!$A$20:$G$22,4,FALSE)/L48)+(0.15*O48) -> 6.103233372 | T48: =VLOOKUP(C48,MDB!$A$20:$G$22,5,FALSE)/L48 -> 7.324148953 | U48: =VLOOKUP(C48,MDB!$A$20:$G$22,6,FALSE)/L48 -> 5.164061229 | V48: =Input!H199 -> 0 | W48: Combine, flexible grain head (15 ft); 220 HP Comb.
A49: Cornhead_Size | B49: =Input!B200 -> 6 row | C49: =Input!D200 -> 220 HP Comb. | D49: 43 | E49: =VLOOKUP($B49,OFFSET(INDIRECT(A49),0,0,,MDB!$H$33),2,FALSE) -> Combine, corn head (6 row) | F49: =VLOOKUP(C49,MDB!$A$20:$G$22,2,FALSE) -> 220 HP Comb. | G49: 0 | H49: =Input!F200 -> 0 | I49: 29.8564863 | J49: =N49+O49+P49+S49+Input!H200 -> 13.38401637 | K49: 16.47246992 | L49: =VLOOKUP($B49,OFFSET(INDIRECT(A49),0,0,,MDB!$H$33),3,FALSE) -> 6.681818182 | M49: =VLOOKUP(C49,MDB!$A$20:$G$22,7,FALSE)/L49 -> 1.448707483 | N49: =(1/L49)*C1 -> 3.142857143 | O49: 3.44792381 | P49: =IF(V49=0,VLOOKUP($B49,OFFSET(INDIRECT(A49),0,0,,MDB!$H$33),4,FALSE),0) -> 0.690002048 | Q49: =IF(V49=0,VLOOKUP($B49,OFFSET(INDIRECT(A49),0,0,,MDB!$H$33),5,FALSE),0) -> 2.627850218 | R49: =IF(V49=0,VLOOKUP($B49,OFFSET(INDIRECT(A49),0,0,,MDB!$H$33),6,FALSE),0) -> 1.356409524 | S49: =(VLOOKUP(C49,MDB!$A$20:$G$22,4,FALSE)/L49)+(0.15*O49) -> 6.103233372 | T49: =VLOOKUP(C49,MDB!$A$20:$G$22,5,FALSE)/L49 -> 7.324148953 | U49: =VLOOKUP(C49,MDB!$A$20:$G$22,6,FALSE)/L49 -> 5.164061229 | V49: =Input!H200 -> 0 | W49: Combine, corn head (6 row); 220 HP Comb.
A50: Silage_Wrapper | B50: 1 | C50: =Input!D202 -> 0 | D50: 44 | E50: =VLOOKUP($B50,OFFSET(Silage_Wrapper,0,0,,MDB!$H$33),2,FALSE) -> Rd bale wrapper haylage | F50: =VLOOKUP(C50,OFFSET(Power_Size,0,0,,MDB!$O$4),1,FALSE) ->  | G50: 0 | H50: =IF(Input!F202<>0,1,0) -> 0 | I50: 39.18 | J50: =N50+O50+P50+S50+Input!F202*Input!H202/Input!$B$15 -> 30.62 | K50: 8.56 | L50: =IF(VLOOKUP($B50,OFFSET(Silage_Wrapper,0,0,,MDB!$H$33),3,FALSE)<>0,VLOOKUP($B50,OFFSET(Silage_Wrapper,0,0,,MDB!$H$33),3,FALSE),1) -> 1 | M50: =VLOOKUP(C50,OFFSET(Power_Size,0,0,ROWS(Power_Size)+1,MDB!$O$4),5,FALSE)/L50 -> 0 | N50: =IF(L50<>0,(1/L50)*$C$2,0) -> 15.5 | O50: 0 | P50: =IF(Input!H202=0,IF(L50<>0,VLOOKUP($B50,OFFSET(Silage_Wrapper,0,0,,MDB!$H$33),4,FALSE)/L50,0),0) -> 15.12 | Q50: =IF(Input!H202=0,IF(L50<>0,VLOOKUP($B50,OFFSET(Silage_Wrapper,0,0,,MDB!$H$33),5,FALSE)/L50,0),0) -> 1.97 | R50: =IF(Input!H202=0,IF(L50<>0,VLOOKUP($B50,OFFSET(Silage_Wrapper,0,0,,MDB!$H$33),6,FALSE)/L50,0),0) -> 6.59 | S50: =(VLOOKUP(C50,OFFSET(Power_Size,0,0,ROWS(Power_Size)+1,MDB!$O$4),2,FALSE)/L50)+(0.15*O50) -> 0 | T50: =VLOOKUP(C50,OFFSET(Power_Size,0,0,ROWS(Power_Size)+1,MDB!$O$4),3,FALSE)/L50 -> 0 | U50: =VLOOKUP(C50,OFFSET(Power_Size,0,0,ROWS(Power_Size)+1,MDB!$O$4),4,FALSE)/L50 -> 0 | V50: =Input!H202 -> 0
A51: Graincart | B51: =Input!B203 -> 500 bushel | C51: =Input!D203 -> 0 | D51: 45 | E51: =VLOOKUP($B51,OFFSET(Graincart,0,0,,MDB!$H$33),2,FALSE) -> Grain cart (500 bushel) | F51: =VLOOKUP(C51,OFFSET(Power_Size,0,0,,MDB!$O$4),1,FALSE) ->  | G51: 0 | H51: =IF(Input!F203<>0,1,0) -> 0 | I51: 31.74 | J51: =N51+O51+P51+S51+Input!F203*Input!H203/Input!$B$15 -> 18.35 | K51: 13.39 | L51: =IF(VLOOKUP($B51,OFFSET(Graincart,0,0,,MDB!$H$33),3,FALSE)<>0,VLOOKUP($B51,OFFSET(Graincart,0,0,,MDB!$H$33),3,FALSE),1) -> 1 | M51: =VLOOKUP(C51,OFFSET(Power_Size,0,0,ROWS(Power_Size)+1,MDB!$O$4),5,FALSE)/L51 -> 0 | N51: =IF(L51<>0,(1/L51)*$C$2,0) -> 15.5 | O51: 0 | P51: =IF(Input!H203=0,IF(L51<>0,VLOOKUP($B51,OFFSET(Graincart,0,0,,MDB!$H$33),4,FALSE)/L51,0),0) -> 2.85 | Q51: =IF(Input!H203=0,IF(L51<>0,VLOOKUP($B51,OFFSET(Graincart,0,0,,MDB!$H$33),5,FALSE)/L51,0),0) -> 7.14 | R51: =IF(Input!H203=0,IF(L51<>0,VLOOKUP($B51,OFFSET(Graincart,0,0,,MDB!$H$33),6,FALSE)/L51,0),0) -> 6.25 | S51: =(VLOOKUP(C51,OFFSET(Power_Size,0,0,ROWS(Power_Size)+1,MDB!$O$4),2,FALSE)/L51)+(0.15*O51) -> 0 | T51: =VLOOKUP(C51,OFFSET(Power_Size,0,0,ROWS(Power_Size)+1,MDB!$O$4),3,FALSE)/L51 -> 0 | U51: =VLOOKUP(C51,OFFSET(Power_Size,0,0,ROWS(Power_Size)+1,MDB!$O$4),4,FALSE)/L51 -> 0 | V51: =Input!H203 -> 0
A52: Grain_Auger | B52: =Input!B204 -> 70 ft | C52: =Input!D204 -> 0 | D52: 46 | E52: =VLOOKUP($B52,OFFSET(Grain_Auger,0,0,,MDB!$H$33),2,FALSE) -> Grain auger 10 in- 5000 bu/hr (70 ft) | F52: =VLOOKUP(C52,OFFSET(Power_Size,0,0,,MDB!$O$4),1,FALSE) ->  | G52: 0 | H52: =IF(Input!F204<>0,1,0) -> 0 | I52: 23.53 | J52: =N52+O52+P52+S52+Input!F204*Input!H204/Input!$B$15 -> 17.34 | K52: 6.19 | L52: =IF(VLOOKUP($B52,OFFSET(Grain_Auger,0,0,,MDB!$H$33),3,FALSE)<>0,VLOOKUP($B52,OFFSET(Grain_Auger,0,0,,MDB!$H$33),3,FALSE),1) -> 1 | M52: =VLOOKUP(C52,OFFSET(Power_Size,0,0,ROWS(Power_Size)+1,MDB!$O$4),5,FALSE)/L52 -> 0 | N52: =IF(L52<>0,(1/L52)*$C$2,0) -> 15.5 | O52: 0 | P52: =IF(Input!H204=0,IF(L52<>0,VLOOKUP($B52,OFFSET(Grain_Auger,0,0,,MDB!$H$33),4,FALSE)/L52,0),0) -> 1.84 | Q52: =IF(Input!H204=0,IF(L52<>0,VLOOKUP($B52,OFFSET(Grain_Auger,0,0,,MDB!$H$33),5,FALSE)/L52,0),0) -> 3.44 | R52: =IF(Input!H204=0,IF(L52<>0,VLOOKUP($B52,OFFSET(Grain_Auger,0,0,,MDB!$H$33),6,FALSE)/L52,0),0) -> 2.75 | S52: =(VLOOKUP(C52,OFFSET(Power_Size,0,0,ROWS(Power_Size)+1,MDB!$O$4),2,FALSE)/L52)+(0.15*O52) -> 0 | T52: =VLOOKUP(C52,OFFSET(Power_Size,0,0,ROWS(Power_Size)+1,MDB!$O$4),3,FALSE)/L52 -> 0 | U52: =VLOOKUP(C52,OFFSET(Power_Size,0,0,ROWS(Power_Size)+1,MDB!$O$4),4,FALSE)/L52 -> 0 | V52: =Input!H204 -> 0
A53: ATVSpreader | B53: =Input!B181 -> 6 ft | D53: 47 | E53: =VLOOKUP($B53,OFFSET(ATVSpreader,0,0,,MDB!$H$33),2,FALSE) -> ATV spreader combo (6 ft) | G53: =IF(H53>0,1,0) -> 0 | H53: =Input!F181 -> 0 | I53: =J53+K53 -> 3.785372168 | J53: =N53+O53+P53+S53+Input!H204 -> 2.572038835 | K53: =Q53+R53+T53+U53 -> 1.213333333 | L53: =VLOOKUP($B53,OFFSET(ATVSpreader,0,0,,MDB!$H$33),3,FALSE) -> 6.18 | M53: =VLOOKUP(C53,OFFSET(Power_Size,0,0,ROWS(Power_Size)+1,MDB!$O$4),5,FALSE)/L53 -> 0 | N53: =(1/L53)*C2 -> 2.508090615 | O53: =M53*C$3 -> 0 | P53: =IF(Input!H204=0,VLOOKUP($B53,OFFSET(ATVSpreader,0,0,,MDB!$H$33),4,FALSE),0) -> 0.06394822006 | Q53: =IF(Input!H204=0,VLOOKUP($B53,OFFSET(ATVSpreader,0,0,,MDB!$H$33),5,FALSE),0) -> 0.8431067961 | R53: =IF(Input!H204=0,VLOOKUP($B53,OFFSET(ATVSpreader,0,0,,MDB!$H$33),6,FALSE),0) -> 0.3702265372 | S53: =(VLOOKUP(C53,OFFSET(Power_Size,0,0,ROWS(Power_Size)+1,MDB!$O$4),2,FALSE)/L53)+(0.15*O53) -> 0 | T53: =VLOOKUP(C53,OFFSET(Power_Size,0,0,ROWS(Power_Size)+1,MDB!$O$4),3,FALSE)/L53 -> 0 | U53: =VLOOKUP(C53,OFFSET(Power_Size,0,0,ROWS(Power_Size)+1,MDB!$O$4),4,FALSE)/L53 -> 0 | V53: =Input!H181 -> 0 | W53: =CONCATENATE(IF(V53<>0,"Rent, ",""),E53) -> ATV spreader combo (6 ft)
D54: 48 | E54: Irrigation | G54: =IF(MDB!C176=1,1,0) -> 0 | H54: =G54 -> 0 | J54: =N54+O54+P54+S54 ->  | K54: 44 | L54: =1/Input!B75 ->  | N54: =(1/L54)*C2 ->  | O54: =Input!B76*Input!B77 -> 0 | P54: =MDB!C168*Input!B76 -> 0 | Q54: =MDB!C170 -> 22 | R54: =MDB!C169 -> 22 | S54: 0 | T54: 0 | U54: 0 | W54: =E54 -> Irrigation
D55: 49 | E55: Pickup truck | G55: 1 | H55: 1 | I55: =J55+K55 -> 2.945133167 | J55: =N55+O55+P55+S55 -> 1.180258333 | K55: =Q55+R55+T55+U55 -> 1.764874833 | L55: 0 | M55: =E71 -> 0.2777777778 | O55: =E61 -> 0.7083333333 | S55: =E62+E63 -> 0.471925 | T55: =E66 -> 0.9138333333 | U55: =E65+E67 -> 0.8510415 | W55: =E55 -> Pickup truck
A58: Farm pickup annual costs | D58: Annual costs | E58: Costs per acre
A59: Assumptions and variables | D59: this crop | E59: this crop
A60: New price | B60: 37415 | C60: Labor costs | D60: xx | E60: xx
A61: Economic life | B61: 10 | C61: Fuel costs | D61: =D71*$C$4 -> 212.5 | E61: =D61/$B$70 -> 0.7083333333
A62: Salvage value | B62: 10000 | C62: Lube costs | D62: =B64*D61 -> 10.625 | E62: 0.03541666667
A63: Miles per gal | B63: 18 | C63: Repair costs | D63: =B60*B65*B68 -> 130.9525 | E63: 0.4365083333
A64: Lube factor | B64: 0.05 | C64: Oper costs | D64: =SUM(D61:D63) -> 354.0775 | E64: 1.180258333
A65: Repair factor | B65: 0.035 | C65: Tax, insur, housing | D65: =B66*B60*B68 -> 112.245 | E65: 0.37415
A66: TIH factor | B66: 0.03 | C66: Deprec, S/L | D66: =((B60-B62)/B61)*B68 -> 274.15 | E66: 0.9138333333
A67: Interest rate | B67: 0.06 | C67: Interest | D67: =(B60+B62+D66)/2*B67*B68 -> 143.06745 | E67: 0.4768915
A68: Allocate pickup costs to this crop | B68: =PUAlloc/100 -> 0.1 | C68: Ownership costs | D68: =SUM(D65:D67) -> 529.46245 | E68: 1.764874833
A69: Fuel price | B69: =Input!B91 -> 2.55 | C69: Total costs | D69: =D64+D68 -> 883.53995 | E69: 2.945133167
A70: Enterprise planted acres | B70: =IF(acres<>0,acres,1) -> 300
A71: Miles per year | B71: =PUMiles -> 15000 | C71: Fuel quantity, gal | D71: =(B71*B68)/B63 -> 83.33333333 | E71: =D71/B70 -> 0.2777777778
C72: Labor, hours | D72: xx | E72: xx

Sheet Output (hidden)
B1: Enterprise Budget | F1: =IF(MDB!$C$177=1,TODAY(),"") -> 2020-10-26 | H1: =IF(MDB!$C$177=2,TODAY(),"") ->  | O1: Enterprise Budget
K2: tons hay/acre
B3: =Input!B5 -> 2021 Fescue+Seed+Stubble Prod | E3: Yield, tons air-dry: | F3: =K3 -> 3.2125 | K3: =SUM(K7:M7) -> 3.2125 | O3: Yield per acre, tons air-dry basis*
B4: =VLOOKUP(MDB!C173,MDB!H172:J173,3) -> Production | E4: =IF(F4<>"","Weighted value per ton, air-dry:","") -> Weighted value per ton, air-dry: | F4: =IF(SUM(K7:M7)<>0,SUM(K8:M8)/SUM(K7:M7),"") -> 74.39688716 | O4: Weighted value per ton, air dry*
B5: =IF(MDB!C177=1,IF(Input!B81<>0,"Cash rent","Owned land"),"Share rent") -> Owned land | K5: hay | L5: haylage | M5: pasture
B6: =VLOOKUP(MDB!C176,MDB!H179:I180,2) -> Dryland
F7: Business unit | G7: Operator | H7: Landlord | J7: Yield, DM | K7: =IF(MDB!$C$175=1,hay,(hay*Input!$B$17)/2000) -> 2.8 | L7: =IF(MDB!$D$175=1,haylage*Input!B19/0.9,(haylage*Input!$B$19)/2000) -> 0 | M7: =IF(MDB!$E$175=1,pasture,(pasture*Input!$B$21)/2000) -> 0.4125 | O7: Income per acre
B8: Income per acre | D8: Yield | E8: Price | F8: total | G8: share | H8: share | J8: Value | K8: =hay*Input!F16 -> 224 | L8: =haylage*Input!F18 -> 0 | M8: =pasture*Input!F20 -> 15 | O8: Hay | P8: 40
B9: Hay | C9: =IF(HayYieldType=2,Input!B17 & " lb ","") & VLOOKUP(MDB!$C$175,OFFSET(Primary_Units,,-1,,3),3) & "s" -> 1400 lb bales | D9: =hay -> 4 | E9: =Input!F16 -> 56 | F9: =D9*E9 -> 224 | G9: =0.01*(100-Input!$B$134)*Output!$F9 -> 224 | H9: =0.01*(Input!$B$134)*Output!$F9 -> 0 | J9: Value/Yield | K9: =K8/K7 -> 80 | L9: =L8/L7 ->  | M9: =M8/M7 -> 36.36363636 | O9: Baleage | P9: 0
B10: Baleage or silage | C10: =VLOOKUP(MDB!$D$175,OFFSET(Primary_Units,,-1,,3),3) & "s" -> bales | D10: =haylage -> 0 | E10: =Input!F18 -> 0 | F10: =D10*E10 -> 0 | G10: =0.01*(100-Input!$B$134)*Output!$F10 -> 0 | H10: =0.01*(Input!$B$134)*Output!$F10 -> 0 | O10: Grazing | P10: 14
B11: Grazing | C11: =VLOOKUP(MDB!$E$175,OFFSET(Pasture_Units,,-1,,3),3) & "s" -> AUMs | D11: =pasture -> 1 | E11: =Input!F20 -> 15 | F11: =D11*E11 -> 15 | G11: =0.01*(100-Input!$B$134)*Output!$F11 -> 15 | H11: =0.01*(Input!$B$134)*Output!$F11 -> 0 | O11: Seed | P11: 0
B12: Seed | C12: lbs | D12: =seed -> 300 | E12: =Input!F22 -> 0.28 | F12: =D12*E12 -> 84 | G12: =0.01*(100-Input!$B$134)*Output!$F12 -> 84 | H12: =0.01*(Input!$B$134)*Output!$F12 -> 0 | O12: Other income | P12: 0
B13: Other income | F13: =Input!B23 -> 0 | G13: =0.01*(100-Input!$B$134)*Output!$F13 -> 0 | H13: =0.01*(Input!$B$134)*Output!$F13+Input!B81 -> 0 | O13: Total income per acre | P13: 54
B14: Total income per acre | F14: =SUM(F9:F13) -> 323 | G14: =SUM(G9:G13) -> 323 | H14: =SUM(H9:H13) -> 0
O15: Operating costs per acre
B16: Operating costs per acre | O16: Seed | P16: 0
B17: ="Seed" & IF(Input!B32<>"",", " & Input!B32,"") -> Seed | F17: =SUMPRODUCT(Input!B27:B31,Input!F27:F31) -> 0 | G17: =0.01*(100-Input!$B$137)*Output!$F17 -> 0 | H17: =0.01*(Input!$B$137)*Output!$F17 -> 0 | O17: Fertilizer | P17: 62.74
B18: Fertilizer | F18: =SUM(E19:E22) -> 72.3 | G18: =0.01*(100-Input!$B$138)*Output!$F18 -> 72.3 | H18: =0.01*(Input!$B$138)*Output!$F18 -> 0 | O18: Nitrogen
B19: Nitrogen | E19: =SUMPRODUCT(Input!B36:B38,Input!F36:F38) -> 28 | O19: Phosphorus
B20: Phosphorus | E20: =Input!B39*Input!F39 -> 11.4 | O20: Potassium
B21: Potassium | E21: =Input!B40*Input!F40 -> 22.4 | O21: Other amendments
B22: Other amendments | E22: =SUMPRODUCT(Input!B41:B43,Input!F41:F43) -> 10.5 | O22: Crop protection | P22: 0
B23: Crop protection | F23: =SUM(E24:E25) -> 0 | G23: =0.01*(100-Input!$B$139)*Output!$E24+0.01*(100-Input!$B$140)*Output!$E25 -> 0 | H23: =0.01*(Input!$B$139)*Output!$E24+0.01*(Input!$B$140)*Output!$E25 -> 0 | O23: Herbicide
B24: ="Herbicide" & IF(Input!B55<>"",", " & Input!B55,"") -> Herbicide | E24: =SUMPRODUCT(Input!B47:B54,Input!F47:F54) -> 0 | O24: Insecticide-fungicide
B25: ="Insecticide-fungicide" & IF(Input!B65<>"",", " &Input!B65,"") -> Insecticide-fungicide | E25: =SUMPRODUCT(Input!B59:B64,Input!F59:F64) -> 0 | O25: Crop supplies, storage | P25: 3.4
B26: Crop supplies, storage | F26: =Input!B92+Input!B94*otheritems2+Input!B95 -> 7 | G26: =F26 -> 7 | H26: 0 | O26: Crop consulting | P26: 0
B27: Crop consulting | F27: =Input!B96 -> 0 | G27: =Output!$F27 -> 0 | H27: 0 | O27: Custom hire and rental | P27: 12
B28: Custom hire and rental | F28: =SUMPRODUCT(Input!B113:B130,Input!F113:F130)+(Input!B117+Input!B118)*haylage+SUM(Input!H154:H163)+SUM(Input!H165:H170)+SUM(Input!H172:H181)+SUM(Input!H183:H200)+SUMPRODUCT(Input!F202:F204,Input!H202:H204)/Input!B15 -> 37.4 | G28: =F28-H28+Input!B81 -> 37.4 | H28: =(0.01*Input!B141)*SUMPRODUCT(Input!B113:B115,Input!F113:F115) -> 0 | O28: Machinery fuel and irrigation energy | P28: 11.69473912
B29: Machinery fuel and irrigation energy | F29: =SUMPRODUCT('Machinery Cost'!H7:H55,'Machinery Cost'!O7:O55)+Input!B76*MDB!C168+Input!B93 -> 6.20105359 | G29: =F29-H29 -> 6.20105359 | H29: =0.01*(Input!$B$144)*'Machinery Cost'!$O$54 -> 0 | O29: Machinery repairs and maintenance | P29: 6.779052003
B30: Machinery repairs and maintenance | F30: =SUMPRODUCT('Machinery Cost'!H7:H55,('Machinery Cost'!P7:P55+'Machinery Cost'!S7:S55)) -> 13.63132351 | G30: =F30 -> 13.63132351 | H30: =F30-G30 -> 0 | O30: Operator and hired labor | P30: 6.375623376
B31: Operator and hired labor | F31: =Input!B69*Input!B70+SUMPRODUCT('Machinery Cost'!H7:H52,'Machinery Cost'!N7:N52)+Input!B75*Input!B70 -> 15.42364813 | G31: =F31 -> 15.42364813 | H31: 0 | O31: Other expense | P31: 0
B32: Other expense | F32: =Input!B97 -> 0 | G32: =0.01*(100-Input!$B$146)*Output!$F32 -> 0 | H32: =0.01*(Input!$B$146)*Output!$F32 -> 0 | O32: Operating interest | P32: 4.11957658
B33: Operating interest | F33: =(SUM(F17:F32))*(Input!$B$89/100)/2 -> 3.419010568 | G33: =(SUM(G17:G32))*(Input!$B$89/100)/2 -> 3.419010568 | H33: =(SUM(H17:H32))*(Input!$B$89/100)/2 -> 0 | O33: Operating costs per acre | P33: 107.1089911
B34: Operating costs per acre | F34: =SUM(F17:F33) -> 155.3750358 | G34: =SUM(G17:G33) -> 155.3750358 | H34: =SUM(H17:H33) -> 0
O35: Ownership costs per acre
B36: Ownership costs per acre1 | O36: Farm business overhead | P36: 2
B37: Farm business overhead | F37: =((Input!B100+Input!B101+Input!B102)*Input!B103*0.01)/acres -> 3 | G37: =F37 -> 3 | H37: =F37-G37 -> 0 | O37: Machinery overhead | P37: 7.942254501
B38: Machinery overhead | F38: =SUMPRODUCT('Machinery Cost'!$G$7:$G$55,('Machinery Cost'!R7:R55+'Machinery Cost'!U7:U55))+IF(MDB!C176=1,MDB!C169,0) -> 9.741231288 | G38: =F38 -> 9.741231288 | H38: 0 | O38: Machinery depreciation | P38: 9.190580735
B39: Machinery depreciation | F39: =SUMPRODUCT('Machinery Cost'!H7:H55,('Machinery Cost'!Q7:Q55+'Machinery Cost'!T7:T55))+IF(MDB!C176=1,MDB!C170,0) -> 15.50186885 | G39: =F39 -> 15.50186885 | H39: 0 | O39: Real estate charge | P39: 85
B40: Real estate charge | F40: =Input!B82*Input!B83*0.01+Input!B84+Input!B85 -> 57 | G40: 0 | H40: =F40 -> 57 | O40: Ownership costs per acre | P40: 104.1328352
B41: Ownership costs per acre | F41: =SUM(F37:F40) -> 85.24310013 | G41: =SUM(G37:G40) -> 28.24310013 | H41: =SUM(H37:H40) -> 57
O42: Total costs per acre | P42: 211.2418263
B43: Total costs per acre | F43: =F34+F41 -> 240.6181359 | G43: =G34+G41 -> 183.6181359 | H43: =H34+H41 -> 57
O44: Income over operating costs per acre | P44: -53.10899108
B45: Income over operating costs per acre | F45: =F14-F34 -> 167.6249642 | G45: =G14-G34 -> 167.6249642 | H45: =H14-H34 -> 0 | O45: Income over total costs per acre | P45: -157.2418263
B46: Income over total costs per acre | F46: =F14-F43 -> 82.38186407 | G46: =G14-G43 -> 139.3818641 | H46: =H14-H43 -> -57
O47: Operating costs per ton, air-dry basis | P47: 44.62874628
D48: =IF(F48<>"","Operating costs per ton, air-dry basis","") ->  | F48: =IF(AND(seed=0,SUM(hay,haylage,pasture)<>0),F34/Output!$K$3,"") ->  | G48: =IF(AND(seed=0,SUM(hay,haylage,pasture)<>0),G34/(Output!$K$3*Input!$B$134/100),"") ->  | H48: =IF(AND(seed=0,SUM(hay,haylage,pasture)<>0),H34/(Output!$K$3*Input!$B$134/100),"") ->  | O48: Ownership costs per ton, air-dry basis | P48: 43.38868135
D49: =IF(F49<>"","Ownership costs per ton, air-dry basis","") ->  | F49: =IF(AND(seed=0,SUM(hay,haylage,pasture)<>0),F41/$K$3,"") ->  | G49: =IF(AND(seed=0,SUM(hay,haylage,pasture)<>0),G41/($K$3*Input!$B$134/100),"") ->  | H49: =IF(AND(seed=0,SUM(hay,haylage,pasture)<>0),H41/($K$3*Input!$B$134/100),"") ->  | O49: Total costs per ton, air-dry basis | P49: 88.01742763
D50: =IF(F50<>"","Total costs per ton, air-dry basis","") ->  | F50: =IF(AND(seed=0,SUM(hay,haylage,pasture)<>0),F43/$K$3,"") ->  | G50: =IF(AND(seed=0,SUM(hay,haylage,pasture)<>0),G43/($K$3*Input!$B$134/100),"") ->  | H50: =IF(AND(seed=0,SUM(hay,haylage,pasture)<>0),H43/($K$3*Input!$B$134/100),"") -> 
B53: Detailed Report | C53: =B4 & " " & B3 -> Production 2021 Fescue+Seed+Stubble Prod | H53: =F1 -> 2020-10-26
B55: Selected input quantities | C55: per acre | F55: Selected input prices | H55: $ per unit
B56: Forage yield, tons | C56: =F3 -> 3.2125 | F56: Farm diesel, per gallon | H56: =Input!B90 -> 2.38
B57: Seeding rate, lbs | C57: =SUM(Input!B27:B30) -> 0 | F57: Operating interest, % | H57: =Input!B89 -> 4.5
B58: Nitrogen rate, lbs | C58: =SUM(Input!B36:B38) -> 70 | F58: Nitrogen, per lb | H58: =IF(SUM(Input!B36:B38)<>0,(Input!B36*Input!F36+Input!B37*Input!F37+Input!B38*Input!F38)/SUM(Input!B36:B38),0) -> 0.4
B59: Phosphorus rate, lbs | C59: =Input!B39 -> 30 | F59: Phosphorus, per lb | H59: =Input!F39 -> 0.38
B60: Potassium rate, lbs | C60: =Input!B40 -> 80 | F60: Potassium, per lb | H60: =Input!F40 -> 0.28
B61: Lime rate, tons | C61: =Input!B41 -> 0.5 | F61: Lime, per ton | H61: =Input!F41 -> 21
B62: Sum of allocated labor, hours | C62: =SUM(C69:C114)+Input!B69 -> 0.4440172028 | F62: Skilled labor, per hour | H62: =Input!B71 -> 21
B63: Irrigation, inches | C63: =Input!B76 -> 0 | F63: =IF(leasearr=2,"Cash rental rate","Land value") & ", per acre" -> Land value, per acre | H63: =Input!B82 -> 3000
C66: Labor | D66: Fuel | E66: Operating | F66: Ownership | G66: Total
C67: Hours | D67: Gallons | E67: Costs2 | F67: Costs3 | G67: Costs | H67: Trips
B68: Machine activity (not custom) | C68: per acre | D68: per acre | E68: $ per acre | F68: $ per acre | G68: $ per acre | H68: per acre
A69: 27 | B69: =IF($A69<>0,VLOOKUP($A69,'Machinery Cost'!$D$7:$W$55,20),"") ->  | C69: =IF(AND(A69<>0,A69<>49),1/VLOOKUP($A69,'Machinery Cost'!$D$7:$W$55,9)*VLOOKUP($A69,'Machinery Cost'!$D$7:$W$55,5),"") -> 0 | D69: =IF(A69<>0,VLOOKUP($A69,'Machinery Cost'!$D$7:$W$55,10)*VLOOKUP($A69,'Machinery Cost'!$D$7:$W$55,5),"") -> 0 | E69: =IF(A69<>0,VLOOKUP($A69,'Machinery Cost'!$D$7:$W$55,7)*VLOOKUP($A69,'Machinery Cost'!$D$7:$W$55,5),"") -> 0 | F69: =IF(A69<>0,(VLOOKUP($A69,'Machinery Cost'!$D$7:$W$55,14)+VLOOKUP($A69,'Machinery Cost'!$D$7:$W$55,17))*VLOOKUP($A69,'Machinery Cost'!$D$7:$W$55,5)+(VLOOKUP($A69,'Machinery Cost'!$D$7:$W$55,15)+VLOOKUP($A69,'Machinery Cost'!$D$7:$W$55,18))*VLOOKUP($A69,'Machinery Cost'!$D$7:$W$55,4),"") -> 0 | G69: =IF(A69<>0,E69+F69,"") -> 0 | H69: =IF(AND($A69<>0,$A69<>45,$A69<>49),VLOOKUP($A69,'Machinery Cost'!$D$7:$W$55,5),"") -> 0
A70: 30 | B70: =IF($A70<>0,VLOOKUP($A70,'Machinery Cost'!$D$7:$W$55,20),"") -> Wheel rake (2-16'); 60 HP | C70: =IF(AND(A70<>0,A70<>49),1/VLOOKUP($A70,'Machinery Cost'!$D$7:$W$55,9)*VLOOKUP($A70,'Machinery Cost'!$D$7:$W$55,5),"") -> 0.03819709702 | D70: =IF(A70<>0,VLOOKUP($A70,'Machinery Cost'!$D$7:$W$55,10)*VLOOKUP($A70,'Machinery Cost'!$D$7:$W$55,5),"") -> 0.1008403361 | E70: =IF(A70<>0,VLOOKUP($A70,'Machinery Cost'!$D$7:$W$55,7)*VLOOKUP($A70,'Machinery Cost'!$D$7:$W$55,5),"") -> 1.240453782 | F70: =IF(A70<>0,(VLOOKUP($A70,'Machinery Cost'!$D$7:$W$55,14)+VLOOKUP($A70,'Machinery Cost'!$D$7:$W$55,17))*VLOOKUP($A70,'Machinery Cost'!$D$7:$W$55,5)+(VLOOKUP($A70,'Machinery Cost'!$D$7:$W$55,15)+VLOOKUP($A70,'Machinery Cost'!$D$7:$W$55,18))*VLOOKUP($A70,'Machinery Cost'!$D$7:$W$55,4),"") -> 2.374637128 | G70: =IF(A70<>0,E70+F70,"") -> 3.615090909 | H70: =IF(AND($A70<>0,$A70<>45,$A70<>49),VLOOKUP($A70,'Machinery Cost'!$D$7:$W$55,5),"") -> 1
A71: 35 | B71: =IF($A71<>0,VLOOKUP($A71,'Machinery Cost'!$D$7:$W$55,20),"") -> Round baler, net wrap (1500 lb); 105 MFWD | C71: =IF(AND(A71<>0,A71<>49),1/VLOOKUP($A71,'Machinery Cost'!$D$7:$W$55,9)*VLOOKUP($A71,'Machinery Cost'!$D$7:$W$55,5),"") -> 0.1058201058 | D71: =IF(A71<>0,VLOOKUP($A71,'Machinery Cost'!$D$7:$W$55,10)*VLOOKUP($A71,'Machinery Cost'!$D$7:$W$55,5),"") -> 0.4888888889 | E71: =IF(A71<>0,VLOOKUP($A71,'Machinery Cost'!$D$7:$W$55,7)*VLOOKUP($A71,'Machinery Cost'!$D$7:$W$55,5),"") -> 12.00888254 | F71: =IF(A71<>0,(VLOOKUP($A71,'Machinery Cost'!$D$7:$W$55,14)+VLOOKUP($A71,'Machinery Cost'!$D$7:$W$55,17))*VLOOKUP($A71,'Machinery Cost'!$D$7:$W$55,5)+(VLOOKUP($A71,'Machinery Cost'!$D$7:$W$55,15)+VLOOKUP($A71,'Machinery Cost'!$D$7:$W$55,18))*VLOOKUP($A71,'Machinery Cost'!$D$7:$W$55,4),"") -> 6.058783069 | G71: =IF(A71<>0,E71+F71,"") -> 18.06766561 | H71: =IF(AND($A71<>0,$A71<>45,$A71<>49),VLOOKUP($A71,'Machinery Cost'!$D$7:$W$55,5),"") -> 1
A72: 49 | B72: =IF($A72<>0,VLOOKUP($A72,'Machinery Cost'!$D$7:$W$55,20),"") -> Pickup truck | C72: =IF(AND(A72<>0,A72<>49),1/VLOOKUP($A72,'Machinery Cost'!$D$7:$W$55,9)*VLOOKUP($A72,'Machinery Cost'!$D$7:$W$55,5),"") ->  | D72: =IF(A72<>0,VLOOKUP($A72,'Machinery Cost'!$D$7:$W$55,10)*VLOOKUP($A72,'Machinery Cost'!$D$7:$W$55,5),"") -> 0.2777777778 | E72: =IF(A72<>0,VLOOKUP($A72,'Machinery Cost'!$D$7:$W$55,7)*VLOOKUP($A72,'Machinery Cost'!$D$7:$W$55,5),"") -> 1.180258333 | F72: =IF(A72<>0,(VLOOKUP($A72,'Machinery Cost'!$D$7:$W$55,14)+VLOOKUP($A72,'Machinery Cost'!$D$7:$W$55,17))*VLOOKUP($A72,'Machinery Cost'!$D$7:$W$55,5)+(VLOOKUP($A72,'Machinery Cost'!$D$7:$W$55,15)+VLOOKUP($A72,'Machinery Cost'!$D$7:$W$55,18))*VLOOKUP($A72,'Machinery Cost'!$D$7:$W$55,4),"") -> 1.764874833 | G72: =IF(A72<>0,E72+F72,"") -> 2.945133167 | H72: =IF(AND($A72<>0,$A72<>45,$A72<>49),VLOOKUP($A72,'Machinery Cost'!$D$7:$W$55,5),"") -> 
A73: 0 | B73: =IF($A73<>0,VLOOKUP($A73,'Machinery Cost'!$D$7:$W$55,20),"") ->  | C73: =IF(AND(A73<>0,A73<>49),1/VLOOKUP($A73,'Machinery Cost'!$D$7:$W$55,9)*VLOOKUP($A73,'Machinery Cost'!$D$7:$W$55,5),"") ->  | D73: =IF(A73<>0,VLOOKUP($A73,'Machinery Cost'!$D$7:$W$55,10)*VLOOKUP($A73,'Machinery Cost'!$D$7:$W$55,5),"") ->  | E73: =IF(A73<>0,VLOOKUP($A73,'Machinery Cost'!$D$7:$W$55,7)*VLOOKUP($A73,'Machinery Cost'!$D$7:$W$55,5),"") ->  | F73: =IF(A73<>0,(VLOOKUP($A73,'Machinery Cost'!$D$7:$W$55,14)+VLOOKUP($A73,'Machinery Cost'!$D$7:$W$55,17))*VLOOKUP($A73,'Machinery Cost'!$D$7:$W$55,5)+(VLOOKUP($A73,'Machinery Cost'!$D$7:$W$55,15)+VLOOKUP($A73,'Machinery Cost'!$D$7:$W$55,18))*VLOOKUP($A73,'Machinery Cost'!$D$7:$W$55,4),"") ->  | G73: =IF(A73<>0,E73+F73,"") ->  | H73: =IF(AND($A73<>0,$A73<>45,$A73<>49),VLOOKUP($A73,'Machinery Cost'!$D$7:$W$55,5),"") -> 
A74: 0 | B74: =IF($A74<>0,VLOOKUP($A74,'Machinery Cost'!$D$7:$W$55,20),"") ->  | C74: =IF(AND(A74<>0,A74<>49),1/VLOOKUP($A74,'Machinery Cost'!$D$7:$W$55,9)*VLOOKUP($A74,'Machinery Cost'!$D$7:$W$55,5),"") ->  | D74: =IF(A74<>0,VLOOKUP($A74,'Machinery Cost'!$D$7:$W$55,10)*VLOOKUP($A74,'Machinery Cost'!$D$7:$W$55,5),"") ->  | E74: =IF(A74<>0,VLOOKUP($A74,'Machinery Cost'!$D$7:$W$55,7)*VLOOKUP($A74,'Machinery Cost'!$D$7:$W$55,5),"") ->  | F74: =IF(A74<>0,(VLOOKUP($A74,'Machinery Cost'!$D$7:$W$55,14)+VLOOKUP($A74,'Machinery Cost'!$D$7:$W$55,17))*VLOOKUP($A74,'Machinery Cost'!$D$7:$W$55,5)+(VLOOKUP($A74,'Machinery Cost'!$D$7:$W$55,15)+VLOOKUP($A74,'Machinery Cost'!$D$7:$W$55,18))*VLOOKUP($A74,'Machinery Cost'!$D$7:$W$55,4),"") ->  | G74: =IF(A74<>0,E74+F74,"") ->  | H74: =IF(AND($A74<>0,$A74<>45,$A74<>49),VLOOKUP($A74,'Machinery Cost'!$D$7:$W$55,5),"") -> 
A75: 0 | B75: =IF($A75<>0,VLOOKUP($A75,'Machinery Cost'!$D$7:$W$55,20),"") ->  | C75: =IF(AND(A75<>0,A75<>49),1/VLOOKUP($A75,'Machinery Cost'!$D$7:$W$55,9)*VLOOKUP($A75,'Machinery Cost'!$D$7:$W$55,5),"") ->  | D75: =IF(A75<>0,VLOOKUP($A75,'Machinery Cost'!$D$7:$W$55,10)*VLOOKUP($A75,'Machinery Cost'!$D$7:$W$55,5),"") ->  | E75: =IF(A75<>0,VLOOKUP($A75,'Machinery Cost'!$D$7:$W$55,7)*VLOOKUP($A75,'Machinery Cost'!$D$7:$W$55,5),"") ->  | F75: =IF(A75<>0,(VLOOKUP($A75,'Machinery Cost'!$D$7:$W$55,14)+VLOOKUP($A75,'Machinery Cost'!$D$7:$W$55,17))*VLOOKUP($A75,'Machinery Cost'!$D$7:$W$55,5)+(VLOOKUP($A75,'Machinery Cost'!$D$7:$W$55,15)+VLOOKUP($A75,'Machinery Cost'!$D$7:$W$55,18))*VLOOKUP($A75,'Machinery Cost'!$D$7:$W$55,4),"") ->  | H75: =IF(AND($A75<>0,$A75<>45,$A75<>49),VLOOKUP($A75,'Machinery Cost'!$D$7:$W$55,5),"") -> 
A76: 0 | B76: =IF($A76<>0,VLOOKUP($A76,'Machinery Cost'!$D$7:$W$55,20),"") ->  | C76: =IF(AND(A76<>0,A76<>49),1/VLOOKUP($A76,'Machinery Cost'!$D$7:$W$55,9)*VLOOKUP($A76,'Machinery Cost'!$D$7:$W$55,5),"") ->  | D76: =IF(A76<>0,VLOOKUP($A76,'Machinery Cost'!$D$7:$W$55,10)*VLOOKUP($A76,'Machinery Cost'!$D$7:$W$55,5),"") ->  | E76: =IF(A76<>0,VLOOKUP($A76,'Machinery Cost'!$D$7:$W$55,7)*VLOOKUP($A76,'Machinery Cost'!$D$7:$W$55,5),"") ->  | F76: =IF(A76<>0,(VLOOKUP($A76,'Machinery Cost'!$D$7:$W$55,14)+VLOOKUP($A76,'Machinery Cost'!$D$7:$W$55,17))*VLOOKUP($A76,'Machinery Cost'!$D$7:$W$55,5)+(VLOOKUP($A76,'Machinery Cost'!$D$7:$W$55,15)+VLOOKUP($A76,'Machinery Cost'!$D$7:$W$55,18))*VLOOKUP($A76,'Machinery Cost'!$D$7:$W$55,4),"") ->  | H76: =IF(AND($A76<>0,$A76<>45,$A76<>49),VLOOKUP($A76,'Machinery Cost'!$D$7:$W$55,5),"") -> 
A77: 0 | B77: =IF($A77<>0,VLOOKUP($A77,'Machinery Cost'!$D$7:$W$55,20),"") ->  | C77: =IF(AND(A77<>0,A77<>49),1/VLOOKUP($A77,'Machinery Cost'!$D$7:$W$55,9)*VLOOKUP($A77,'Machinery Cost'!$D$7:$W$55,5),"") ->  | D77: =IF(A77<>0,VLOOKUP($A77,'Machinery Cost'!$D$7:$W$55,10)*VLOOKUP($A77,'Machinery Cost'!$D$7:$W$55,5),"") ->  | E77: =IF(A77<>0,VLOOKUP($A77,'Machinery Cost'!$D$7:$W$55,7)*VLOOKUP($A77,'Machinery Cost'!$D$7:$W$55,5),"") ->  | F77: =IF(A77<>0,(VLOOKUP($A77,'Machinery Cost'!$D$7:$W$55,14)+VLOOKUP($A77,'Machinery Cost'!$D$7:$W$55,17))*VLOOKUP($A77,'Machinery Cost'!$D$7:$W$55,5)+(VLOOKUP($A77,'Machinery Cost'!$D$7:$W$55,15)+VLOOKUP($A77,'Machinery Cost'!$D$7:$W$55,18))*VLOOKUP($A77,'Machinery Cost'!$D$7:$W$55,4),"") ->  | H77: =IF(AND($A77<>0,$A77<>45,$A77<>49),VLOOKUP($A77,'Machinery Cost'!$D$7:$W$55,5),"") -> 
A78: 0 | B78: =IF($A78<>0,VLOOKUP($A78,'Machinery Cost'!$D$7:$W$55,20),"") ->  | C78: =IF(AND(A78<>0,A78<>49),1/VLOOKUP($A78,'Machinery Cost'!$D$7:$W$55,9)*VLOOKUP($A78,'Machinery Cost'!$D$7:$W$55,5),"") ->  | D78: =IF(A78<>0,VLOOKUP($A78,'Machinery Cost'!$D$7:$W$55,10)*VLOOKUP($A78,'Machinery Cost'!$D$7:$W$55,5),"") ->  | E78: =IF(A78<>0,VLOOKUP($A78,'Machinery Cost'!$D$7:$W$55,7)*VLOOKUP($A78,'Machinery Cost'!$D$7:$W$55,5),"") ->  | F78: =IF(A78<>0,(VLOOKUP($A78,'Machinery Cost'!$D$7:$W$55,14)+VLOOKUP($A78,'Machinery Cost'!$D$7:$W$55,17))*VLOOKUP($A78,'Machinery Cost'!$D$7:$W$55,5)+(VLOOKUP($A78,'Machinery Cost'!$D$7:$W$55,15)+VLOOKUP($A78,'Machinery Cost'!$D$7:$W$55,18))*VLOOKUP($A78,'Machinery Cost'!$D$7:$W$55,4),"") ->  | H78: =IF(AND($A78<>0,$A78<>45,$A78<>49),VLOOKUP($A78,'Machinery Cost'!$D$7:$W$55,5),"") -> 
A79: 0 | B79: =IF($A79<>0,VLOOKUP($A79,'Machinery Cost'!$D$7:$W$55,20),"") ->  | C79: =IF(AND(A79<>0,A79<>49),1/VLOOKUP($A79,'Machinery Cost'!$D$7:$W$55,9)*VLOOKUP($A79,'Machinery Cost'!$D$7:$W$55,5),"") ->  | D79: =IF(A79<>0,VLOOKUP($A79,'Machinery Cost'!$D$7:$W$55,10)*VLOOKUP($A79,'Machinery Cost'!$D$7:$W$55,5),"") ->  | E79: =IF(A79<>0,VLOOKUP($A79,'Machinery Cost'!$D$7:$W$55,7)*VLOOKUP($A79,'Machinery Cost'!$D$7:$W$55,5),"") ->  | F79: =IF(A79<>0,(VLOOKUP($A79,'Machinery Cost'!$D$7:$W$55,14)+VLOOKUP($A79,'Machinery Cost'!$D$7:$W$55,17))*VLOOKUP($A79,'Machinery Cost'!$D$7:$W$55,5)+(VLOOKUP($A79,'Machinery Cost'!$D$7:$W$55,15)+VLOOKUP($A79,'Machinery Cost'!$D$7:$W$55,18))*VLOOKUP($A79,'Machinery Cost'!$D$7:$W$55,4),"") ->  | H79: =IF(AND($A79<>0,$A79<>45,$A79<>49),VLOOKUP($A79,'Machinery Cost'!$D$7:$W$55,5),"") -> 
A80: 0 | B80: =IF($A80<>0,VLOOKUP($A80,'Machinery Cost'!$D$7:$W$55,20),"") ->  | C80: =IF(AND(A80<>0,A80<>49),1/VLOOKUP($A80,'Machinery Cost'!$D$7:$W$55,9)*VLOOKUP($A80,'Machinery Cost'!$D$7:$W$55,5),"") ->  | D80: =IF(A80<>0,VLOOKUP($A80,'Machinery Cost'!$D$7:$W$55,10)*VLOOKUP($A80,'Machinery Cost'!$D$7:$W$55,5),"") ->  | E80: =IF(A80<>0,VLOOKUP($A80,'Machinery Cost'!$D$7:$W$55,7)*VLOOKUP($A80,'Machinery Cost'!$D$7:$W$55,5),"") ->  | F80: =IF(A80<>0,(VLOOKUP($A80,'Machinery Cost'!$D$7:$W$55,14)+VLOOKUP($A80,'Machinery Cost'!$D$7:$W$55,17))*VLOOKUP($A80,'Machinery Cost'!$D$7:$W$55,5)+(VLOOKUP($A80,'Machinery Cost'!$D$7:$W$55,15)+VLOOKUP($A80,'Machinery Cost'!$D$7:$W$55,18))*VLOOKUP($A80,'Machinery Cost'!$D$7:$W$55,4),"") ->  | H80: =IF(AND($A80<>0,$A80<>45,$A80<>49),VLOOKUP($A80,'Machinery Cost'!$D$7:$W$55,5),"") -> 
A81: 0 | B81: =IF($A81<>0,VLOOKUP($A81,'Machinery Cost'!$D$7:$W$55,20),"") ->  | C81: =IF(AND(A81<>0,A81<>49),1/VLOOKUP($A81,'Machinery Cost'!$D$7:$W$55,9)*VLOOKUP($A81,'Machinery Cost'!$D$7:$W$55,5),"") ->  | D81: =IF(A81<>0,VLOOKUP($A81,'Machinery Cost'!$D$7:$W$55,10)*VLOOKUP($A81,'Machinery Cost'!$D$7:$W$55,5),"") ->  | E81: =IF(A81<>0,VLOOKUP($A81,'Machinery Cost'!$D$7:$W$55,7)*VLOOKUP($A81,'Machinery Cost'!$D$7:$W$55,5),"") ->  | F81: =IF(A81<>0,(VLOOKUP($A81,'Machinery Cost'!$D$7:$W$55,14)+VLOOKUP($A81,'Machinery Cost'!$D$7:$W$55,17))*VLOOKUP($A81,'Machinery Cost'!$D$7:$W$55,5)+(VLOOKUP($A81,'Machinery Cost'!$D$7:$W$55,15)+VLOOKUP($A81,'Machinery Cost'!$D$7:$W$55,18))*VLOOKUP($A81,'Machinery Cost'!$D$7:$W$55,4),"") ->  | H81: =IF(AND($A81<>0,$A81<>45,$A81<>49),VLOOKUP($A81,'Machinery Cost'!$D$7:$W$55,5),"") -> 
A82: 0 | B82: =IF($A82<>0,VLOOKUP($A82,'Machinery Cost'!$D$7:$W$55,20),"") ->  | C82: =IF(AND(A82<>0,A82<>49),1/VLOOKUP($A82,'Machinery Cost'!$D$7:$W$55,9)*VLOOKUP($A82,'Machinery Cost'!$D$7:$W$55,5),"") ->  | D82: =IF(A82<>0,VLOOKUP($A82,'Machinery Cost'!$D$7:$W$55,10)*VLOOKUP($A82,'Machinery Cost'!$D$7:$W$55,5),"") ->  | E82: =IF(A82<>0,VLOOKUP($A82,'Machinery Cost'!$D$7:$W$55,7)*VLOOKUP($A82,'Machinery Cost'!$D$7:$W$55,5),"") ->  | F82: =IF(A82<>0,(VLOOKUP($A82,'Machinery Cost'!$D$7:$W$55,14)+VLOOKUP($A82,'Machinery Cost'!$D$7:$W$55,17))*VLOOKUP($A82,'Machinery Cost'!$D$7:$W$55,5)+(VLOOKUP($A82,'Machinery Cost'!$D$7:$W$55,15)+VLOOKUP($A82,'Machinery Cost'!$D$7:$W$55,18))*VLOOKUP($A82,'Machinery Cost'!$D$7:$W$55,4),"") ->  | H82: =IF(AND($A82<>0,$A82<>45,$A82<>49),VLOOKUP($A82,'Machinery Cost'!$D$7:$W$55,5),"") -> 
A83: 0 | B83: =IF($A83<>0,VLOOKUP($A83,'Machinery Cost'!$D$7:$W$55,20),"") ->  | C83: =IF(AND(A83<>0,A83<>49),1/VLOOKUP($A83,'Machinery Cost'!$D$7:$W$55,9)*VLOOKUP($A83,'Machinery Cost'!$D$7:$W$55,5),"") ->  | D83: =IF(A83<>0,VLOOKUP($A83,'Machinery Cost'!$D$7:$W$55,10)*VLOOKUP($A83,'Machinery Cost'!$D$7:$W$55,5),"") ->  | E83: =IF(A83<>0,VLOOKUP($A83,'Machinery Cost'!$D$7:$W$55,7)*VLOOKUP($A83,'Machinery Cost'!$D$7:$W$55,5),"") ->  | F83: =IF(A83<>0,(VLOOKUP($A83,'Machinery Cost'!$D$7:$W$55,14)+VLOOKUP($A83,'Machinery Cost'!$D$7:$W$55,17))*VLOOKUP($A83,'Machinery Cost'!$D$7:$W$55,5)+(VLOOKUP($A83,'Machinery Cost'!$D$7:$W$55,15)+VLOOKUP($A83,'Machinery Cost'!$D$7:$W$55,18))*VLOOKUP($A83,'Machinery Cost'!$D$7:$W$55,4),"") ->  | H83: =IF(AND($A83<>0,$A83<>45,$A83<>49),VLOOKUP($A83,'Machinery Cost'!$D$7:$W$55,5),"") -> 
A84: 0 | B84: =IF($A84<>0,VLOOKUP($A84,'Machinery Cost'!$D$7:$W$55,20),"") ->  | C84: =IF(AND(A84<>0,A84<>49),1/VLOOKUP($A84,'Machinery Cost'!$D$7:$W$55,9)*VLOOKUP($A84,'Machinery Cost'!$D$7:$W$55,5),"") ->  | D84: =IF(A84<>0,VLOOKUP($A84,'Machinery Cost'!$D$7:$W$55,10)*VLOOKUP($A84,'Machinery Cost'!$D$7:$W$55,5),"") ->  | E84: =IF(A84<>0,VLOOKUP($A84,'Machinery Cost'!$D$7:$W$55,7)*VLOOKUP($A84,'Machinery Cost'!$D$7:$W$55,5),"") ->  | F84: =IF(A84<>0,(VLOOKUP($A84,'Machinery Cost'!$D$7:$W$55,14)+VLOOKUP($A84,'Machinery Cost'!$D$7:$W$55,17))*VLOOKUP($A84,'Machinery Cost'!$D$7:$W$55,5)+(VLOOKUP($A84,'Machinery Cost'!$D$7:$W$55,15)+VLOOKUP($A84,'Machinery Cost'!$D$7:$W$55,18))*VLOOKUP($A84,'Machinery Cost'!$D$7:$W$55,4),"") ->  | H84: =IF(AND($A84<>0,$A84<>45,$A84<>49),VLOOKUP($A84,'Machinery Cost'!$D$7:$W$55,5),"") -> 
A85: 0 | B85: =IF($A85<>0,VLOOKUP($A85,'Machinery Cost'!$D$7:$W$55,20),"") ->  | C85: =IF(AND(A85<>0,A85<>49),1/VLOOKUP($A85,'Machinery Cost'!$D$7:$W$55,9)*VLOOKUP($A85,'Machinery Cost'!$D$7:$W$55,5),"") ->  | D85: =IF(A85<>0,VLOOKUP($A85,'Machinery Cost'!$D$7:$W$55,10)*VLOOKUP($A85,'Machinery Cost'!$D$7:$W$55,5),"") ->  | E85: =IF(A85<>0,VLOOKUP($A85,'Machinery Cost'!$D$7:$W$55,7)*VLOOKUP($A85,'Machinery Cost'!$D$7:$W$55,5),"") ->  | F85: =IF(A85<>0,(VLOOKUP($A85,'Machinery Cost'!$D$7:$W$55,14)+VLOOKUP($A85,'Machinery Cost'!$D$7:$W$55,17))*VLOOKUP($A85,'Machinery Cost'!$D$7:$W$55,5)+(VLOOKUP($A85,'Machinery Cost'!$D$7:$W$55,15)+VLOOKUP($A85,'Machinery Cost'!$D$7:$W$55,18))*VLOOKUP($A85,'Machinery Cost'!$D$7:$W$55,4),"") ->  | H85: =IF(AND($A85<>0,$A85<>45,$A85<>49),VLOOKUP($A85,'Machinery Cost'!$D$7:$W$55,5),"") -> 
A86: 0 | B86: =IF($A86<>0,VLOOKUP($A86,'Machinery Cost'!$D$7:$W$55,20),"") ->  | C86: =IF(AND(A86<>0,A86<>49),1/VLOOKUP($A86,'Machinery Cost'!$D$7:$W$55,9)*VLOOKUP($A86,'Machinery Cost'!$D$7:$W$55,5),"") ->  | D86: =IF(A86<>0,VLOOKUP($A86,'Machinery Cost'!$D$7:$W$55,10)*VLOOKUP($A86,'Machinery Cost'!$D$7:$W$55,5),"") ->  | E86: =IF(A86<>0,VLOOKUP($A86,'Machinery Cost'!$D$7:$W$55,7)*VLOOKUP($A86,'Machinery Cost'!$D$7:$W$55,5),"") ->  | F86: =IF(A86<>0,(VLOOKUP($A86,'Machinery Cost'!$D$7:$W$55,14)+VLOOKUP($A86,'Machinery Cost'!$D$7:$W$55,17))*VLOOKUP($A86,'Machinery Cost'!$D$7:$W$55,5)+(VLOOKUP($A86,'Machinery Cost'!$D$7:$W$55,15)+VLOOKUP($A86,'Machinery Cost'!$D$7:$W$55,18))*VLOOKUP($A86,'Machinery Cost'!$D$7:$W$55,4),"") ->  | H86: =IF(AND($A86<>0,$A86<>45,$A86<>49),VLOOKUP($A86,'Machinery Cost'!$D$7:$W$55,5),"") -> 
A87: 0 | B87: =IF($A87<>0,VLOOKUP($A87,'Machinery Cost'!$D$7:$W$55,20),"") ->  | C87: =IF(AND(A87<>0,A87<>49),1/VLOOKUP($A87,'Machinery Cost'!$D$7:$W$55,9)*VLOOKUP($A87,'Machinery Cost'!$D$7:$W$55,5),"") ->  | D87: =IF(A87<>0,VLOOKUP($A87,'Machinery Cost'!$D$7:$W$55,10)*VLOOKUP($A87,'Machinery Cost'!$D$7:$W$55,5),"") ->  | E87: =IF(A87<>0,VLOOKUP($A87,'Machinery Cost'!$D$7:$W$55,7)*VLOOKUP($A87,'Machinery Cost'!$D$7:$W$55,5),"") ->  | F87: =IF(A87<>0,(VLOOKUP($A87,'Machinery Cost'!$D$7:$W$55,14)+VLOOKUP($A87,'Machinery Cost'!$D$7:$W$55,17))*VLOOKUP($A87,'Machinery Cost'!$D$7:$W$55,5)+(VLOOKUP($A87,'Machinery Cost'!$D$7:$W$55,15)+VLOOKUP($A87,'Machinery Cost'!$D$7:$W$55,18))*VLOOKUP($A87,'Machinery Cost'!$D$7:$W$55,4),"") ->  | H87: =IF(AND($A87<>0,$A87<>45,$A87<>49),VLOOKUP($A87,'Machinery Cost'!$D$7:$W$55,5),"") -> 
A88: 0 | B88: =IF($A88<>0,VLOOKUP($A88,'Machinery Cost'!$D$7:$W$55,20),"") ->  | C88: =IF(AND(A88<>0,A88<>49),1/VLOOKUP($A88,'Machinery Cost'!$D$7:$W$55,9)*VLOOKUP($A88,'Machinery Cost'!$D$7:$W$55,5),"") ->  | D88: =IF(A88<>0,VLOOKUP($A88,'Machinery Cost'!$D$7:$W$55,10)*VLOOKUP($A88,'Machinery Cost'!$D$7:$W$55,5),"") ->  | E88: =IF(A88<>0,VLOOKUP($A88,'Machinery Cost'!$D$7:$W$55,7)*VLOOKUP($A88,'Machinery Cost'!$D$7:$W$55,5),"") ->  | F88: =IF(A88<>0,(VLOOKUP($A88,'Machinery Cost'!$D$7:$W$55,14)+VLOOKUP($A88,'Machinery Cost'!$D$7:$W$55,17))*VLOOKUP($A88,'Machinery Cost'!$D$7:$W$55,5)+(VLOOKUP($A88,'Machinery Cost'!$D$7:$W$55,15)+VLOOKUP($A88,'Machinery Cost'!$D$7:$W$55,18))*VLOOKUP($A88,'Machinery Cost'!$D$7:$W$55,4),"") ->  | H88: =IF(AND($A88<>0,$A88<>45,$A88<>49),VLOOKUP($A88,'Machinery Cost'!$D$7:$W$55,5),"") -> 
A89: 0 | B89: =IF($A89<>0,VLOOKUP($A89,'Machinery Cost'!$D$7:$W$55,20),"") ->  | C89: =IF(AND(A89<>0,A89<>49),1/VLOOKUP($A89,'Machinery Cost'!$D$7:$W$55,9)*VLOOKUP($A89,'Machinery Cost'!$D$7:$W$55,5),"") ->  | D89: =IF(A89<>0,VLOOKUP($A89,'Machinery Cost'!$D$7:$W$55,10)*VLOOKUP($A89,'Machinery Cost'!$D$7:$W$55,5),"") ->  | E89: =IF(A89<>0,VLOOKUP($A89,'Machinery Cost'!$D$7:$W$55,7)*VLOOKUP($A89,'Machinery Cost'!$D$7:$W$55,5),"") ->  | F89: =IF(A89<>0,(VLOOKUP($A89,'Machinery Cost'!$D$7:$W$55,14)+VLOOKUP($A89,'Machinery Cost'!$D$7:$W$55,17))*VLOOKUP($A89,'Machinery Cost'!$D$7:$W$55,5)+(VLOOKUP($A89,'Machinery Cost'!$D$7:$W$55,15)+VLOOKUP($A89,'Machinery Cost'!$D$7:$W$55,18))*VLOOKUP($A89,'Machinery Cost'!$D$7:$W$55,4),"") ->  | H89: =IF(AND($A89<>0,$A89<>45,$A89<>49),VLOOKUP($A89,'Machinery Cost'!$D$7:$W$55,5),"") -> 
A90: 0 | B90: =IF($A90<>0,VLOOKUP($A90,'Machinery Cost'!$D$7:$W$55,20),"") ->  | C90: =IF(AND(A90<>0,A90<>49),1/VLOOKUP($A90,'Machinery Cost'!$D$7:$W$55,9)*VLOOKUP($A90,'Machinery Cost'!$D$7:$W$55,5),"") ->  | D90: =IF(A90<>0,VLOOKUP($A90,'Machinery Cost'!$D$7:$W$55,10)*VLOOKUP($A90,'Machinery Cost'!$D$7:$W$55,5),"") ->  | E90: =IF(A90<>0,VLOOKUP($A90,'Machinery Cost'!$D$7:$W$55,7)*VLOOKUP($A90,'Machinery Cost'!$D$7:$W$55,5),"") ->  | F90: =IF(A90<>0,(VLOOKUP($A90,'Machinery Cost'!$D$7:$W$55,14)+VLOOKUP($A90,'Machinery Cost'!$D$7:$W$55,17))*VLOOKUP($A90,'Machinery Cost'!$D$7:$W$55,5)+(VLOOKUP($A90,'Machinery Cost'!$D$7:$W$55,15)+VLOOKUP($A90,'Machinery Cost'!$D$7:$W$55,18))*VLOOKUP($A90,'Machinery Cost'!$D$7:$W$55,4),"") ->  | H90: =IF(AND($A90<>0,$A90<>45,$A90<>49),VLOOKUP($A90,'Machinery Cost'!$D$7:$W$55,5),"") -> 
A91: 0 | B91: =IF($A91<>0,VLOOKUP($A91,'Machinery Cost'!$D$7:$W$55,20),"") ->  | C91: =IF(AND(A91<>0,A91<>49),1/VLOOKUP($A91,'Machinery Cost'!$D$7:$W$55,9)*VLOOKUP($A91,'Machinery Cost'!$D$7:$W$55,5),"") ->  | D91: =IF(A91<>0,VLOOKUP($A91,'Machinery Cost'!$D$7:$W$55,10)*VLOOKUP($A91,'Machinery Cost'!$D$7:$W$55,5),"") ->  | E91: =IF(A91<>0,VLOOKUP($A91,'Machinery Cost'!$D$7:$W$55,7)*VLOOKUP($A91,'Machinery Cost'!$D$7:$W$55,5),"") ->  | F91: =IF(A91<>0,(VLOOKUP($A91,'Machinery Cost'!$D$7:$W$55,14)+VLOOKUP($A91,'Machinery Cost'!$D$7:$W$55,17))*VLOOKUP($A91,'Machinery Cost'!$D$7:$W$55,5)+(VLOOKUP($A91,'Machinery Cost'!$D$7:$W$55,15)+VLOOKUP($A91,'Machinery Cost'!$D$7:$W$55,18))*VLOOKUP($A91,'Machinery Cost'!$D$7:$W$55,4),"") ->  | H91: =IF(AND($A91<>0,$A91<>45,$A91<>49),VLOOKUP($A91,'Machinery Cost'!$D$7:$W$55,5),"") -> 
A92: 0 | B92: =IF($A92<>0,VLOOKUP($A92,'Machinery Cost'!$D$7:$W$55,20),"") ->  | C92: =IF(AND(A92<>0,A92<>49),1/VLOOKUP($A92,'Machinery Cost'!$D$7:$W$55,9)*VLOOKUP($A92,'Machinery Cost'!$D$7:$W$55,5),"") ->  | D92: =IF(A92<>0,VLOOKUP($A92,'Machinery Cost'!$D$7:$W$55,10)*VLOOKUP($A92,'Machinery Cost'!$D$7:$W$55,5),"") ->  | E92: =IF(A92<>0,VLOOKUP($A92,'Machinery Cost'!$D$7:$W$55,7)*VLOOKUP($A92,'Machinery Cost'!$D$7:$W$55,5),"") ->  | F92: =IF(A92<>0,(VLOOKUP($A92,'Machinery Cost'!$D$7:$W$55,14)+VLOOKUP($A92,'Machinery Cost'!$D$7:$W$55,17))*VLOOKUP($A92,'Machinery Cost'!$D$7:$W$55,5)+(VLOOKUP($A92,'Machinery Cost'!$D$7:$W$55,15)+VLOOKUP($A92,'Machinery Cost'!$D$7:$W$55,18))*VLOOKUP($A92,'Machinery Cost'!$D$7:$W$55,4),"") ->  | H92: =IF(AND($A92<>0,$A92<>45,$A92<>49),VLOOKUP($A92,'Machinery Cost'!$D$7:$W$55,5),"") -> 
A93: 0 | B93: =IF($A93<>0,VLOOKUP($A93,'Machinery Cost'!$D$7:$W$55,20),"") ->  | C93: =IF(AND(A93<>0,A93<>49),1/VLOOKUP($A93,'Machinery Cost'!$D$7:$W$55,9)*VLOOKUP($A93,'Machinery Cost'!$D$7:$W$55,5),"") ->  | D93: =IF(A93<>0,VLOOKUP($A93,'Machinery Cost'!$D$7:$W$55,10)*VLOOKUP($A93,'Machinery Cost'!$D$7:$W$55,5),"") ->  | E93: =IF(A93<>0,VLOOKUP($A93,'Machinery Cost'!$D$7:$W$55,7)*VLOOKUP($A93,'Machinery Cost'!$D$7:$W$55,5),"") ->  | F93: =IF(A93<>0,(VLOOKUP($A93,'Machinery Cost'!$D$7:$W$55,14)+VLOOKUP($A93,'Machinery Cost'!$D$7:$W$55,17))*VLOOKUP($A93,'Machinery Cost'!$D$7:$W$55,5)+(VLOOKUP($A93,'Machinery Cost'!$D$7:$W$55,15)+VLOOKUP($A93,'Machinery Cost'!$D$7:$W$55,18))*VLOOKUP($A93,'Machinery Cost'!$D$7:$W$55,4),"") ->  | H93: =IF(AND($A93<>0,$A93<>45,$A93<>49),VLOOKUP($A93,'Machinery Cost'!$D$7:$W$55,5),"") -> 
A94: 0 | B94: =IF($A94<>0,VLOOKUP($A94,'Machinery Cost'!$D$7:$W$55,20),"") ->  | C94: =IF(AND(A94<>0,A94<>49),1/VLOOKUP($A94,'Machinery Cost'!$D$7:$W$55,9)*VLOOKUP($A94,'Machinery Cost'!$D$7:$W$55,5),"") ->  | D94: =IF(A94<>0,VLOOKUP($A94,'Machinery Cost'!$D$7:$W$55,10)*VLOOKUP($A94,'Machinery Cost'!$D$7:$W$55,5),"") ->  | E94: =IF(A94<>0,VLOOKUP($A94,'Machinery Cost'!$D$7:$W$55,7)*VLOOKUP($A94,'Machinery Cost'!$D$7:$W$55,5),"") ->  | F94: =IF(A94<>0,(VLOOKUP($A94,'Machinery Cost'!$D$7:$W$55,14)+VLOOKUP($A94,'Machinery Cost'!$D$7:$W$55,17))*VLOOKUP($A94,'Machinery Cost'!$D$7:$W$55,5)+(VLOOKUP($A94,'Machinery Cost'!$D$7:$W$55,15)+VLOOKUP($A94,'Machinery Cost'!$D$7:$W$55,18))*VLOOKUP($A94,'Machinery Cost'!$D$7:$W$55,4),"") ->  | H94: =IF(AND($A94<>0,$A94<>45,$A94<>49),VLOOKUP($A94,'Machinery Cost'!$D$7:$W$55,5),"") -> 
A95: 0 | B95: =IF($A95<>0,VLOOKUP($A95,'Machinery Cost'!$D$7:$W$55,20),"") ->  | C95: =IF(AND(A95<>0,A95<>49),1/VLOOKUP($A95,'Machinery Cost'!$D$7:$W$55,9)*VLOOKUP($A95,'Machinery Cost'!$D$7:$W$55,5),"") ->  | D95: =IF(A95<>0,VLOOKUP($A95,'Machinery Cost'!$D$7:$W$55,10)*VLOOKUP($A95,'Machinery Cost'!$D$7:$W$55,5),"") ->  | E95: =IF(A95<>0,VLOOKUP($A95,'Machinery Cost'!$D$7:$W$55,7)*VLOOKUP($A95,'Machinery Cost'!$D$7:$W$55,5),"") ->  | F95: =IF(A95<>0,(VLOOKUP($A95,'Machinery Cost'!$D$7:$W$55,14)+VLOOKUP($A95,'Machinery Cost'!$D$7:$W$55,17))*VLOOKUP($A95,'Machinery Cost'!$D$7:$W$55,5)+(VLOOKUP($A95,'Machinery Cost'!$D$7:$W$55,15)+VLOOKUP($A95,'Machinery Cost'!$D$7:$W$55,18))*VLOOKUP($A95,'Machinery Cost'!$D$7:$W$55,4),"") ->  | H95: =IF(AND($A95<>0,$A95<>45,$A95<>49),VLOOKUP($A95,'Machinery Cost'!$D$7:$W$55,5),"") -> 
A96: 0 | B96: =IF($A96<>0,VLOOKUP($A96,'Machinery Cost'!$D$7:$W$55,20),"") ->  | C96: =IF(AND(A96<>0,A96<>49),1/VLOOKUP($A96,'Machinery Cost'!$D$7:$W$55,9)*VLOOKUP($A96,'Machinery Cost'!$D$7:$W$55,5),"") ->  | D96: =IF(A96<>0,VLOOKUP($A96,'Machinery Cost'!$D$7:$W$55,10)*VLOOKUP($A96,'Machinery Cost'!$D$7:$W$55,5),"") ->  | E96: =IF(A96<>0,VLOOKUP($A96,'Machinery Cost'!$D$7:$W$55,7)*VLOOKUP($A96,'Machinery Cost'!$D$7:$W$55,5),"") ->  | F96: =IF(A96<>0,(VLOOKUP($A96,'Machinery Cost'!$D$7:$W$55,14)+VLOOKUP($A96,'Machinery Cost'!$D$7:$W$55,17))*VLOOKUP($A96,'Machinery Cost'!$D$7:$W$55,5)+(VLOOKUP($A96,'Machinery Cost'!$D$7:$W$55,15)+VLOOKUP($A96,'Machinery Cost'!$D$7:$W$55,18))*VLOOKUP($A96,'Machinery Cost'!$D$7:$W$55,4),"") ->  | H96: =IF(AND($A96<>0,$A96<>45,$A96<>49),VLOOKUP($A96,'Machinery Cost'!$D$7:$W$55,5),"") -> 
A97: 0 | B97: =IF($A97<>0,VLOOKUP($A97,'Machinery Cost'!$D$7:$W$55,20),"") ->  | C97: =IF(AND(A97<>0,A97<>49),1/VLOOKUP($A97,'Machinery Cost'!$D$7:$W$55,9)*VLOOKUP($A97,'Machinery Cost'!$D$7:$W$55,5),"") ->  | D97: =IF(A97<>0,VLOOKUP($A97,'Machinery Cost'!$D$7:$W$55,10)*VLOOKUP($A97,'Machinery Cost'!$D$7:$W$55,5),"") ->  | E97: =IF(A97<>0,VLOOKUP($A97,'Machinery Cost'!$D$7:$W$55,7)*VLOOKUP($A97,'Machinery Cost'!$D$7:$W$55,5),"") ->  | F97: =IF(A97<>0,(VLOOKUP($A97,'Machinery Cost'!$D$7:$W$55,14)+VLOOKUP($A97,'Machinery Cost'!$D$7:$W$55,17))*VLOOKUP($A97,'Machinery Cost'!$D$7:$W$55,5)+(VLOOKUP($A97,'Machinery Cost'!$D$7:$W$55,15)+VLOOKUP($A97,'Machinery Cost'!$D$7:$W$55,18))*VLOOKUP($A97,'Machinery Cost'!$D$7:$W$55,4),"") ->  | H97: =IF(AND($A97<>0,$A97<>45,$A97<>49),VLOOKUP($A97,'Machinery Cost'!$D$7:$W$55,5),"") -> 
A98: 0 | B98: =IF($A98<>0,VLOOKUP($A98,'Machinery Cost'!$D$7:$W$55,20),"") ->  | C98: =IF(AND(A98<>0,A98<>49),1/VLOOKUP($A98,'Machinery Cost'!$D$7:$W$55,9)*VLOOKUP($A98,'Machinery Cost'!$D$7:$W$55,5),"") ->  | D98: =IF(A98<>0,VLOOKUP($A98,'Machinery Cost'!$D$7:$W$55,10)*VLOOKUP($A98,'Machinery Cost'!$D$7:$W$55,5),"") ->  | E98: =IF(A98<>0,VLOOKUP($A98,'Machinery Cost'!$D$7:$W$55,7)*VLOOKUP($A98,'Machinery Cost'!$D$7:$W$55,5),"") ->  | F98: =IF(A98<>0,(VLOOKUP($A98,'Machinery Cost'!$D$7:$W$55,14)+VLOOKUP($A98,'Machinery Cost'!$D$7:$W$55,17))*VLOOKUP($A98,'Machinery Cost'!$D$7:$W$55,5)+(VLOOKUP($A98,'Machinery Cost'!$D$7:$W$55,15)+VLOOKUP($A98,'Machinery Cost'!$D$7:$W$55,18))*VLOOKUP($A98,'Machinery Cost'!$D$7:$W$55,4),"") ->  | H98: =IF(AND($A98<>0,$A98<>45,$A98<>49),VLOOKUP($A98,'Machinery Cost'!$D$7:$W$55,5),"") -> 
A99: 0 | B99: =IF($A99<>0,VLOOKUP($A99,'Machinery Cost'!$D$7:$W$55,20),"") ->  | C99: =IF(AND(A99<>0,A99<>49),1/VLOOKUP($A99,'Machinery Cost'!$D$7:$W$55,9)*VLOOKUP($A99,'Machinery Cost'!$D$7:$W$55,5),"") ->  | D99: =IF(A99<>0,VLOOKUP($A99,'Machinery Cost'!$D$7:$W$55,10)*VLOOKUP($A99,'Machinery Cost'!$D$7:$W$55,5),"") ->  | E99: =IF(A99<>0,VLOOKUP($A99,'Machinery Cost'!$D$7:$W$55,7)*VLOOKUP($A99,'Machinery Cost'!$D$7:$W$55,5),"") ->  | F99: =IF(A99<>0,(VLOOKUP($A99,'Machinery Cost'!$D$7:$W$55,14)+VLOOKUP($A99,'Machinery Cost'!$D$7:$W$55,17))*VLOOKUP($A99,'Machinery Cost'!$D$7:$W$55,5)+(VLOOKUP($A99,'Machinery Cost'!$D$7:$W$55,15)+VLOOKUP($A99,'Machinery Cost'!$D$7:$W$55,18))*VLOOKUP($A99,'Machinery Cost'!$D$7:$W$55,4),"") ->  | H99: =IF(AND($A99<>0,$A99<>45,$A99<>49),VLOOKUP($A99,'Machinery Cost'!$D$7:$W$55,5),"") -> 
A100: 0
A101: 0
A102: 0 | B102: 1 Farm business overhead includes liability insurance, utilities, accounting, etc. Machinery overhead is the sum of opportunity interest,
A103: 0 | B103: property taxes, insurance, and housing. Machinery depreciation is a market value decline due to aging and usage. Thus, a portion of
A104: 0 | B104: depreciation should be considered an operating costs for some decisions. Real estate charge includes land, improvements, taxes.
A105: 0 | B105: Economic costs may differ from rental rates.
A106: 0 | B106: 2 Machinery operating cost is the sum of fuel, repairs, maintenance, and the value of labor.
A107: 0 | B107: 3 Machinery ownership cost is the sum of machinery overhead and depreciation (see page 1).
A108: 0
A109: 0
A110: 0
A111: 0 | B111: Commented range (minus 1 column) | C111: Range of Comment (minus 1 column)
A112: 0 | B112: A36 | C112: A102
A113: 0 | B113: D67 | C113: A106
A114: 0 | B114: E67 | C114: A107
A115: 0
A116: 0
A117: 0

Sheet Store (hidden)
B2: Export | E2: Imported Data | H2: Lookup Data
B3: establishment-82506 | C3: =establishment -> 2 | E3: establishment-82506 | F3: 2 | H3: =B3 -> establishment-82506 | I3: =IF(COUNTIF(import,"="&H3)<>0,IF(VLOOKUP(H3,import,2,FALSE)<>0,VLOOKUP(H3,import,2,FALSE),""),"") -> 2
B4: harvestashay-82506 | C4: =HarvAsHay -> TRUE | E4: harvestashay-82506 | F4: TRUE | H4: =B4 -> harvestashay-82506 | I4: TRUE
B5: harvestashaylage-82506 | C5: =HarvAsHaylage -> FALSE | E5: harvestashaylage-82506 | F5: FALSE | H5: harvestashaylage-82506 | I5: FALSE
B6: harvestaspasture-82506 | C6: =HarvAsPasture -> TRUE | E6: harvestaspasture-82506 | F6: TRUE | H6: harvestaspasture-82506 | I6: TRUE
B7: harvestasseed-82506 | C7: =HarvAsSeed -> TRUE | E7: harvestasseed-82506 | F7: TRUE | H7: harvestasseed-82506 | I7: TRUE
B8: yield-1-83106 | C8: =HayYieldType -> 2 | E8: yield-1-83106 | F8: 2 | H8: yield-1-83106 | I8: 2
B9: yield-2-83106 | C9: =HaylageYieldType -> 2 | E9: yield-2-83106 | F9: 2 | H9: yield-2-83106 | I9: 2
B10: yield-3-83106 | C10: =PastureYieldType -> 2 | E10: yield-3-83106 | F10: 2 | H10: yield-3-83106 | I10: 2
B11: irrigation2-22706 | C11: =irrsel -> 2 | E11: irrigation2-22706 | F11: 2 | H11: irrigation2-22706 | I11: 2
B12: leasenum-22706 | C12: =leasearr -> 1 | E12: leasenum-22706 | F12: 1 | H12: leasenum-22706 | I12: 1
A13: 1 | B13: 40hp-22706 | C13: =MDB!A4 -> FALSE | E13: 40hp-22706 | F13: FALSE | H13: 40hp-22706 | I13: FALSE
B14: 60hp-22706 | C14: =MDB!A5 -> TRUE | E14: 60hp-22706 | F14: TRUE | H14: 60hp-22706 | I14: TRUE
B15: 75hp-22706 | C15: =MDB!A6 -> FALSE | E15: 75hp-22706 | F15: FALSE | H15: 75hp-22706 | I15: FALSE
B16: 105twd-22706 | C16: =MDB!A7 -> FALSE | E16: 105twd-22706 | F16: FALSE | H16: 105twd-22706 | I16: FALSE
B17: 140twd-22706 | C17: =MDB!A8 -> FALSE | E17: 140twd-22706 | F17: FALSE | H17: 140twd-22706 | I17: FALSE
B18: 105mfwd-22706 | C18: =MDB!A9 -> TRUE | E18: 105mfwd-22706 | F18: TRUE | H18: 105mfwd-22706 | I18: TRUE
B19: 130mfwd-22706 | C19: =MDB!A10 -> FALSE | E19: 130mfwd-22706 | F19: FALSE | H19: 130mfwd-22706 | I19: FALSE
B20: 160mfwd-22706 | C20: =MDB!A11 -> FALSE | E20: 160mfwd-22706 | F20: FALSE | H20: 160mfwd-22706 | I20: FALSE
B21: 200mfwd-22706 | C21: =MDB!A12 -> FALSE | E21: 200mfwd-22706 | F21: FALSE | H21: 200mfwd-22706 | I21: FALSE
B22: 225mfwd-22706 | C22: =MDB!A13 -> FALSE | E22: 225mfwd-22706 | F22: FALSE | H22: 225mfwd-22706 | I22: FALSE
B23: 2604wd-22706 | C23: =MDB!A14 -> FALSE | E23: 2604wd-22706 | F23: FALSE | H23: 2604wd-22706 | I23: FALSE
B24: 3104wd-22706 | C24: =MDB!A15 -> FALSE | E24: 3104wd-22706 | F24: FALSE | H24: 3104wd-22706 | I24: FALSE
A25: 1 | B25: description-1-22706 | C25: =Input!$B$5 -> 2021 Fescue+Seed+Stubble Prod | E25: description-1-22706 | F25: 2021 Fescue+Seed+Stubble Prod | H25: description-1-22706 | I25: 2021 Fescue+Seed+Stubble Prod
B26: acres-1-22706 | C26: =acres -> 300 | E26: acres-1-22706 | F26: 300 | H26: acres-1-22706 | I26: 300
B27: receipts-1-22706 | C27: =hay -> 4 | E27: receipts-1-22706 | F27: 4 | H27: receipts-1-22706 | I27: 4
B28: receipts-2-22706 | C28: =Input!B17 -> 1400 | E28: receipts-2-22706 | F28: 1400 | H28: receipts-2-22706 | I28: 1400
B29: receipts-3-22706 | C29: =Input!B18 -> 0 | E29: receipts-3-22706 | F29: 0 | H29: receipts-3-22706
B30: receipts-4-22706 | C30: =Input!B19 -> 0 | E30: receipts-4-22706 | F30: 0 | H30: receipts-4-22706
B31: receipts-5-22706 | C31: =Input!B20 -> 1 | E31: receipts-5-22706 | F31: 1 | H31: receipts-5-22706 | I31: 1
B32: receipts-6-22706 | C32: =Input!B21 -> 825 | E32: receipts-6-22706 | F32: 825 | H32: receipts-6-22706 | I32: 825
B33: receipts-7-82506 | C33: =Input!B22 -> 300 | E33: receipts-7-82506 | F33: 300 | H33: receipts-7-82506 | I33: 300
B34: receipts-8-82506 | C34: =Input!B23 -> 0 | E34: receipts-8-82506 | F34: 0 | H34: receipts-8-82506
B35: receipts-9-82506 | C35: =Input!F16 -> 56 | E35: receipts-9-82506 | F35: 56 | H35: receipts-9-82506 | I35: 56
B36: receipts-10-82506 | C36: =Input!F18 -> 0 | E36: receipts-10-82506 | F36: 0 | H36: receipts-10-82506
B37: receipts-11-82506 | C37: =Input!F20 -> 15 | E37: receipts-11-82506 | F37: 15 | H37: receipts-11-82506 | I37: 15
B38: receipts-12-82506 | C38: =Input!F22 -> 0.28 | E38: receipts-12-82506 | F38: 0.28 | H38: receipts-12-82506 | I38: 0.28
B39: seed1-1-22706 | C39: =Input!B27 -> 0 | E39: seed1-1-22706 | F39: 0 | H39: seed1-1-22706
B40: seed1-2-22706 | C40: =Input!B28 -> 0 | E40: seed1-2-22706 | F40: 0 | H40: seed1-2-22706
B41: seed1-3-22706 | C41: =Input!B29 -> 0 | E41: seed1-3-22706 | F41: 0 | H41: seed1-3-22706
B42: seed1-4-22706 | C42: =Input!B30 -> 0 | E42: seed1-4-22706 | F42: 0 | H42: seed1-4-22706
B43: seed1-5-22706 | C43: =Input!B31 -> 0 | E43: seed1-5-22706 | F43: 0 | H43: seed1-5-22706
B44: seed1-6-22706 | C44: =Input!B32 -> 0 | E44: seed1-6-22706 | F44: 0 | H44: seed1-6-22706
B45: seed2-1-22706 | C45: =Input!F27 -> 0 | E45: seed2-1-22706 | F45: 0 | H45: seed2-1-22706
B46: seed2-2-22706 | C46: =Input!F28 -> 0 | E46: seed2-2-22706 | F46: 0 | H46: seed2-2-22706
B47: seed2-3-22706 | C47: =Input!F29 -> 0 | E47: seed2-3-22706 | F47: 0 | H47: seed2-3-22706
B48: seed2-4-22706 | C48: =Input!F30 -> 0 | E48: seed2-4-22706 | F48: 0 | H48: seed2-4-22706
B49: seed2-5-22706 | C49: =Input!F31 -> 0 | E49: seed2-5-22706 | F49: 0 | H49: seed2-5-22706
B50: fertilizer1-1-22706 | C50: =Input!B36 -> 0 | E50: fertilizer1-1-22706 | F50: 0 | H50: fertilizer1-1-22706
B51: fertilizer1-2-22706 | C51: =Input!B37 -> 70 | E51: fertilizer1-2-22706 | F51: 70 | H51: fertilizer1-2-22706 | I51: 70
B52: fertilizer1-3-22706 | C52: =Input!B38 -> 0 | E52: fertilizer1-3-22706 | F52: 0 | H52: fertilizer1-3-22706
B53: fertilizer1-4-22706 | C53: =Input!B39 -> 30 | E53: fertilizer1-4-22706 | F53: 30 | H53: fertilizer1-4-22706 | I53: 30
B54: fertilizer1-5-22706 | C54: =Input!B40 -> 80 | E54: fertilizer1-5-22706 | F54: 80 | H54: fertilizer1-5-22706 | I54: 80
B55: fertilizer1-6-22706 | C55: =Input!B41 -> 0.5 | E55: fertilizer1-6-22706 | F55: 0.5 | H55: fertilizer1-6-22706 | I55: 0.5
B56: fertilizer1-7-22706 | C56: =Input!B42 -> 0 | E56: fertilizer1-7-22706 | F56: 0 | H56: fertilizer1-7-22706
B57: fertilizer1-8-22706 | C57: =Input!B43 -> 0 | E57: fertilizer1-8-22706 | F57: 0 | H57: fertilizer1-8-22706
B58: fertilizer2-1-22706 | C58: =Input!F36 -> 0 | E58: fertilizer2-1-22706 | F58: 0 | H58: fertilizer2-1-22706
B59: fertilizer2-2-22706 | C59: =Input!F37 -> 0.4 | E59: fertilizer2-2-22706 | F59: 0.4 | H59: fertilizer2-2-22706 | I59: 0.4
B60: fertilizer2-3-22706 | C60: =Input!F38 -> 0 | E60: fertilizer2-3-22706 | F60: 0 | H60: fertilizer2-3-22706
B61: fertilizer2-4-22706 | C61: =Input!F39 -> 0.38 | E61: fertilizer2-4-22706 | F61: 0.38 | H61: fertilizer2-4-22706 | I61: 0.38
B62: fertilizer2-5-22706 | C62: =Input!F40 -> 0.28 | E62: fertilizer2-5-22706 | F62: 0.28 | H62: fertilizer2-5-22706 | I62: 0.28
B63: fertilizer2-6-22706 | C63: =Input!F41 -> 21 | E63: fertilizer2-6-22706 | F63: 21 | H63: fertilizer2-6-22706 | I63: 21
B64: fertilizer2-7-22706 | C64: =Input!F42 -> 0 | E64: fertilizer2-7-22706 | F64: 0 | H64: fertilizer2-7-22706
B65: fertilizer2-8-22706 | C65: =Input!F43 -> 0 | E65: fertilizer2-8-22706 | F65: 0 | H65: fertilizer2-8-22706
B66: herbicide1-1-22706 | C66: =Input!B47 -> 0 | E66: herbicide1-1-22706 | F66: 0 | H66: herbicide1-1-22706
B67: herbicide1-2-22706 | C67: =Input!B48 -> 0 | E67: herbicide1-2-22706 | F67: 0 | H67: herbicide1-2-22706
B68: herbicide1-3-22706 | C68: =Input!B49 -> 0 | E68: herbicide1-3-22706 | F68: 0 | H68: herbicide1-3-22706
B69: herbicide1-4-22706 | C69: =Input!B50 -> 0 | E69: herbicide1-4-22706 | F69: 0 | H69: herbicide1-4-22706
B70: herbicide1-5-22706 | C70: =Input!B51 -> 0 | E70: herbicide1-5-22706 | F70: 0 | H70: herbicide1-5-22706 | I70: =IF(COUNTIF(import,"="&H70)<>0,IF(VLOOKUP(H70,import,2,FALSE)<>0,VLOOKUP(H70,import,2,FALSE),""),"") -> 
B71: herbicide1-6-22706 | C71: =Input!B52 -> 0 | E71: herbicide1-6-22706 | F71: 0 | H71: =B71 -> herbicide1-6-22706
B72: herbicide1-7-22706 | C72: =Input!B53 -> 0 | E72: herbicide1-7-22706 | F72: 0 | H72: herbicide1-7-22706
B73: herbicide1-8-22706 | C73: =Input!B54 -> 0 | E73: herbicide1-8-22706 | F73: 0 | H73: herbicide1-8-22706
B74: herbicide2-1-22706 | C74: =Input!F47 -> 0 | E74: herbicide2-1-22706 | F74: 0 | H74: herbicide2-1-22706
B75: herbicide2-2-22706 | C75: =Input!F48 -> 0 | E75: herbicide2-2-22706 | F75: 0 | H75: herbicide2-2-22706
B76: herbicide2-3-22706 | C76: =Input!F49 -> 0 | E76: herbicide2-3-22706 | F76: 0 | H76: herbicide2-3-22706
B77: herbicide2-4-22706 | C77: =Input!F50 -> 0 | E77: herbicide2-4-22706 | F77: 0 | H77: herbicide2-4-22706
B78: herbicide2-5-22706 | C78: =Input!F51 -> 0 | E78: herbicide2-5-22706 | F78: 0 | H78: herbicide2-5-22706
B79: herbicide2-6-22706 | C79: =Input!F52 -> 0 | E79: herbicide2-6-22706 | F79: 0 | H79: herbicide2-6-22706
B80: herbicide2-7-22706 | C80: =Input!F53 -> 0 | E80: herbicide2-7-22706 | F80: 0 | H80: herbicide2-7-22706
B81: herbicide2-8-22706 | C81: =Input!F54 -> 0 | E81: herbicide2-8-22706 | F81: 0 | H81: herbicide2-8-22706
B82: herbicide2-9-22706 | C82: =Input!B55 -> 0 | E82: herbicide2-9-22706 | F82: 0 | H82: herbicide2-9-22706
B83: insecticide1-1-22706 | C83: =Input!B59 -> 0 | E83: insecticide1-1-22706 | F83: 0 | H83: insecticide1-1-22706
B84: insecticide1-2-22706 | C84: =Input!B60 -> 0 | E84: insecticide1-2-22706 | F84: 0 | H84: insecticide1-2-22706
B85: insecticide1-3-22706 | C85: =Input!B61 -> 0 | E85: insecticide1-3-22706 | F85: 0 | H85: insecticide1-3-22706
B86: insecticide1-4-22706 | C86: =Input!B62 -> 0 | E86: insecticide1-4-22706 | F86: 0 | H86: insecticide1-4-22706
B87: insecticide1-5-11206 | C87: =Input!B63 -> 0 | E87: insecticide1-5-11206 | F87: 0 | H87: insecticide1-5-11206
B88: insecticide1-6-11206 | C88: =Input!B64 -> 0 | E88: insecticide1-6-11206 | F88: 0 | H88: insecticide1-6-11206
B89: insecticide1-7-11206 | C89: =Input!B65 -> 0 | E89: insecticide1-7-11206 | F89: 0 | H89: insecticide1-7-11206
B90: insecticide2-1-22706 | C90: =Input!F59 -> 0 | E90: insecticide2-1-22706 | F90: 0 | H90: insecticide2-1-22706
B91: insecticide2-2-22706 | C91: =Input!F60 -> 0 | E91: insecticide2-2-22706 | F91: 0 | H91: insecticide2-2-22706
B92: insecticide2-3-22706 | C92: =Input!F61 -> 0 | E92: insecticide2-3-22706 | F92: 0 | H92: insecticide2-3-22706
B93: insecticide2-4-22706 | C93: =Input!F62 -> 0 | E93: insecticide2-4-22706 | F93: 0 | H93: insecticide2-4-22706
B94: insecticide2-5-22706 | C94: =Input!F63 -> 0 | E94: insecticide2-5-22706 | F94: 0 | H94: insecticide2-5-22706
B95: insecticide2-6-11206 | C95: =Input!F64 -> 0 | E95: insecticide2-6-11206 | F95: 0 | H95: insecticide2-6-11206
B96: labor-1-22706 | C96: =Input!B69 -> 0.3 | E96: labor-1-22706 | F96: 0.3 | H96: labor-1-22706 | I96: 0.3
B97: labor-2-22706 | C97: =Input!B70 -> 15.5 | E97: labor-2-22706 | F97: 15.5 | H97: labor-2-22706 | I97: 15.5
B98: labor-3-22706 | C98: =Input!B71 -> 21 | E98: labor-3-22706 | F98: 21 | H98: labor-3-22706 | I98: 21
B99: irrigation1-1-22706 | C99: =Input!B75 -> 0 | E99: irrigation1-1-22706 | F99: 0 | H99: irrigation1-1-22706
B100: irrigation1-2-22706 | C100: =Input!B76 -> 0 | E100: irrigation1-2-22706 | F100: 0 | H100: irrigation1-2-22706
B101: irrigation1-3-22706 | C101: =Input!B77 -> 0 | E101: irrigation1-3-22706 | F101: 0 | H101: irrigation1-3-22706
B102: land-1-22706 | C102: =Input!B81 -> 0 | E102: land-1-22706 | F102: 0 | H102: land-1-22706
B103: land-2-22706 | C103: =Input!B82 -> 3000 | E103: land-2-22706 | F103: 3000 | H103: land-2-22706 | I103: 3000
B104: land-3-22706 | C104: =Input!B83 -> 1.9 | E104: land-3-22706 | F104: 1.9 | H104: land-3-22706 | I104: 1.9
B105: land-4-22706 | C105: =Input!B84 -> 0 | E105: land-4-22706 | F105: 0 | H105: land-4-22706
B106: land-5-22706 | C106: =Input!B85 -> 0 | E106: land-5-22706 | F106: 0 | H106: land-5-22706
B107: otheritems1-1-22706 | C107: =Input!B89 -> 4.5 | E107: otheritems1-1-22706 | F107: 4.5 | H107: otheritems1-1-22706 | I107: 4.5
B108: otheritems1-2-22706 | C108: =Input!B90 -> 2.38 | E108: otheritems1-2-22706 | F108: 2.38 | H108: otheritems1-2-22706 | I108: 2.38
B109: otheritems1-3-22706 | C109: =Input!B91 -> 2.55 | E109: otheritems1-3-22706 | F109: 2.55 | H109: otheritems1-3-22706 | I109: 2.55
B110: otheritems1-4-22706 | C110: =Input!B92 -> 7 | E110: otheritems1-4-22706 | F110: 7 | H110: otheritems1-4-22706 | I110: 7
B111: otheritems1-5-22706 | C111: =Input!B93 -> 0 | E111: otheritems1-5-22706 | F111: 0 | H111: otheritems1-5-22706
B112: otheritems1-6-22706 | C112: =Input!B94 -> 0 | E112: otheritems1-6-22706 | F112: 0 | H112: otheritems1-6-22706
B113: otheritems1-7-22706 | C113: =Input!B95 -> 0 | E113: otheritems1-7-22706 | F113: 0 | H113: otheritems1-7-22706
B114: otheritems1-8-22706 | C114: =Input!B96 -> 0 | E114: otheritems1-8-22706 | F114: 0 | H114: otheritems1-8-22706
B115: otheritems1-9-22706 | C115: =Input!B97 -> 0 | E115: otheritems1-9-22706 | F115: 0 | H115: otheritems1-9-22706
B116: otheritems1-10-22706 | C116: =otheritems2 -> 0 | E116: otheritems1-10-22706 | F116: 0 | H116: otheritems1-10-22706
B117: overhead-1-22706 | C117: =Input!B100 -> 0 | E117: overhead-1-22706 | F117: 0 | H117: overhead-1-22706
B118: overhead-2-22706 | C118: =Input!B101 -> 0 | E118: overhead-2-22706 | F118: 0 | H118: overhead-2-22706
B119: overhead-3-22706 | C119: =Input!B102 -> 9000 | E119: overhead-3-22706 | F119: 9000 | H119: overhead-3-22706 | I119: 9000
B120: overhead-4-22706 | C120: =Input!B103 -> 10 | E120: overhead-4-22706 | F120: 10 | H120: overhead-4-22706 | I120: 10
B121: overhead-5-22706 | C121: =Input!B107 -> 15000 | E121: overhead-5-22706 | F121: 15000 | H121: overhead-5-22706 | I121: 15000
B122: overhead-6-22706 | C122: =Input!B108 -> 10 | E122: overhead-6-22706 | F122: 10 | H122: overhead-6-22706 | I122: 10
B123: landlord_share-1-22706 | C123: =Input!B134 -> 0 | E123: landlord_share-1-22706 | F123: 0 | H123: landlord_share-1-22706
B124: landlord_share-2-22706 | C124: =Input!B135 -> 0 | E124: landlord_share-2-22706 | F124: 0 | H124: landlord_share-2-22706
B125: landlord_share-3-22706 | C125: =Input!B136 -> 0 | E125: landlord_share-3-22706 | F125: 0 | H125: landlord_share-3-22706
B126: landlord_share-4-22706 | C126: =Input!B137 -> 0 | E126: landlord_share-4-22706 | F126: 0 | H126: landlord_share-4-22706
B127: landlord_share-5-22706 | C127: =Input!B138 -> 0 | E127: landlord_share-5-22706 | F127: 0 | H127: landlord_share-5-22706
B128: landlord_share-6-22706 | C128: =Input!B139 -> 0 | E128: landlord_share-6-22706 | F128: 0 | H128: landlord_share-6-22706
B129: landlord_share-7-22706 | C129: =Input!B140 -> 0 | E129: landlord_share-7-22706 | F129: 0 | H129: landlord_share-7-22706
B130: landlord_share-8-22706 | C130: =Input!B141 -> 0 | E130: landlord_share-8-22706 | F130: 0 | H130: landlord_share-8-22706
B131: landlord_share-9-22706 | C131: =Input!B142 -> 0 | E131: landlord_share-9-22706 | F131: 0 | H131: landlord_share-9-22706
B132: landlord_share-10-22706 | C132: =Input!B143 -> 0 | E132: landlord_share-10-22706 | F132: 0 | H132: landlord_share-10-22706
B133: landlord_share-11-22706 | C133: =Input!B144 -> 0 | E133: landlord_share-11-22706 | F133: 0 | H133: landlord_share-11-22706
B134: landlord_share-12-22706 | C134: =Input!B145 -> 0 | E134: landlord_share-12-22706 | F134: 0 | H134: landlord_share-12-22706
B135: landlord_share-13-22706 | C135: =Input!B146 -> 0 | E135: landlord_share-13-22706 | F135: 0 | H135: landlord_share-13-22706
B136: customhire1-1-22706 | C136: =Input!B113 -> 6.2 | E136: customhire1-1-22706 | F136: 6.2 | H136: customhire1-1-22706 | I136: 6.2
B137: customhire1-2-22706 | C137: =Input!B114 -> 0 | E137: customhire1-2-22706 | F137: 0 | H137: customhire1-2-22706
B138: customhire1-3-22706 | C138: =Input!B115 -> 0 | E138: customhire1-3-22706 | F138: 0 | H138: customhire1-3-22706 | I138: =IF(COUNTIF(import,"="&H138)<>0,IF(VLOOKUP(H138,import,2,FALSE)<>0,VLOOKUP(H138,import,2,FALSE),""),"") -> 
B139: customhire1-4-22706 | C139: =Input!B116 -> 0 | E139: customhire1-4-22706 | F139: 0 | H139: =B139 -> customhire1-4-22706
B140: customhire1-5-22706 | C140: =Input!B117 -> 0 | E140: customhire1-5-22706 | F140: 0 | H140: customhire1-5-22706
B141: customhire1-6-22706 | C141: =Input!B118 -> 0 | E141: customhire1-6-22706 | F141: 0 | H141: customhire1-6-22706
B142: customhire1-7-22706 | C142: =Input!B119 -> 0 | E142: customhire1-7-22706 | F142: 0 | H142: customhire1-7-22706
B143: customhire1-8-22706 | C143: =Input!B120 -> 0 | E143: customhire1-8-22706 | F143: 0 | H143: customhire1-8-22706
B144: customhire1-9-22706 | C144: =Input!B121 -> 0 | E144: customhire1-9-22706 | F144: 0 | H144: customhire1-9-22706
B145: customhire1-10-22706 | C145: =Input!B122 -> 0 | E145: customhire1-10-22706 | F145: 0 | H145: customhire1-10-22706
B146: customhire1-11-22706 | C146: =Input!B123 -> 0 | E146: customhire1-11-22706 | F146: 0 | H146: customhire1-11-22706
B147: customhire1-12-22706 | C147: =Input!B124 -> 0 | E147: customhire1-12-22706 | F147: 0 | H147: customhire1-12-22706
B148: customhire1-13-22706 | C148: =Input!B125 -> 0 | E148: customhire1-13-22706 | F148: 0 | H148: customhire1-13-22706
B149: customhire1-14-22706 | C149: =Input!B126 -> 0 | E149: customhire1-14-22706 | F149: 0 | H149: customhire1-14-22706
B150: customhire1-15-22706 | C150: =Input!B127 -> 0.03 | E150: customhire1-15-22706 | F150: 0.03 | H150: customhire1-15-22706 | I150: 0.03
B151: customhire1-16-22706 | C151: =Input!B128 -> 4 | E151: customhire1-16-22706 | F151: 4 | H151: customhire1-16-22706 | I151: 4
B152: customhire1-17-22706 | C152: =Input!B129 -> 0 | E152: customhire1-17-22706 | F152: 0 | H152: customhire1-17-22706
B153: customhire1-18-22706 | C153: =Input!B130 -> 0 | E153: customhire1-18-22706 | F153: 0 | H153: customhire1-18-22706
B154: customhire2-1-22706 | C154: =Input!F113 -> 2 | E154: customhire2-1-22706 | F154: 2 | H154: customhire2-1-22706 | I154: 2
B155: customhire2-2-22706 | C155: =Input!F114 -> 0 | E155: customhire2-2-22706 | F155: 0 | H155: customhire2-2-22706
B156: customhire2-3-22706 | C156: =Input!F115 -> 0 | E156: customhire2-3-22706 | F156: 0 | H156: customhire2-3-22706
B157: customhire2-4-22706 | C157: =Input!F116 -> 0 | E157: customhire2-4-22706 | F157: 0 | H157: customhire2-4-22706
B158: customhire2-5-22706 | C158: =Input!F119 -> 0 | E158: customhire2-5-22706 | F158: 0 | H158: customhire2-5-22706
B159: customhire2-6-22706 | C159: =Input!F120 -> 0 | E159: customhire2-6-22706 | F159: 0 | H159: customhire2-6-22706
B160: customhire2-7-22706 | C160: =Input!F121 -> 0 | E160: customhire2-7-22706 | F160: 0 | H160: customhire2-7-22706
B161: customhire2-8-22706 | C161: =Input!F122 -> 0 | E161: customhire2-8-22706 | F161: 0 | H161: customhire2-8-22706
B162: customhire2-9-22706 | C162: =Input!F123 -> 0 | E162: customhire2-9-22706 | F162: 0 | H162: customhire2-9-22706
B163: customhire2-10-22706 | C163: =Input!F124 -> 0 | E163: customhire2-10-22706 | F163: 0 | H163: customhire2-10-22706
B164: customhire2-11-22706 | C164: =Input!F125 -> 0 | E164: customhire2-11-22706 | F164: 0 | H164: customhire2-11-22706
B165: customhire2-12-22706 | C165: =Input!F129 -> 0 | E165: customhire2-12-22706 | F165: 0 | H165: customhire2-12-22706
B166: customhire2-13-22706 | C166: =Input!F130 -> 0 | E166: customhire2-13-22706 | F166: 0 | H166: customhire2-13-22706
B167: size-1-3806 | C167: =Input!B154 -> 15 ft | E167: size-1-3806 | F167: 15 ft | H167: size-1-3806 | I167: 15 ft
B168: size-2-3806 | C168: =Input!B155 -> 16.3 ft | E168: size-2-3806 | F168: 16.3 ft | H168: size-2-3806 | I168: 16.3 ft
B169: size-3-3806 | C169: =Input!B156 -> 6 ft | E169: size-3-3806 | F169: 6 ft | H169: size-3-3806 | I169: 6 ft
B170: size-4-3806 | C170: =Input!B157 -> 18 ft | E170: size-4-3806 | F170: 18 ft | H170: size-4-3806 | I170: 18 ft
B171: size-5-3806 | C171: =Input!B158 -> 25 ft | E171: size-5-3806 | F171: 25 ft | H171: size-5-3806 | I171: 25 ft
B172: size-6-3806 | C172: =Input!B159 -> 30" O.C., 17 ft | E172: size-6-3806 | F172: 30" O.C., 17 ft | H172: size-6-3806 | I172: 30" O.C., 17 ft
B173: size-7-3806 | C173: =Input!B160 -> 16 ft | E173: size-7-3806 | F173: 16 ft | H173: size-7-3806 | I173: 16 ft
B174: size-8-3806 | C174: =Input!B161 -> 17.5 ft | E174: size-8-3806 | F174: 17.5 ft | H174: size-8-3806 | I174: 17.5 ft
B175: size-9-3806 | C175: =Input!B162 -> 22 ft | E175: size-9-3806 | F175: 22 ft | H175: size-9-3806 | I175: 22 ft
B176: size-10-3806 | C176: =Input!B163 -> 12 ft | E176: size-10-3806 | F176: 12 ft | H176: size-10-3806 | I176: 12 ft
B177: size-11-3806 | C177: =Input!B165 -> 6 row | E177: size-11-3806 | F177: 6 row | H177: size-11-3806 | I177: 6 row
B178: size-12-3806 | C178: =Input!B166 -> (6 row 30/15) | E178: size-12-3806 | F178: (6 row 30/15) | H178: size-12-3806 | I178: (6 row 30/15)
B179: size-13-3806 | C179: =Input!B167 -> 6 row | E179: size-13-3806 | F179: 6 row | H179: size-13-3806 | I179: 6 row
B180: size-14-3806 | C180: =Input!B168 -> 16 ft | E180: size-14-3806 | F180: 16 ft | H180: size-14-3806 | I180: 16 ft
B181: size-15-3806 | C181: =Input!B169 -> 15 ft | E181: size-15-3806 | F181: 15 ft | H181: size-15-3806 | I181: 15 ft
B182: size-16-3806 | C182: =Input!B172 -> 6 row | E182: size-16-3806 | F182: 6 row | H182: size-16-3806 | I182: 6 row
B183: size-17-3806 | C183: =Input!B173 -> 6 row | E183: size-17-3806 | F183: 6 row | H183: size-17-3806 | I183: 6 row
B184: size-18-3806 | C184: =Input!B176 -> 30 ft | E184: size-18-3806 | F184: 30 ft | H184: size-18-3806 | I184: 30 ft
B185: size-26-111606 | C185: =Input!B180 -> 8 ft | E185: size-26-111606 | F185: 8 ft | H185: size-26-111606 | I185: 8 ft
B186: size-27-111606 | C186: =Input!B181 -> 6 ft | E186: size-27-111606 | F186: 6 ft | H186: size-27-111606 | I186: 6 ft
B187: size-31-12506 | C187: =Input!B183 -> 7 ft | E187: size-31-12506 | F187: 7 ft | H187: size-31-12506 | I187: 7 ft
B188: size-19-3806 | C188: =Input!B184 -> 9 ft | E188: size-19-3806 | F188: 9 ft | H188: size-19-3806 | I188: 9 ft
B189: size-20-3806 | C189: =Input!B185 -> 9 ft | E189: size-20-3806 | F189: 9 ft | H189: size-20-3806 | I189: 9 ft
B190: size-28-12506 | C190: =Input!B186 -> 2 rotor, 8.5 ft | E190: size-28-12506 | F190: 2 rotor, 8.5 ft | H190: size-28-12506 | I190: 2 rotor, 8.5 ft
B191: size-29-12506 | C191: =Input!B187 -> 2-16' wheel, 30 ft | E191: size-29-12506 | F191: 2-16' wheel, 30 ft | H191: size-29-12506 | I191: 2-16' wheel, 30 ft
B192: size-30-12506 | C192: =Input!B188 -> 8.5 ft | E192: size-30-12506 | F192: 8.5 ft | H192: size-30-12506 | I192: 8.5 ft
B193: size-21-3806 | C193: =Input!B191 -> 1000 Lb | E193: size-21-3806 | F193: 1000 Lb | H193: size-21-3806 | I193: 1000 Lb
B194: size-33-12506 | C194: =Input!B192 -> 1500 lb | E194: size-33-12506 | F194: 1500 lb | H194: size-33-12506 | I194: 1500 lb
B195: size-35-12506 | C195: =Input!B193 -> 1000 lb | E195: size-35-12506 | F195: 1000 lb | H195: size-35-12506 | I195: 1000 lb
B196: size-34-12506 | C196: =Input!B195 -> 3 row corn head | E196: size-34-12506 | F196: 3 row corn head | H196: size-34-12506 | I196: 3 row corn head
B197: size-22-3806 | C197: =Input!B198 -> 15 ft | E197: size-22-3806 | F197: 15 ft | H197: size-22-3806 | I197: 15 ft
B198: size-23-3806 | C198: =Input!B199 -> 15 ft | E198: size-23-3806 | F198: 15 ft | H198: size-23-3806 | I198: 15 ft
B199: size-24-3806 | C199: =Input!B200 -> 6 row | E199: size-24-3806 | F199: 6 row | H199: size-24-3806 | I199: 6 row
B200: size-25-3806 | C200: =Input!B203 -> 500 bushel | E200: size-25-3806 | F200: 500 bushel | H200: size-25-3806 | I200: 500 bushel
B201: power-1-22706 | C201: =Input!D154 -> 0 | E201: power-1-22706 | F201: 0 | H201: power-1-22706
... 139 more rows
